date,department/service,beneficiary,amount,summary of purpose,category,transaction number,SAP vendor number
01.10.2022,ADULT SOCIAL CARE,BRITISH GAS,"1,003.35",MH PREMISES COSTS,ELECTRICITY,5902544316,1000054825
01.10.2022,ASSET MANAGEMENT,FRANKHAM CONSULTANCY GROUP LTD,"1,250.00",DISREPAIR,BUILDING R&M,5902544225,1000043952
01.10.2022,ASSET MANAGEMENT,ARMINA LTD,655.45,DISREPAIR,BUILDING R&M,2103566077,3000002121
01.10.2022,ASSET MANAGEMENT,ARMINA LTD,896.36,DISREPAIR,BUILDING R&M,2103566079,3000002121
01.10.2022,ASSET MANAGEMENT,ARMINA LTD,"1,244.69",DISREPAIR,BUILDING R&M,2103566078,3000002121
01.10.2022,ASSET MANAGEMENT,ARMINA LTD,"1,931.52",DISREPAIR,BUILDING R&M,2103566075,3000002121
01.10.2022,ASSET MANAGEMENT,ARMINA LTD,"3,068.56",DISREPAIR,BUILDING R&M,2103566074,3000002121
01.10.2022,ASSET MANAGEMENT,ARMINA LTD,"3,439.31",DISREPAIR,BUILDING R&M,2103566076,3000002121
01.10.2022,ASSET MANAGEMENT HGF,BORER DATA SYSTEMS LIMITED,"9,960.00",160 TOOLEY ST.,COMPUTER CONSUMABLES,5902544625,1000013544
01.10.2022,CENTRAL FUNCTIONS,VEOLIA ES (UK)LTD,"167,900.32",HEATING ACCOUNT,GAS,5902544083,1824835
01.10.2022,CHILDREN AND ADULT,FAITHFUL & GOULD,"23,500.00",CAPITAL PS (EDUCATION),CONSTRUCTION FEES  - EXTERNAL,5902544306,1000061390
01.10.2022,CHILDREN AND FAMILIES,ITS TRAINING (UK) LTD,"1,215.00",EDUC INCLUSION TEAM,TRAINING,5902544653,1000035281
01.10.2022,CUSTOMER EXPERIENCE HGF,ITS DESIGNS LIMITED,"1,260.00",LAMBETH RESPONSE,EQUIPMENT PURCHASE & REPAIR,5902543965,1000067887
01.10.2022,ENVIRONMENT DIRECTORATE,GRADKO INTERNATIONAL LTD,326.65,ENVIRONMENTAL PROTECTION,EQUIPMENT PURCHASE & REPAIR,5902543991,1000068330
01.10.2022,F & C S EXCLUDING CORPORATE BUDGETS,POST OFFICE LTD,"19,328.00",ENERGY BILLS REBATE GRANT,MISCELLANEOUS EXPENSES,5902544755,1000069858
01.10.2022,HOUSING GENERAL FUND,REDACTED PERSONAL DATA,"6,000.00",CAPITAL PS (REGEN),CONSTRUCTION MAIN CONTRACT,REDACTED,REDACTED
01.10.2022,HOUSING GENERAL FUND,UNIFIED CONSULTANCY LTD,"1,280.00",CAPITAL PS (STRAT SERV),ICT ACQUISITION,5902544800,1000081827
01.10.2022,HOUSING HRA,SILVER DCC LTD,"1,550.00",CAPITAL PS (HRA),CONSTRUCTION FEES  - EXTERNAL,5902543033,1000087546
01.10.2022,HOUSING HRA,DURKAN LTD,"1,940,281.63",CAPITAL PS (HRA),CONSTRUCTION MAIN CONTRACT -CERTIFICATED,2103562543,3000000960
01.10.2022,HOUSING HRA,GUIDELINE LIFT SERVICES LTD,"2,750.00",CAPITAL PS (HRA),UTILITIES INSTALLATION,5902544289,1000064176
01.10.2022,PUBLIC HEALTH,COMMUNITY SOUTHWARK,"1,500.00",COVID-19 VACCINATION SUPPORT,EXTERNAL AGENCIES AND BODIES,5902544486,1000018147
01.10.2022,PUBLIC HEALTH,QUINN LONDON LIMITED,"16,875.00",CPHA  MANAGED PROPERTIES,BUILDING R&M,2103566069,3000001206
01.10.2022,PUBLIC HEALTH,BRESLIN CONSTRUCTION LTD,"3,600.00",CPHA  MANAGED PROPERTIES,BUILDING R&M,2103565312,3000001948
01.10.2022,PUBLIC HEALTH,SPARKS COMMUNITIES CIC,"1,408.00",HOLIDAY ACTIVITIES & FOOD,EXTERNAL AGENCIES AND BODIES,5902543883,1000088030
02.10.2022,ASSET MANAGEMENT,SCCI ALPHATRACK LTD,"2,149.71",ENG CONTRACTS (NORTH),TV AERIALS R&M,5902544535,1000071955
02.10.2022,ASSET MANAGEMENT HGF,SPARTAN CREW LTD,"1,341.00",160 TOOLEY ST.,BUILDING R&M,5902544695,1000087067
02.10.2022,CHILDREN AND FAMILIES,TRIPOD PARTNERS LTD,270.19,DIRECTOR OF C&F,PAYMENTS FOR LEGAL SERVICES,5902544395,1000087988
02.10.2022,CHILDREN AND FAMILIES,TRIPOD PARTNERS LTD,520.16,DIRECTOR OF C&F,PAYMENTS FOR LEGAL SERVICES,5902544397,1000087988
02.10.2022,CHILDREN AND FAMILIES,TRIPOD PARTNERS LTD,"2,729.33",DIRECTOR OF C&F,PAYMENTS FOR LEGAL SERVICES,5902544404,1000087988
02.10.2022,CHILDREN AND FAMILIES,TRIPOD PARTNERS LTD,"2,743.52",DIRECTOR OF C&F,PAYMENTS FOR LEGAL SERVICES,5902544393,1000087988
02.10.2022,CHILDREN AND FAMILIES,REALITY FAMILY SUPPORT SERVICES LTD,"1,347.50",EDGE OF CARE DECIS�S,OTHER PAYMENTS FOR CLIENTS,5902544380,1000087878
02.10.2022,CHILDREN AND FAMILIES,PLAY TOGETHER LIMITED,960.00,NEW ASF,EXTERNAL AGENCIES AND BODIES,5902544496,1000085787
02.10.2022,CHILDREN AND FAMILIES,PLAY TOGETHER LIMITED,960.00,NEW ASF,EXTERNAL AGENCIES AND BODIES,5902544500,1000085787
02.10.2022,CHILDREN AND FAMILIES,PLAY TOGETHER LIMITED,"1,080.00",NEW ASF,EXTERNAL AGENCIES AND BODIES,5902544501,1000085787
02.10.2022,COMMUNITIES,TOWER HAMLETS YOUTH SPORT FOUNDATION,"6,189.00",NORTH WEST,GRANTS,5902544475,1000087465
02.10.2022,CUSTOMER EXPERIENCE,AMAZON PAYMENTS UK LTD,265.83,COMPLAINTS,OFFICE EXPENSES,5902544701,1000087853
02.10.2022,CUSTOMER EXPERIENCE,AMAZON PAYMENTS UK LTD,916.67,COMPLAINTS,OFFICE EXPENSES,5902544703,1000087853
02.10.2022,DSG,SHIRLEY MOYSE,350.00,SEN INCLUSION TEAM,CONSULTANTS SERVICES,5902544438,1000083073
02.10.2022,ENVIRONMENT AND LEISURE,F M CONWAY LTD,"144,177.07",CAPITAL PS (LEISURE),CONSTRUCTION,2103566088,4001384
02.10.2022,ENVIRONMENT AND LEISURE,STREET TREE LTD,"3,909.30",CAPITAL PS (LEISURE),CONSTRUCTION,5902544784,1000055901
02.10.2022,ENVIRONMENT AND LEISURE,RH WROUGHT IRON,"1,200.00",CAPITAL PS (LEISURE),CONSTRUCTION FEES  - EXTERNAL,2103566505,3000000680
02.10.2022,ENVIRONMENT AND LEISURE,RH WROUGHT IRON,"3,000.00",CAPITAL PS (LEISURE),CONSTRUCTION FEES - INTERNAL,2103566506,3000000680
02.10.2022,ENVIRONMENT DIRECTORATE,SOUTHWARK NEWSPAPER LTD,420.00,HIGHWAYS DEVELOPMENT,MARKETING & PUBLICITY SERVICES,5902544532,1556957
02.10.2022,ENVIRONMENT DIRECTORATE,CYCLE CONFIDENT LTD,"5,469.70","ROAD SAFETY EDUCATION,TRAINING&PUBLICITY",PROFESSIONAL FEES,5902544235,1000070228
02.10.2022,HOUSING HRA,RANMAC COSMETIC LIMITED,765.00,CAPITAL PS (HRA),CONSTRUCTION FEES,5902544522,1000083913
02.10.2022,HOUSING HRA,NIBLOCK (BUILDERS) LTD,"121,408.54",CAPITAL PS (HRA),CONSTRUCTION FEES  - EXTERNAL,2103564675,3000000235
02.10.2022,HOUSING HRA,BAILY  GARNER LLP,"7,711.69",CAPITAL PS (HRA),CONSTRUCTION FEES - EMPLOYERS AGENT,5902544620,1000663
02.10.2022,HOUSING HRA,BUILDING ASSOCIATES LTD,"98,386.81",CAPITAL PS (HRA),CONSTRUCTION MAIN CONTRACT,2103566504,3000002218
02.10.2022,HOUSING HRA,SALTASH ENTERPRISES LTD,"45,320.60",CAPITAL PS (HRA),CONSTRUCTION MAIN CONTRACT -CERTIFICATED,2103565311,4013605
02.10.2022,HOUSING HRA,NIBLOCK (BUILDERS) LTD,"67,053.69",CAPITAL PS (HRA),CONSTRUCTION MAIN CONTRACT -CERTIFICATED,2103564671,3000000235
02.10.2022,HOUSING HRA,HILL PARTNERSHIP LTD,"2,921,184.44",CAPITAL PS (HRA),CONSTRUCTION MAIN CONTRACT -CERTIFICATED,2103566503,3000002185
02.10.2022,HOUSING HRA,BLOOM PROCUREMENT SERVICES LTD,"14,450.00",CAPITAL PS (REGEN),CONSTRUCTION FEES - QUANTITY SURVEYOR,5902544482,1000082531
02.10.2022,LEISURE DIRECTORATE,W & G FOYLE LTD,"2,331.02",STOCK SERVICES,BOOKS & PUBLICATIONS,5902545240,1000052261
02.10.2022,NEW BUILD,OPTIVO (SOUTH EAST CONSORTIUM),750.00,DEVELOPMENT DELIVERY,TRAINING,5902544676,1000083778
02.10.2022,PUBLIC HEALTH,CAMBERWELL AFTER SCHOOL PROJECT,704.00,HOLIDAY ACTIVITIES & FOOD,EXTERNAL AGENCIES AND BODIES,5902544335,1000051625
02.10.2022,PUBLIC HEALTH,BURGESS SPORTS,"4,000.00",HOLIDAY ACTIVITIES & FOOD,EXTERNAL AGENCIES AND BODIES,5902544341,1000069532
02.10.2022,PUBLIC HEALTH,RYE OAK PRIMARY SCHOOL,"8,448.00",HOLIDAY ACTIVITIES & FOOD,EXTERNAL AGENCIES AND BODIES,5902544332,5001000059
02.10.2022,SBS OPERATIONS,AKW MEDI-CARE LTD,274.68,SBS AIDS AND ADAPTATIONS,MATERIALS,5902545265,1000047103
02.10.2022,SUSTAINABILITY & BUSINESS DEVELOPMENT,EVENT- X LIMITED,334.00,STRATEGIC DIRECTOR'S OFFICE E AND L,ACCOMMODATION CHARGES,5902544526,1000023282
02.10.2022,SUSTAINABILITY & BUSINESS DEVELOPMENT,SOLACE GROUP,525.00,STRATEGIC DIRECTOR'S OFFICE E AND L,OTHER SUBSISTENCE & CONFERENCE EXPENSES,5902544637,1967877
03.10.2022,ADULT SOCIAL CARE,MADEIRA FLOWER LTD T/A MARIAS KITCHEN,310.80,LD/MH/SM MANAGEMENT,REFRESHMENTS FOR MEETINGS,5902544988,1000058840
03.10.2022,ADULT SOCIAL CARE,KENT COUNTY COUNCIL - LASER,"1,655.73",SOUTHWARK RESOURCE CENTRE,ELECTRICITY,5902544748,1000012926
03.10.2022,ASSET MANAGEMENT HGF,NPOWER LTD,"1,123.70",CURLEW HOUSE,ELECTRICITY,5902544709,1000078994
03.10.2022,ASSET MANAGEMENT HGF,MITIE FM LIMITED,"580,939.72",FM SERVICES BY INTERSERVE,INTEGRATED FACILITIES MANAGEMENT CONTRACT,5902545061,1000070792
03.10.2022,CENTRAL FUNCTIONS,KENT COUNTY COUNCIL - LASER,"-6,414.06",HEATING ACCOUNT,ELECTRICITY,5902544431,1000012926
03.10.2022,CENTRAL FUNCTIONS,KENT COUNTY COUNCIL - LASER,"90,839.45",HEATING ACCOUNT,ELECTRICITY,5902544424,1000012926
03.10.2022,CENTRAL FUNCTIONS,KENT COUNTY COUNCIL - LASER,"1,062,303.26",HEATING ACCOUNT,GAS,5902544443,1000012926
03.10.2022,CHILDREN AND FAMILIES,FAMILY FUTURES CIC,"4,166.67",ADOPTION SUPP FUND,EXTERNAL AGENCIES AND BODIES,5902544816,1000027893
03.10.2022,CHILDREN AND FAMILIES,FAMILY FUTURES CIC,"3,072.00",NEW ASF,EXTERNAL AGENCIES AND BODIES,5902544926,1000027893
03.10.2022,EDUCATION,KENT COUNTY COUNCIL - LASER,"3,235.86",THOMAS CALTON CENTRE,GAS,5902544744,1000012926
03.10.2022,ENVIRONMENT AND LEISURE,CJS PLANTS LTD,"-2,375.00",CAPITAL PS (LEISURE),CONST'N MAIN CONTRACT - NON CERTIFICATED,5902545498,1000025370
03.10.2022,ENVIRONMENT AND LEISURE,CJS PLANTS LTD,"2,375.00",CAPITAL PS (LEISURE),CONST'N MAIN CONTRACT - NON CERTIFICATED,5902545480,1000025370
03.10.2022,ENVIRONMENT AND LEISURE,ADVANCED TRANSPORT RESEARCH LTD,"1,595.00",CAPITAL PS (LEISURE),CONSTRUCTION,5902544533,1000070527
03.10.2022,ENVIRONMENT AND LEISURE,MOSAIC ART LTD,"5,600.00",CAPITAL PS (LEISURE),CONSTRUCTION FEES  - EXTERNAL,5902544595,1000080350
03.10.2022,ENVIRONMENT AND LEISURE,MOSAIC ART LTD,"6,740.00",CAPITAL PS (LEISURE),CONSTRUCTION FEES  - EXTERNAL,5902544597,1000080350
03.10.2022,ENVIRONMENT AND LEISURE,VALLEY PROVINCIAL GROUP LLP,"-2,875.00",CAPITAL PS (LEISURE),CONSTRUCTION FEES  - EXTERNAL,5902545563,3000001895
03.10.2022,ENVIRONMENT AND LEISURE,VALLEY PROVINCIAL GROUP LLP,"2,875.00",CAPITAL PS (LEISURE),CONSTRUCTION FEES  - EXTERNAL,5902545016,3000001895
03.10.2022,HOUSING HRA,SILVER DCC LTD,772.84,CAPITAL PS (HRA),CONSTRUCTION FEES  - EXTERNAL,5902545317,1000087546
03.10.2022,HOUSING HRA,SILVER DCC LTD,"1,190.91",CAPITAL PS (HRA),CONSTRUCTION FEES  - EXTERNAL,5902544803,1000087546
03.10.2022,HOUSING HRA,SILVER DCC LTD,"1,225.90",CAPITAL PS (HRA),CONSTRUCTION FEES  - EXTERNAL,5902544711,1000087546
03.10.2022,HOUSING HRA,SILVER DCC LTD,"1,315.18",CAPITAL PS (HRA),CONSTRUCTION FEES  - EXTERNAL,5902544531,1000087546
03.10.2022,HOUSING HRA,SILVER DCC LTD,"1,469.30",CAPITAL PS (HRA),CONSTRUCTION FEES  - EXTERNAL,5902544795,1000087546
03.10.2022,HOUSING HRA,MACCREANOR LAVINGTON LTD,"32,370.00",CAPITAL PS (HRA),CONSTRUCTION FEES - ARCHITECT,5902544379,1000075874
03.10.2022,HOUSING HRA,FAITHFUL & GOULD,"2,835.50",CAPITAL PS (REGEN),CONSTRUCTION FEES - EMPLOYERS AGENT,5902544609,1000061390
03.10.2022,HOUSING HRA,FAITHFUL & GOULD,"12,181.50",CAPITAL PS (REGEN),CONSTRUCTION FEES - EMPLOYERS AGENT,5902544609,1000061390
03.10.2022,LEISURE DIRECTORATE,NPOWER LTD,264.99,BURGESS AREA TEAM,ELECTRICITY,5902544603,1000078994
03.10.2022,LEISURE DIRECTORATE,NPOWER LTD,521.22,BURGESS AREA TEAM,ELECTRICITY,5902544602,1000078994
03.10.2022,LEISURE DIRECTORATE,NPOWER LTD,"1,183.99",BURGESS AREA TEAM,ELECTRICITY,5902544598,1000078994
03.10.2022,LEISURE DIRECTORATE,NPOWER LTD,371.85,CEMETERIES,ELECTRICITY,5902544977,1000078994
03.10.2022,LEISURE DIRECTORATE,NPOWER LTD,492.08,DULWICH AREA TEAM,ELECTRICITY,5902544712,1000078994
03.10.2022,LEISURE DIRECTORATE,NPOWER LTD,538.83,DULWICH AREA TEAM,ELECTRICITY,5902544715,1000078994
03.10.2022,LEISURE DIRECTORATE,DFP GLOBAL LTD,415.00,SDM BUDGET,MATERIALS,5902545069,1000077661
03.10.2022,LEISURE DIRECTORATE,NPOWER LTD,254.16,SOUTHWARK AREA TEAM,ELECTRICITY,5902544586,1000078994
03.10.2022,LEISURE DIRECTORATE,THE BOWLES ORGANISATION LTD,"1,519.25",TREES O'HEADS,OTHER EMPLOYEE EXPENSES,5902544783,1000088169
03.10.2022,PUBLIC HEALTH,SKYWAY,"1,584.00",HOLIDAY ACTIVITIES & FOOD,EXTERNAL AGENCIES AND BODIES,5902544540,1000069595
03.10.2022,RESIDENT SERVICES,KENT COUNTY COUNCIL - LASER,657.92,PECKHAM,ELECTRICITY,5902544328,1000012926
03.10.2022,SBS OPERATIONS,AKW MEDI-CARE LTD,355.81,SBS AIDS AND ADAPTATIONS,MATERIALS,5902545261,1000047103
04.10.2022,ADULT SOCIAL CARE,THE DRIVE CARE HOMES LTD,"14,393.10",DISABILITIES LAC,EXTERNAL AGENCIES AND BODIES,2103566836,1000003889
04.10.2022,ADULT SOCIAL CARE,MEDEQUIP ASSISTIVE TECHNOLOGY LTD,333.02,ICES CONTRACT,EQUIPMENT PURCHASE & REPAIR,5902545428,1000062775
04.10.2022,ADULT SOCIAL CARE,MEDEQUIP ASSISTIVE TECHNOLOGY LTD,"170,885.08",ICES CONTRACT,EQUIPMENT PURCHASE & REPAIR,5902545431,1000062775
04.10.2022,ADULT SOCIAL CARE,MULTI-ACTIVITY CENTER,"1,812.80",LD LTS 18-64,DAYCARE,2103566941,1000087749
04.10.2022,ADULT SOCIAL CARE,MEDACS HOMECARE,296.64,LD LTS 18-64,HOMECARE - C&V,2103566868,11287415
04.10.2022,ADULT SOCIAL CARE,MEDACS HOMECARE,"1,103.13",LD LTS 18-64,SUPPORTED LIVING,2103566821,11287415
04.10.2022,ADULT SOCIAL CARE,INSPIRE SUPPORT WORKERS LTD,432.00,LD LTS 18-64,SUPPORTED LIVING,2103566938,1000080725
04.10.2022,ADULT SOCIAL CARE,INSPIRE SUPPORT WORKERS LTD,"7,700.00",LD LTS 18-64,SUPPORTED LIVING,2103566906,1000080725
04.10.2022,ADULT SOCIAL CARE,ABBEYS CARE SUPPORT AND TRAINING LTD,"30,840.08",LD LTS 18-64,SUPPORTED LIVING,2103566686,1000086177
04.10.2022,ADULT SOCIAL CARE,SERVESOUL LTD,400.56,MEM LTS 65+,HOMECARE - SPOT,2103566885,1000081503
04.10.2022,ADULT SOCIAL CARE,SERVESOUL LTD,400.56,MEM LTS 65+,HOMECARE - SPOT,2103566892,1000081503
04.10.2022,ADULT SOCIAL CARE,SERVESOUL LTD,400.56,MEM LTS 65+,HOMECARE - SPOT,2103566899,1000081503
04.10.2022,ADULT SOCIAL CARE,SERVESOUL LTD,400.56,MEM LTS 65+,HOMECARE - SPOT,2103566901,1000081503
04.10.2022,ADULT SOCIAL CARE,MEDACS HOMECARE,301.88,MH LTS 18-64,HOMECARE - C&V,2103566826,11287415
04.10.2022,ADULT SOCIAL CARE,INSPIRE SUPPORT WORKERS LTD,"1,813.00",MH LTS 65+,SUPPORTED LIVING,2103566875,1000080725
04.10.2022,ADULT SOCIAL CARE,MEDACS HOMECARE,414.19,MH STS 65+,HOMECARE - IC,2103566828,11287415
04.10.2022,ADULT SOCIAL CARE,SWK DISABLEMENT ASSN,"20,000.00",OLDER PEOPLES HUBS,EXTERNAL AGENCIES AND BODIES,5902545468,1000011698
04.10.2022,ADULT SOCIAL CARE,LONDON CARE LTD,"1,171.80",PHY LTS 18-64,HOMECARE - C&V,2103566934,1000003398
04.10.2022,ADULT SOCIAL CARE,SERVESOUL LTD,484.01,PHY LTS 18-64,HOMECARE - SPOT,2103566880,1000081503
04.10.2022,ADULT SOCIAL CARE,SERVESOUL LTD,484.01,PHY LTS 18-64,HOMECARE - SPOT,2103566881,1000081503
04.10.2022,ADULT SOCIAL CARE,SERVESOUL LTD,484.01,PHY LTS 18-64,HOMECARE - SPOT,2103566884,1000081503
04.10.2022,ADULT SOCIAL CARE,SERVESOUL LTD,484.01,PHY LTS 18-64,HOMECARE - SPOT,2103566898,1000081503
04.10.2022,ADULT SOCIAL CARE,MEDACS HOMECARE,320.00,PHY LTS 65+,HOMECARE - C&V,2103566810,11287415
04.10.2022,ADULT SOCIAL CARE,MEDACS HOMECARE,396.54,PHY LTS 65+,HOMECARE - C&V,2103566869,11287415
04.10.2022,ADULT SOCIAL CARE,MEDACS HOMECARE,615.20,PHY LTS 65+,HOMECARE - C&V,2103566861,11287415
04.10.2022,ADULT SOCIAL CARE,MEDACS HOMECARE,755.85,PHY LTS 65+,HOMECARE - C&V,2103566870,11287415
04.10.2022,ADULT SOCIAL CARE,MEDACS HOMECARE,851.76,PHY LTS 65+,HOMECARE - C&V,2103566842,11287415
04.10.2022,ADULT SOCIAL CARE,MEDACS HOMECARE,"1,183.14",PHY LTS 65+,HOMECARE - C&V,2103566866,11287415
04.10.2022,ADULT SOCIAL CARE,MEDACS HOMECARE,"1,250.40",PHY LTS 65+,HOMECARE - C&V,2103566813,11287415
04.10.2022,ADULT SOCIAL CARE,MEDACS HOMECARE,"2,368.71",PHY LTS 65+,HOMECARE - C&V,2103566818,11287415
04.10.2022,ADULT SOCIAL CARE,MEDACS HOMECARE,"2,784.94",PHY LTS 65+,HOMECARE - C&V,2103566817,11287415
04.10.2022,ADULT SOCIAL CARE,MEDACS HOMECARE,"3,210.03",PHY LTS 65+,HOMECARE - C&V,2103566872,11287415
04.10.2022,ADULT SOCIAL CARE,MEDACS HOMECARE,"4,293.48",PHY LTS 65+,HOMECARE - C&V,2103566867,11287415
04.10.2022,ADULT SOCIAL CARE,LONDON CARE LTD,931.22,PHY LTS 65+,HOMECARE - C&V,2103566831,1000003398
04.10.2022,ADULT SOCIAL CARE,LONDON CARE LTD,"1,029.26",PHY LTS 65+,HOMECARE - C&V,2103566832,1000003398
04.10.2022,ADULT SOCIAL CARE,BLISSETT CARE LTD,726.15,PHY LTS 65+,HOMECARE - C&V,2103566857,1000042627
04.10.2022,ADULT SOCIAL CARE,BLISSETT CARE LTD,"1,088.05",PHY LTS 65+,HOMECARE - C&V,2103566856,1000042627
04.10.2022,ADULT SOCIAL CARE,SERVESOUL LTD,279.56,PHY LTS 65+,HOMECARE - SPOT,2103566891,1000081503
04.10.2022,ADULT SOCIAL CARE,MEDACS HOMECARE,573.66,PHY STS 65+,HOMECARE - IC,2103566862,11287415
04.10.2022,ADULT SOCIAL CARE,MEDACS HOMECARE,811.98,PHY STS 65+,HOMECARE - IC,2103566863,11287415
04.10.2022,ADULT SOCIAL CARE,MEDACS HOMECARE,990.18,PHY STS 65+,HOMECARE - IC,2103566865,11287415
04.10.2022,ADULT SOCIAL CARE,MEDACS HOMECARE,"4,144.08",PHY STS 65+,HOMECARE - IC,2103566811,11287415
04.10.2022,ADULT SOCIAL CARE,SAGECARE LTD,295.70,PHY STS 65+,HOMECARE - IC,2103566853,1000080924
04.10.2022,ADULT SOCIAL CARE,SOUTHSIDE PARTNERSHIP LTD,"60,917.07",S75 SUPHSG SCH LBS LEAD,EXTERNAL AGENCIES AND BODIES,5902545422,1716624
04.10.2022,ADULT SOCIAL CARE,BLISSETT CARE LTD,498.20,SEN LTS 65+,HOMECARE - C&V,2103566858,1000042627
04.10.2022,ADULT SOCIAL CARE,MEDACS HOMECARE,808.50,SOCIAL ISOLATION,HOMECARE - C&V,2103566816,11287415
04.10.2022,ADULT SOCIAL CARE,CONTACT PROFESSIONALS,360.80,SPECIALIST CARE,SECTION 17 PAYMENTS TO AGENCIES/CARERS,2103566928,1000057263
04.10.2022,ADULT SOCIAL CARE,REDACTED PERSONAL DATA,798.00,SUB LTS 18-64,DAYCARE,REDACTED,REDACTED
04.10.2022,ASSET MANAGEMENT,ARMINA LTD,"1,574.34",DISREPAIR,BUILDING R&M,2103566950,3000002121
04.10.2022,ASSET MANAGEMENT,ARMINA LTD,"3,086.86",DISREPAIR,BUILDING R&M,2103566945,3000002121
04.10.2022,ASSET MANAGEMENT,P G ASHTON & SONS (SURVEYORS) LTD,334.00,DISREPAIR,PAYMENTS FOR LEGAL SERVICES,2103566804,1000031328
04.10.2022,ASSET MANAGEMENT,AWH LEGAL LTD,"4,166.67",DISREPAIR,PAYMENTS FOR LEGAL SERVICES,2103566786,1000082134
04.10.2022,ASSET MANAGEMENT,ISLINGTON LAW CENTRE,"2,321.15",DISREPAIR,PAYMENTS FOR LEGAL SERVICES,2103566808,1000083525
04.10.2022,ASSET MANAGEMENT,SJS LEGAL LTD,"8,958.33",DISREPAIR,PAYMENTS FOR LEGAL SERVICES,2103566789,1000083821
04.10.2022,ASSET MANAGEMENT,SATCHELL MORAN SOLICITORS LTD,"3,333.33",DISREPAIR,PAYMENTS FOR LEGAL SERVICES,2103566791,1000087281
04.10.2022,ASSET MANAGEMENT,SATCHELL MORAN SOLICITORS LTD,"4,083.33",DISREPAIR,PAYMENTS FOR LEGAL SERVICES,2103566800,1000087281
04.10.2022,ASSET MANAGEMENT,COYNE LEARMONTH (CROSBY) LIMITED,"1,166.67",DISREPAIR,PAYMENTS FOR LEGAL SERVICES,2103566777,1000088221
04.10.2022,ASSET MANAGEMENT,MCDERMOTT SMITH  LAW LTD,"3,333.33",DISREPAIR,PAYMENTS FOR LEGAL SERVICES,2103566778,1000088449
04.10.2022,ASSET MANAGEMENT,MCDERMOTT SMITH  LAW LTD,"3,333.33",DISREPAIR,PAYMENTS FOR LEGAL SERVICES,2103566793,1000088449
04.10.2022,ASSET MANAGEMENT,MCDERMOTT SMITH  LAW LTD,"4,583.33",DISREPAIR,PAYMENTS FOR LEGAL SERVICES,2103566801,1000088449
04.10.2022,ASSET MANAGEMENT,ABS LAWYERS LIMITED,"6,250.00",DISREPAIR,PAYMENTS FOR LEGAL SERVICES,2103566795,1000088808
04.10.2022,ASSET MANAGEMENT,ANTONY HODARI  SOLICITORS,"1,000.00",DISREPAIR,PAYMENTS FOR LEGAL SERVICES,2103566799,1000031040
04.10.2022,ASSET MANAGEMENT,ANTONY HODARI  SOLICITORS,"1,841.67",DISREPAIR,PAYMENTS FOR LEGAL SERVICES,2103566790,1000031040
04.10.2022,ASSET MANAGEMENT,ANTONY HODARI  SOLICITORS,"2,366.67",DISREPAIR,PAYMENTS FOR LEGAL SERVICES,2103566771,1000031040
04.10.2022,ASSET MANAGEMENT,ANTONY HODARI  SOLICITORS,"2,916.67",DISREPAIR,PAYMENTS FOR LEGAL SERVICES,2103566809,1000031040
04.10.2022,ASSET MANAGEMENT,ANTONY HODARI  SOLICITORS,"4,791.67",DISREPAIR,PAYMENTS FOR LEGAL SERVICES,2103566788,1000031040
04.10.2022,ASSET MANAGEMENT,ANTHONY GOLD SOLICITORS,"2,916.67",DISREPAIR,PAYMENTS FOR LEGAL SERVICES,2103566802,1000050198
04.10.2022,ASSET MANAGEMENT,ANTHONY GOLD SOLICITORS,"6,666.67",DISREPAIR,PAYMENTS FOR LEGAL SERVICES,2103566803,1000050198
04.10.2022,ASSET MANAGEMENT,ANTHONY GOLD SOLICITORS,"20,833.33",DISREPAIR,PAYMENTS FOR LEGAL SERVICES,2103566770,1000050198
04.10.2022,ASSET MANAGEMENT,DRISCOLL KINGSTON SOLICITORS,"2,083.33",DISREPAIR,PAYMENTS FOR LEGAL SERVICES,2103566792,1000082357
04.10.2022,ASSET MANAGEMENT,CURTIS SOLICITORS LTD,625.00,DISREPAIR,PAYMENTS FOR LEGAL SERVICES,2103566805,1000083234
04.10.2022,ASSET MANAGEMENT,CURTIS SOLICITORS LTD,"1,041.67",DISREPAIR,PAYMENTS FOR LEGAL SERVICES,2103566806,1000083234
04.10.2022,ASSET MANAGEMENT,BARNES SOLICITORS LLP,"3,333.33",DISREPAIR,PAYMENTS FOR LEGAL SERVICES,2103566797,1000083820
04.10.2022,ASSET MANAGEMENT,BARNES SOLICITORS LLP,"3,541.67",DISREPAIR,PAYMENTS FOR LEGAL SERVICES,2103566779,1000083820
04.10.2022,ASSET MANAGEMENT,BARNES SOLICITORS LLP,"3,958.33",DISREPAIR,PAYMENTS FOR LEGAL SERVICES,2103566782,1000083820
04.10.2022,ASSET MANAGEMENT,SBW  LAW,"2,333.33",DISREPAIR,PAYMENTS FOR LEGAL SERVICES,2103566773,1000085191
04.10.2022,ASSET MANAGEMENT,BOND TURNER  SOLICITORS,333.33,DISREPAIR,PAYMENTS FOR LEGAL SERVICES,2103566807,1000085362
04.10.2022,ASSET MANAGEMENT,BOND TURNER  SOLICITORS,541.67,DISREPAIR,PAYMENTS FOR LEGAL SERVICES,2103566784,1000085362
04.10.2022,ASSET MANAGEMENT,BOND TURNER  SOLICITORS,"3,933.82",DISREPAIR,PAYMENTS FOR LEGAL SERVICES,2103566785,1000085362
04.10.2022,ASSET MANAGEMENT,MJV & CO  SOLICITORS LTD,"4,166.67",DISREPAIR,PAYMENTS FOR LEGAL SERVICES,2103566796,1000086326
04.10.2022,ASSET MANAGEMENT,MJV & CO  SOLICITORS LTD,"4,375.00",DISREPAIR,PAYMENTS FOR LEGAL SERVICES,2103566774,1000086326
04.10.2022,ASSET MANAGEMENT,IMPERIUM LAW  SOLICITORS,"2,500.00",DISREPAIR,PAYMENTS FOR LEGAL SERVICES,2103566794,1000086655
04.10.2022,ASSET MANAGEMENT,IMPERIUM LAW  SOLICITORS,"4,876.67",DISREPAIR,PAYMENTS FOR LEGAL SERVICES,2103566772,1000086655
04.10.2022,ASSET MANAGEMENT,VERITAS  SOLICITORS,"2,083.33",DISREPAIR,PAYMENTS FOR LEGAL SERVICES,2103566776,1000088269
04.10.2022,ASSET MANAGEMENT,VERITAS  SOLICITORS,"5,208.33",DISREPAIR,PAYMENTS FOR LEGAL SERVICES,2103566798,1000088269
04.10.2022,ASSET MANAGEMENT,VERITAS  SOLICITORS,"5,416.67",DISREPAIR,PAYMENTS FOR LEGAL SERVICES,2103566775,1000088269
04.10.2022,ASSET MANAGEMENT,FRANKHAM CONSULTANCY GROUP LTD,"12,435.00",MAJOR REPAIRS,BUILDING R&M,5902545511,1000043952
04.10.2022,CENTRAL FUNCTIONS,BRESLIN CONSTRUCTION LTD,"1,650.00",COMMERCIAL PROPERTIES,BUILDING R&M,2103566942,3000001948
04.10.2022,CENTRAL FUNCTIONS,INNER PIECES LTD,"2,000.00",GAINS/LOSSES I & E,PROFESSIONAL FEES,5902545424,1000087101
04.10.2022,CHILDREN AND ADULT,CBS MAINTENANCE SERVICES LTD,"141,057.81",CAPITAL PS (EDUCATION),CONSTRUCTION,2103566947,3000001518
04.10.2022,CHILDREN AND ADULT,SHARPE PRITCHARD LLP,349.50,CAPITAL PS (EDUCATION),CONSTRUCTION FEES - INTERNAL,5902545376,1790085
04.10.2022,CHILDREN AND ADULT,SHARPE PRITCHARD LLP,392.50,CAPITAL PS (EDUCATION),CONSTRUCTION FEES - INTERNAL,5902545378,1790085
04.10.2022,CHILDREN AND FAMILIES,NORTHUMBERLAND COUNTY COUNCIL,468.00,CHILDREN�S RESID,OTHER PAYMENTS FOR CLIENTS,2103566835,1000030424
04.10.2022,CHILDREN AND FAMILIES,247 BLUEBELL CARE LIMITED,"35,534.58",CHILDREN�S RESID,RESIDENTIAL CARE,2103566833,1000087186
04.10.2022,CHILDREN AND FAMILIES,JURITA LTD,"3,382.14",CHILDREN�S RESID,RESIDENTIAL CARE,2103566834,1000088813
04.10.2022,CHILDREN AND FAMILIES,CHANCE FURTHER SUPPORT CIC,"8,357.40",FAMILY ASSESSMENTS,RESIDENTIAL CARE,2103566925,1000085852
04.10.2022,CHILDREN AND FAMILIES,GREATER LONDON FOSTERING,"1,370.88",FRIENDS & FAMILY FOSTERING,EXTERNAL AGENCIES AND BODIES,2103566909,1000029184
04.10.2022,CHILDREN AND FAMILIES,GREATER LONDON FOSTERING,"3,420.00",FRIENDS & FAMILY FOSTERING,EXTERNAL AGENCIES AND BODIES,2103566847,1000029184
04.10.2022,CHILDREN AND FAMILIES,GREATER LONDON FOSTERING,"3,639.00",FRIENDS & FAMILY FOSTERING,EXTERNAL AGENCIES AND BODIES,2103566849,1000029184
04.10.2022,CHILDREN AND FAMILIES,GREATER LONDON FOSTERING,"3,639.00",FRIENDS & FAMILY FOSTERING,EXTERNAL AGENCIES AND BODIES,2103566851,1000029184
04.10.2022,CHILDREN AND FAMILIES,GREATER LONDON FOSTERING,"4,495.50",FRIENDS & FAMILY FOSTERING,EXTERNAL AGENCIES AND BODIES,2103566848,1000029184
04.10.2022,CHILDREN AND FAMILIES,GREATER LONDON FOSTERING,"4,944.00",FRIENDS & FAMILY FOSTERING,EXTERNAL AGENCIES AND BODIES,2103566850,1000029184
04.10.2022,CHILDREN AND FAMILIES,KASPER FOSTERING,"3,399.90",FRIENDS & FAMILY FOSTERING,EXTERNAL AGENCIES AND BODIES,2103566910,1000036628
04.10.2022,CHILDREN AND FAMILIES,KASPER FOSTERING,"4,490.70",FRIENDS & FAMILY FOSTERING,EXTERNAL AGENCIES AND BODIES,2103566907,1000036628
04.10.2022,CHILDREN AND FAMILIES,FOSTERING LONDON LTD,"4,928.40",FRIENDS & FAMILY FOSTERING,EXTERNAL AGENCIES AND BODIES,2103566839,1000077541
04.10.2022,CHILDREN AND FAMILIES,FOSTERING LONDON LTD,"8,080.00",FRIENDS & FAMILY FOSTERING,EXTERNAL AGENCIES AND BODIES,2103566841,1000077541
04.10.2022,CHILDREN AND FAMILIES,FAMILY FIRST FOSTERING LTD,"3,697.50",FRIENDS & FAMILY FOSTERING,EXTERNAL AGENCIES AND BODIES,2103566837,1000080631
04.10.2022,CHILDREN AND FAMILIES,FAMILY WORKS FOSTERING LTD,"6,072.90",FRIENDS & FAMILY FOSTERING,EXTERNAL AGENCIES AND BODIES,2103566840,1000082529
04.10.2022,CHILDREN AND FAMILIES,CARING HEARTS FOSTERING,"3,428.70",FRIENDS & FAMILY FOSTERING,EXTERNAL AGENCIES AND BODIES,2103566838,1000087065
04.10.2022,CHILDREN AND FAMILIES,CARING HEARTS FOSTERING,"3,428.70",FRIENDS & FAMILY FOSTERING,EXTERNAL AGENCIES AND BODIES,2103566873,1000087065
04.10.2022,CHILDREN AND FAMILIES,NURTURE FOSTERING LTD,"7,714.28",FRIENDS & FAMILY FOSTERING,EXTERNAL AGENCIES AND BODIES,2103566908,1000088623
04.10.2022,CHILDREN AND FAMILIES,REDACTED PERSONAL DATA,360.00,NEW ASF,EXTERNAL AGENCIES AND BODIES,REDACTED,REDACTED
04.10.2022,CHILDREN AND FAMILIES,READY STEADY MOVE LTD,380.00,P & R CARE TEAM,OTHER PAYMENTS FOR CLIENTS,2103566926,1000060084
04.10.2022,CHILDREN AND FAMILIES,SYDNEY CARE LTD,"5,142.85",SEMI-IND CARELEAVERS,EXTERNAL AGENCIES AND BODIES,2103566916,1000081598
04.10.2022,CHILDREN AND FAMILIES,MOXIE GIBSON CONSULTANCY & TRAINING LTD,"24,222.00",SEMI-IND CARELEAVERS,EXTERNAL AGENCIES AND BODIES,2103566845,1000087505
04.10.2022,CHILDREN AND FAMILIES,MOXIE GIBSON CONSULTANCY & TRAINING LTD,612.40,SEMI-IND CARELEAVERS,OTHER PAYMENTS FOR CLIENTS,2103566844,1000087505
04.10.2022,CHILDREN AND FAMILIES,SYDNEY CARE LTD,"7,367.14",SEMI-IND LAC 16-17,EXTERNAL AGENCIES AND BODIES,2103566914,1000081598
04.10.2022,CHILDREN AND FAMILIES,DREAMFO HOUSING LTD,"3,214.28",SEMI-IND LAC 16-17,EXTERNAL AGENCIES AND BODIES,2103566911,1000087273
04.10.2022,CHILDREN AND FAMILIES,DREAMFO HOUSING LTD,"3,471.30",SEMI-IND LAC 16-17,EXTERNAL AGENCIES AND BODIES,2103566915,1000087273
04.10.2022,CHILDREN AND FAMILIES,SYDNEY CARE LTD,257.14,SEMI-IND LAC 16-17,OTHER PAYMENTS FOR CLIENTS,2103566913,1000081598
04.10.2022,CHILDREN AND FAMILIES,DREAMFO HOUSING LTD,257.02,SEMI-IND LAC 16-17,OTHER PAYMENTS FOR CLIENTS,2103566912,1000087273
04.10.2022,CHILDREN AND FAMILIES,BANYA FAMILY PLACEMENT AGENCY LTD,"1,857.14",STAYPUT- FOST CARERS,EXTERNAL AGENCIES AND BODIES,2103566923,11328315
04.10.2022,CHILDREN AND FAMILIES,BANYA FAMILY PLACEMENT AGENCY LTD,"2,142.86",STAYPUT- FOST CARERS,EXTERNAL AGENCIES AND BODIES,2103566917,11328315
04.10.2022,CHILDREN AND FAMILIES,BANYA FAMILY PLACEMENT AGENCY LTD,"2,142.86",STAYPUT- FOST CARERS,EXTERNAL AGENCIES AND BODIES,2103566921,11328315
04.10.2022,CHILDREN AND FAMILIES,BANYA FAMILY PLACEMENT AGENCY LTD,"2,214.28",STAYPUT- FOST CARERS,EXTERNAL AGENCIES AND BODIES,2103566924,11328315
04.10.2022,CHILDREN AND FAMILIES,BANYA FAMILY PLACEMENT AGENCY LTD,"2,214.29",STAYPUT- FOST CARERS,EXTERNAL AGENCIES AND BODIES,2103566919,11328315
04.10.2022,CHILDREN AND FAMILIES,BANYA FAMILY PLACEMENT AGENCY LTD,"2,214.29",STAYPUT- FOST CARERS,EXTERNAL AGENCIES AND BODIES,2103566920,11328315
04.10.2022,CHILDREN AND FAMILIES,GREATER LONDON FOSTERING,"1,821.30",STAYPUT- FOST CARERS,EXTERNAL AGENCIES AND BODIES,2103566846,1000029184
04.10.2022,CHILDREN AND FAMILIES,GREATER LONDON FOSTERING,"2,142.60",STAYPUT- FOST CARERS,EXTERNAL AGENCIES AND BODIES,2103566843,1000029184
04.10.2022,CHILDREN AND FAMILIES,OWNLIFE LTD,"2,700.00",UASC CARELEAVERS,EXTERNAL AGENCIES AND BODIES,2103566918,1000056219
04.10.2022,CHILDREN AND FAMILIES,DREAMFO HOUSING LTD,"3,471.30",UASC CARELEAVERS,EXTERNAL AGENCIES AND BODIES,2103566922,1000087273
04.10.2022,COMMISSIONING & CENTRAL,CAPITA BUSINESS SERVICES LTD,"4,500.00",C&AS SYSTEMS TEAM,PROFESSIONAL FEES,5902545502,1000006291
04.10.2022,COMMISSIONING & CENTRAL,CAPITA BUSINESS SERVICES LTD,"4,500.00",C&AS SYSTEMS TEAM,PROFESSIONAL FEES,5902545502,1000006291
04.10.2022,COMMISSIONING & CENTRAL,CAPITA BUSINESS SERVICES LTD,"5,400.00",C&AS SYSTEMS TEAM,PROFESSIONAL FEES,5902545502,1000006291
04.10.2022,COMMISSIONING & CENTRAL,SHARPE PRITCHARD LLP,869.00,"QUALITY, PERFORMANCE AND TRANSFORMATION",OFFICE EXPENSES,5902545520,1790085
04.10.2022,COMMISSIONING & CENTRAL,SHARPE PRITCHARD LLP,"2,996.90","QUALITY, PERFORMANCE AND TRANSFORMATION",OFFICE EXPENSES,5902545514,1790085
04.10.2022,COMMUNITIES,KOREO LIMITED,"2,750.00",COMMUNITIES PROJECTS,PROFESSIONAL FEES,2103566685,1000088680
04.10.2022,COMMUNITIES,MEDACS HOMECARE,296.64,NO RECOURSE TO PUBLIC FUNDS,HOMECARE - C&V,2103566830,11287415
04.10.2022,COMMUNITIES,JOYMAC CARE LTD,640.00,NO RECOURSE TO PUBLIC FUNDS,HOMECARE - C&V,2103566876,1000088577
04.10.2022,COMMUNITIES,JOYMAC CARE LTD,"1,280.00",NO RECOURSE TO PUBLIC FUNDS,HOMECARE - C&V,2103566877,1000088577
04.10.2022,COMMUNITY HOUSING SERVICES (HGF),KINLEIGH FOLKARD AND HAYWARD,"4,820.19",HOMELESS PROJECTS,GRANTS,5902545497,1000084596
04.10.2022,CUSTOMER EXPERIENCE HGF,LINCOLN CITY COUNCIL,"45,000.00",DIGITAL DELIVERY,COMPUTER MAINTENANCE,5902545387,11233153
04.10.2022,CUSTOMER EXPERIENCE HGF,LONDON COUNCILS,"30,000.00",IT MANAGEMENT,COMMS & COMPUTING CONTRACT CHARGES,5902545377,11237079
04.10.2022,CUSTOMER EXPERIENCE HGF,VIRGIN MEDIA,315.00,SHARED SERVICES,COMMS & COMPUTING CONTRACT CHARGES,5902545379,1000026457
04.10.2022,CUSTOMER EXPERIENCE HGF,VIRGIN MEDIA,503.30,SHARED SERVICES,COMMS & COMPUTING CONTRACT CHARGES,5902545400,1000026457
04.10.2022,CUSTOMER EXPERIENCE HGF,VIRGIN MEDIA,"1,040.00",SHARED SERVICES,COMMS & COMPUTING CONTRACT CHARGES,5902545381,1000026457
04.10.2022,CUSTOMER EXPERIENCE HGF,VIRGIN MEDIA,"7,162.77",SHARED SERVICES,COMMS & COMPUTING CONTRACT CHARGES,5902545396,1000026457
04.10.2022,CUSTOMER EXPERIENCE HGF,VIRGIN MEDIA,"12,348.70",SHARED SERVICES,COMMS & COMPUTING CONTRACT CHARGES,5902545380,1000026457
04.10.2022,DSG,EVELYN GRACE ACADEMY,"5,230.77",AC & FREE - MSTREAM,STATEMENTED FEES,2103566698,1000073177
04.10.2022,DSG,EVELYN GRACE ACADEMY,"12,000.00",AC & FREE - MSTREAM,STATEMENTED FEES,2103566699,1000073177
04.10.2022,DSG,ALFRED SALTER PRIMARY SCHOOL,"1,012.00",EY SENDIF,STATEMENTED FEES,2103566726,5001000005
04.10.2022,DSG,JOHN RUSKIN PRIMARY SCHOOL,"1,012.00",EY SENDIF,STATEMENTED FEES,2103566756,5001000040
04.10.2022,DSG,KINTORE WAY CHILDRENS CENTRE,333.00,EY SENDIF,STATEMENTED FEES,2103566748,5001000047
04.10.2022,DSG,KINTORE WAY CHILDRENS CENTRE,333.00,EY SENDIF,STATEMENTED FEES,2103566749,5001000047
04.10.2022,DSG,KINTORE WAY CHILDRENS CENTRE,396.00,EY SENDIF,STATEMENTED FEES,2103566730,5001000047
04.10.2022,DSG,KINTORE WAY CHILDRENS CENTRE,"1,012.00",EY SENDIF,STATEMENTED FEES,2103566727,5001000047
04.10.2022,DSG,KINTORE WAY CHILDRENS CENTRE,"1,012.00",EY SENDIF,STATEMENTED FEES,2103566728,5001000047
04.10.2022,DSG,KINTORE WAY CHILDRENS CENTRE,"1,012.00",EY SENDIF,STATEMENTED FEES,2103566729,5001000047
04.10.2022,DSG,KINTORE WAY CHILDRENS CENTRE,"1,012.00",EY SENDIF,STATEMENTED FEES,2103566739,5001000047
04.10.2022,DSG,KINTORE WAY CHILDRENS CENTRE,"1,012.00",EY SENDIF,STATEMENTED FEES,2103566747,5001000047
04.10.2022,DSG,KINTORE WAY CHILDRENS CENTRE,"1,012.00",EY SENDIF,STATEMENTED FEES,2103566750,5001000047
04.10.2022,DSG,KINTORE WAY CHILDRENS CENTRE,"1,012.00",EY SENDIF,STATEMENTED FEES,2103566751,5001000047
04.10.2022,DSG,KINTORE WAY CHILDRENS CENTRE,"1,012.00",EY SENDIF,STATEMENTED FEES,2103566752,5001000047
04.10.2022,DSG,KINTORE WAY CHILDRENS CENTRE,"1,012.00",EY SENDIF,STATEMENTED FEES,2103566753,5001000047
04.10.2022,DSG,KINTORE WAY CHILDRENS CENTRE,"1,012.00",EY SENDIF,STATEMENTED FEES,2103566754,5001000047
04.10.2022,DSG,KINTORE WAY CHILDRENS CENTRE,"1,012.00",EY SENDIF,STATEMENTED FEES,2103566755,5001000047
04.10.2022,DSG,PILGRIM'S WAY PRIMARY SCHOOL,333.33,EY SENDIF,STATEMENTED FEES,2103566719,5001000054
04.10.2022,DSG,PILGRIM'S WAY PRIMARY SCHOOL,333.33,EY SENDIF,STATEMENTED FEES,2103566721,5001000054
04.10.2022,DSG,PILGRIM'S WAY PRIMARY SCHOOL,333.33,EY SENDIF,STATEMENTED FEES,2103566722,5001000054
04.10.2022,DSG,PILGRIM'S WAY PRIMARY SCHOOL,333.33,EY SENDIF,STATEMENTED FEES,2103566723,5001000054
04.10.2022,DSG,PILGRIM'S WAY PRIMARY SCHOOL,333.34,EY SENDIF,STATEMENTED FEES,2103566720,5001000054
04.10.2022,DSG,PILGRIM'S WAY PRIMARY SCHOOL,333.34,EY SENDIF,STATEMENTED FEES,2103566724,5001000054
04.10.2022,DSG,PILGRIM'S WAY PRIMARY SCHOOL,"1,012.00",EY SENDIF,STATEMENTED FEES,2103566725,5001000054
04.10.2022,DSG,BROADLANDS HALL LIMITED,"2,740.00",INDEP MAINSTREAM,STATEMENTED FEES,2103566697,1000084303
04.10.2022,DSG,PULSE AND WATER LEARNING LTD,"2,534.87",INDEP MAINSTREAM,STATEMENTED FEES,2103566707,1000088000
04.10.2022,DSG,RISE EDUCATION LTD,"15,000.00",NMSS/ INDEP SPECIAL,STATEMENTED FEES,2103566696,1000077642
04.10.2022,DSG,MOOR HOUSE SCHOOL & COLLEGE,"1,205.00",NMSS/ INDEP SPECIAL,STATEMENTED FEES,2103566711,1000080062
04.10.2022,DSG,MOOR HOUSE SCHOOL & COLLEGE,"21,808.67",NMSS/ INDEP SPECIAL,STATEMENTED FEES,2103566710,1000080062
04.10.2022,DSG,SERENITY SCHOOL ELTHAM LTD,"14,632.00",NMSS/ INDEP SPECIAL,STATEMENTED FEES,2103566704,1000088850
04.10.2022,DSG,SERENITY SCHOOL ELTHAM LTD,"19,667.00",NMSS/ INDEP SPECIAL,STATEMENTED FEES,2103566705,1000088850
04.10.2022,DSG,DEPTFORD PARK PRIMARY SCHOOL,"7,487.83",OTHER LA MAINSTREAM,STATEMENTED FEES,2103566703,1000026286
04.10.2022,DSG,WALNUT TREE WALK PRIMARY SCHOOL,"8,061.54",OTHER LA MAINSTREAM,STATEMENTED FEES,2103566713,1000073654
04.10.2022,DSG,WALNUT TREE WALK PRIMARY SCHOOL,"12,000.00",OTHER LA MAINSTREAM,STATEMENTED FEES,2103566714,1000073654
04.10.2022,DSG,DEPTFORD GREEN SCHOOL,"4,841.03",OTHER LA MAINSTREAM,STATEMENTED FEES,2103566701,1000073657
04.10.2022,DSG,DEPTFORD GREEN SCHOOL,"5,907.69",OTHER LA MAINSTREAM,STATEMENTED FEES,2103566700,1000073657
04.10.2022,DSG,CHERRY ORCHARD PRIMARY SCHOOL,"1,575.61",OTHER LA MAINSTREAM,STATEMENTED FEES,2103566715,1000073857
04.10.2022,DSG,HENRY FAWCETT PRIMARY SCHOOL,"8,061.54",OTHER LA MAINSTREAM,STATEMENTED FEES,2103566706,1000077120
04.10.2022,DSG,ST ETHELBERTS CATHOLIC PRIMARY SCHOOL,"5,956.74",OTHER LA MAINSTREAM,STATEMENTED FEES,2103566712,1000079327
04.10.2022,DSG,MARJORIE MCCLURE SCHOOL,"5,755.00",OTHER LA SPECIAL,STATEMENTED FEES,2103566693,1000049215
04.10.2022,DSG,MARJORIE MCCLURE SCHOOL,"5,755.00",OTHER LA SPECIAL,STATEMENTED FEES,2103566694,1000049215
04.10.2022,DSG,MARJORIE MCCLURE SCHOOL,"5,755.00",OTHER LA SPECIAL,STATEMENTED FEES,2103566695,1000049215
04.10.2022,DSG,T4 TRUST T/A WAC ARTS COLLEGE,"19,230.77",OTHER LA SPECIAL,STATEMENTED FEES,2103566690,1000083275
04.10.2022,DSG,T4 TRUST T/A WAC ARTS COLLEGE,"19,230.77",OTHER LA SPECIAL,STATEMENTED FEES,2103566691,1000083275
04.10.2022,DSG,T4 TRUST T/A WAC ARTS COLLEGE,"19,230.77",OTHER LA SPECIAL,STATEMENTED FEES,2103566692,1000083275
04.10.2022,DSG,LONDON BOROUGH OF HAMMERSMITH & FULHAM,"11,042.00",OTHER LA SPECIAL,STATEMENTED FEES,2103566702,1000047234
04.10.2022,DSG,STEPHEN HAWKING SCHOOL,"19,770.92",OTHER LA SPECIAL,STATEMENTED FEES,2103566709,1000071455
04.10.2022,DSG,STEPHEN HAWKING SCHOOL,"19,770.93",OTHER LA SPECIAL,STATEMENTED FEES,2103566708,1000071455
04.10.2022,DSG,NASH COLLEGE,"19,530.28",SPECIALIST POST-16,STATEMENTED FEES,2103566718,1000062581
04.10.2022,DSG,NASH COLLEGE,"19,968.18",SPECIALIST POST-16,STATEMENTED FEES,2103566717,1000062581
04.10.2022,DSG,NASH COLLEGE,"23,439.31",SPECIALIST POST-16,STATEMENTED FEES,2103566716,1000062581
04.10.2022,EDUCATION,TUKE SCHOOL,307.30,SCH TRANS � TRAVEL,OTHER EMPLOYEE EXPENSES,5902545414,5001000097
04.10.2022,ENV & LEIS,CONTEGO SAFETY SOLUTIONS LTD,368.76,MANAGEMENT TEAM,MATERIALS,5902545521,1000077673
04.10.2022,ENV&LEIS,BARKING HAVERING & REDBRIDGE NHS,-581.00,SEXUAL HEALTH - STI,MEDICAL / HEALTH & SAFETY SERVICES,5902523258,1000055047
04.10.2022,ENV&LEIS,BARKING HAVERING & REDBRIDGE NHS,387.27,SEXUAL HEALTH - STI,MEDICAL / HEALTH & SAFETY SERVICES,5902532394,1000055047
04.10.2022,ENV&LEIS,BARKING HAVERING & REDBRIDGE NHS,"1,514.79",SEXUAL HEALTH - STI,MEDICAL / HEALTH & SAFETY SERVICES,5902545440,1000055047
04.10.2022,ENVIRONMENT AND LEISURE,CYCLEHOOP LTD,"3,120.00",CAPITAL PS (LEISURE),CAPITAL GRANTS,5902545435,1000057894
04.10.2022,ENVIRONMENT AND LEISURE,IB CDM LTD,"1,460.00",CAPITAL PS (LEISURE),CONSTRUCTION FEES,5902545525,1000081479
04.10.2022,ENVIRONMENT AND LEISURE,METIS CONSULTANTS LIMITED,"1,674.20",CAPITAL PS (LEISURE),CONSTRUCTION FEES - ENGINEER,5902545489,1000086330
04.10.2022,ENVIRONMENT AND LEISURE,ABI TRAILERS S.R.L,806.61,SDM BUDGET,MATERIALS,6102051822,INTERNATIONAL PAYMENT
04.10.2022,ENVIRONMENT DIRECTORATE,STANFORD & GREEN LIMITED,423.00,COMMERCIAL VEH CTRL A/C,PARKING CHARGES,5902545469,1000088890
04.10.2022,ENVIRONMENT DIRECTORATE,METIS CONSULTANTS LIMITED,"3,800.00",FLOOD RISK MANAGEMENT,HIGHWAYS TERM CONTRACT,5902545443,1000086330
04.10.2022,ENVIRONMENT DIRECTORATE,SPALDINGS (UK) LTD,256.85,GROUNDS MAINTENANCE - GENERAL,MATERIALS,5902545445,1907384
04.10.2022,ENVIRONMENT DIRECTORATE,1ENV SOLUTIONS LTD,"2,572.44",PEST CONTROL,MATERIALS,5902545451,1000075410
04.10.2022,HOUSING,PROPERTY FACILITIES GROUP PLC,"42,865.43",PROPERTY FACILITIES GROUP,I-WORLD CONTRACTORS HOLDING ACCOUNT,2103566948,3000001420
04.10.2022,HOUSING GENERAL FUND,L H BRIDGE LTD,"10,649.00",CAPITAL PS (HOUSING GF),CAPITAL GRANTS,5902545425,1000056928
04.10.2022,HOUSING GENERAL FUND,PLANET TRAINING LIMITED,"1,200.00",CAPITAL PS (HOUSING GF),ICT ACQUISITION,5902545433,1000064733
04.10.2022,HOUSING GENERAL FUND,TPXIMPACT LIMITED,"48,000.00",CAPITAL PS (STRAT SERV),ICT ACQUISITION,5902545393,1000088631
04.10.2022,HOUSING HRA,DUCTCLEAN (UK) LTD,546.86,CAPITAL PS (HRA),CONSTRUCTION,2103566944,3000001635
04.10.2022,HOUSING HRA,CALFORD SEADEN LLP,"1,865.00",CAPITAL PS (HRA),CONSTRUCTION FEES,5902545455,1061592
04.10.2022,HOUSING HRA,CALFORD SEADEN LLP,"1,865.00",CAPITAL PS (HRA),CONSTRUCTION FEES,5902545462,1061592
04.10.2022,HOUSING HRA,CALFORD SEADEN LLP,"5,308.51",CAPITAL PS (HRA),CONSTRUCTION FEES  - EXTERNAL,5902545391,1061592
04.10.2022,HOUSING HRA,STANDAGE & CO LTD,"3,560.00",CAPITAL PS (HRA),CONSTRUCTION FEES  - EXTERNAL,2103566939,4002817
04.10.2022,HOUSING HRA,EQUANS REGENERATION (APOLLO) LTD,"94,741.72",CAPITAL PS (HRA),CONSTRUCTION MAIN CONTRACT -CERTIFICATED,2103566681,4000449
04.10.2022,HOUSING HRA,CARTER JONAS LLP,500.00,CAPITAL PS (HRA),LAND & BUILDINGS ACQUISITION FEES,5902545394,1000073124
04.10.2022,HOUSING HRA,CARTER JONAS LLP,500.00,CAPITAL PS (HRA),LAND & BUILDINGS ACQUISITION FEES,5902545405,1000073124
04.10.2022,HOUSING HRA,CARTER JONAS LLP,700.00,CAPITAL PS (HRA),LAND & BUILDINGS ACQUISITION FEES,5902545405,1000073124
04.10.2022,HOUSING HRA,CARTER JONAS LLP,700.00,CAPITAL PS (HRA),LAND & BUILDINGS ACQUISITION FEES,5902545405,1000073124
04.10.2022,HOUSING HRA,CARTER JONAS LLP,700.00,CAPITAL PS (HRA),LAND & BUILDINGS ACQUISITION FEES,5902545405,1000073124
04.10.2022,HOUSING HRA,CARTER JONAS LLP,700.00,CAPITAL PS (HRA),LAND & BUILDINGS ACQUISITION FEES,5902545405,1000073124
04.10.2022,HOUSING HRA,CARTER JONAS LLP,700.00,CAPITAL PS (HRA),LAND & BUILDINGS ACQUISITION FEES,5902545407,1000073124
04.10.2022,HOUSING HRA,GLOBAL GUARDIANS FACILITIES MANAGEMENT LTD,"2,400.00",CAPITAL PS (REGEN),CONSTRUCTION SITE COSTS,5902545478,1000071841
04.10.2022,HOUSING HRA,GLOBAL GUARDIANS FACILITIES MANAGEMENT LTD,"2,400.00",CAPITAL PS (REGEN),CONSTRUCTION SITE COSTS,5902545479,1000071841
04.10.2022,HOUSING HRA,GLOBAL GUARDIANS FACILITIES MANAGEMENT LTD,"2,400.00",CAPITAL PS (REGEN),CONSTRUCTION SITE COSTS,5902545482,1000071841
04.10.2022,HOUSING HRA,GLOBAL GUARDIANS FACILITIES MANAGEMENT LTD,"2,400.00",CAPITAL PS (REGEN),CONSTRUCTION SITE COSTS,5902545486,1000071841
04.10.2022,HOUSING HRA,GLOBAL GUARDIANS FACILITIES MANAGEMENT LTD,"2,400.00",CAPITAL PS (REGEN),CONSTRUCTION SITE COSTS,5902545490,1000071841
04.10.2022,HR & OT,PSI TALENT MEASUREMENT (UK) LTD,308.00,OCCUPATIONAL ASSESSMENT,GENERAL RECHARGES,5902545477,1000008858
04.10.2022,HR & OT,PSI TALENT MEASUREMENT (UK) LTD,308.00,OCCUPATIONAL ASSESSMENT,GENERAL RECHARGES,5902545491,1000008858
04.10.2022,HR & OT,PSI TALENT MEASUREMENT (UK) LTD,462.00,OCCUPATIONAL ASSESSMENT,GENERAL RECHARGES,5902545471,1000008858
04.10.2022,HR & OT,PSI TALENT MEASUREMENT (UK) LTD,539.00,OCCUPATIONAL ASSESSMENT,GENERAL RECHARGES,5902545483,1000008858
04.10.2022,LEISURE DIRECTORATE,KENT COUNTY COUNCIL - LASER,369.46,BURGESS AREA TEAM,ELECTRICITY,5902545412,1000012926
04.10.2022,LEISURE DIRECTORATE,KENT COUNTY COUNCIL - LASER,477.58,BURGESS AREA TEAM,ELECTRICITY,5902545410,1000012926
04.10.2022,LEISURE DIRECTORATE,KENT COUNTY COUNCIL - LASER,567.98,BURGESS AREA TEAM,ELECTRICITY,5902545409,1000012926
04.10.2022,LEISURE DIRECTORATE,A B KEY LLP,"2,472.78",SDM BUDGET,EQUIPMENT PURCHASE & REPAIR,5902545507,1000036348
04.10.2022,PLANNING AND TRANSPORT,SECURE-A-FIELD LTD,492.30,CHARGEABLE BUILDING CONTROL,OFFICE EXPENSES,5902545464,1000072371
04.10.2022,PLANNING AND TRANSPORT,BUILDING COST INFORMATION SERVICE LTD,812.50,CHARGEABLE BUILDING CONTROL,PROFESSIONAL FEES,5902545461,1000088920
04.10.2022,PLANNING AND TRANSPORT,SOUTHWARK NEWSPAPER LTD,336.00,DEV MGT ADMIN & INCOME,MARKETING & PUBLICITY SERVICES,5902545426,1556957
04.10.2022,PLANNING AND TRANSPORT,SOUTHWARK NEWSPAPER LTD,504.00,DEV MGT ADMIN & INCOME,MARKETING & PUBLICITY SERVICES,5902545447,1556957
04.10.2022,PLANNING AND TRANSPORT,SOUTHWARK NEWSPAPER LTD,840.00,DEV MGT ADMIN & INCOME,MARKETING & PUBLICITY SERVICES,5902545441,1556957
04.10.2022,PLANNING AND TRANSPORT,ATKINS LIMITED,"20,240.50",PLANNING APPEALS AND INQUIRIES,PROFESSIONAL FEES,5902545454,1000088478
04.10.2022,PLANNING AND TRANSPORT,SECURE-A-FIELD LTD,492.30,SUPPORT SERVICES,OFFICE EXPENSES,5902545464,1000072371
04.10.2022,PLANNING AND TRANSPORT,BNP PARIBAS REAL ESTATE ADVISORY & PROPERTY MANAGEMENT,"4,600.00",VALIDATION & FAST TRACK,PROFESSIONAL FEES,5902545446,1000053153
04.10.2022,PUBLIC HEALTH,"CHRIST APOSTOLIC CHURCH, SURREY DOC","10,560.00",HOLIDAY ACTIVITIES & FOOD,EXTERNAL AGENCIES AND BODIES,5902545484,1000051903
04.10.2022,PUBLIC HEALTH,PILGRIM'S WAY PRIMARY SCHOOL,"1,619.64",HOLIDAY ACTIVITIES & FOOD,EXTERNAL AGENCIES AND BODIES,5902545524,5001000054
04.10.2022,PUBLIC HEALTH,BUILDING COST INFORMATION SERVICE LTD,812.50,PROPERTY SERVICES,PROFESSIONAL FEES,5902545461,1000088920
04.10.2022,PUBLIC HEALTH,CBS MAINTENANCE SERVICES LTD,"1,245.00",SANDGATE ST INDUSTRIAL ESTATE,BUILDING R&M,2103566943,3000001518
04.10.2022,RESIDENT SERVICES,EDF ENERGY PLC,267.53,OPERATIONS/OFFICES ACCOMMODATION,ELECTRICITY,5902545390,1008746
04.10.2022,RESIDENT SERVICES,KENT COUNTY COUNCIL - LASER,261.28,TA HOSTELS,ELECTRICITY,5902545370,1000012926
04.10.2022,RESIDENT SERVICES,KENT COUNTY COUNCIL - LASER,392.52,TA HOSTELS,ELECTRICITY,5902545371,1000012926
04.10.2022,RESIDENT SERVICES,KENT COUNTY COUNCIL - LASER,398.02,TA HOSTELS,ELECTRICITY,5902545375,1000012926
04.10.2022,RESIDENT SERVICES,KENT COUNTY COUNCIL - LASER,442.06,TA HOSTELS,ELECTRICITY,5902545362,1000012926
04.10.2022,RESIDENT SERVICES,KENT COUNTY COUNCIL - LASER,660.69,TA HOSTELS,ELECTRICITY,5902545366,1000012926
04.10.2022,RESIDENT SERVICES,BRITISH GAS TRADING LTD,"3,606.62",TA HOSTELS,ELECTRICITY,5902545523,1000055977
04.10.2022,RESIDENT SERVICES HGF,LIVING ACCOMMODATION LTD,880.00,NIGHTLY TA (NSC),EXTERNAL AGENCIES AND BODIES,5902545522,1000063985
04.10.2022,RESIDENT SERVICES HGF,LIVING ACCOMMODATION LTD,"2,420.00",NIGHTLY TA (NSC),EXTERNAL AGENCIES AND BODIES,5902545517,1000063985
04.10.2022,RESIDENT SERVICES HGF,LIVING ACCOMMODATION LTD,"6,820.00",NIGHTLY TA (NSC),EXTERNAL AGENCIES AND BODIES,5902545519,1000063985
04.10.2022,RESIDENT SERVICES HGF,MICHAEL & CAROLE WILLIAMS,354.00,PRIVATE SECTOR LEASING,EXTERNAL AGENCIES AND BODIES,2103566689,1000074185
04.10.2022,RESIDENT SERVICES HGF,MARGARET ARNELL & NICK ARNELL,280.00,PSL (SOCIAL LETTINGS),EXTERNAL AGENCIES AND BODIES,2103566687,1000053502
04.10.2022,RESIDENT SERVICES HGF,GEORGE ATTABUATSI,280.00,PSL (SOCIAL LETTINGS),EXTERNAL AGENCIES AND BODIES,2103566688,1000074096
04.10.2022,RESIDENT SERVICES HGF,LETTING INTERNATIONAL LTD,"4,000.00",PSL PLACEMENTS,GRANTS,5902545503,1000070102
05.10.2022,ADULT SOCIAL CARE,ALEXANDER RUCK-KEENE,750.00,AAD TEAM,LEGAL FEES & COURT COSTS,2103568513,1000069023
05.10.2022,ADULT SOCIAL CARE,SYED & QUINN LTD,400.00,ADULTS MULTI-AGENCY SAFEGUARDING TRNG,TRAINING,5902544607,1000029554
05.10.2022,ADULT SOCIAL CARE,THE DRIVE CARE HOMES LTD,"1,680.00",DISABILITIES LAC,OTHER PAYMENTS FOR CLIENTS,2103568417,1000003889
05.10.2022,ADULT SOCIAL CARE,REDACTED PERSONAL DATA,"1,664.00",DISABILITIES LAC,PAYMENTS TO CARERS,REDACTED,REDACTED
05.10.2022,ADULT SOCIAL CARE,REDACTED PERSONAL DATA,778.00,DISABILITIES LAC,PAYMENTS TO CARERS,REDACTED,REDACTED
05.10.2022,ADULT SOCIAL CARE,REDACTED PERSONAL DATA,880.00,DISABILITIES LAC,PAYMENTS TO CARERS,REDACTED,REDACTED
05.10.2022,ADULT SOCIAL CARE,CREATING CARE CHOICES LTD,"21,214.28",DISABILITIES LAC,RESIDENTIAL CARE,2103568419,1000076738
05.10.2022,ADULT SOCIAL CARE,CARE OUTLOOK LTD,932.28,DISCHARGE TO ACCESS,HOMECARE - C&V,2103567039,1000064508
05.10.2022,ADULT SOCIAL CARE,REDACTED PERSONAL DATA,340.00,FAMILY LINK,PAYMENTS TO CARERS,REDACTED,REDACTED
05.10.2022,ADULT SOCIAL CARE,REDACTED PERSONAL DATA,320.00,FAMILY LINK,PAYMENTS TO CARERS,REDACTED,REDACTED
05.10.2022,ADULT SOCIAL CARE,BUDDI LTD,370.00,LD LTS 18-64,EQUIPMENT PURCHASE & REPAIR,2103567780,1000067243
05.10.2022,ADULT SOCIAL CARE,SUPREME CARE SERVICES LTD,456.15,LD LTS 18-64,HOMECARE - C&V,2103567923,1000059416
05.10.2022,ADULT SOCIAL CARE,SUPREME CARE SERVICES LTD,477.68,LD LTS 18-64,HOMECARE - C&V,2103567932,1000059416
05.10.2022,ADULT SOCIAL CARE,SUPREME CARE SERVICES LTD,663.50,LD LTS 18-64,HOMECARE - C&V,2103567808,1000059416
05.10.2022,ADULT SOCIAL CARE,SUPREME CARE SERVICES LTD,967.58,LD LTS 18-64,HOMECARE - C&V,2103567909,1000059416
05.10.2022,ADULT SOCIAL CARE,CAPITAL HOMECARE (UK) LTD,330.96,LD LTS 18-64,HOMECARE - SPOT,2103567781,1000042589
05.10.2022,ADULT SOCIAL CARE,CAPITAL HOMECARE (UK) LTD,330.96,LD LTS 18-64,HOMECARE - SPOT,2103567782,1000042589
05.10.2022,ADULT SOCIAL CARE,CAPITAL HOMECARE (UK) LTD,330.96,LD LTS 18-64,HOMECARE - SPOT,2103567783,1000042589
05.10.2022,ADULT SOCIAL CARE,CAPITAL HOMECARE (UK) LTD,330.96,LD LTS 18-64,HOMECARE - SPOT,2103567784,1000042589
05.10.2022,ADULT SOCIAL CARE,CAPITAL HOMECARE (UK) LTD,330.96,LD LTS 18-64,HOMECARE - SPOT,2103567785,1000042589
05.10.2022,ADULT SOCIAL CARE,CAPITAL HOMECARE (UK) LTD,330.96,LD LTS 18-64,HOMECARE - SPOT,2103567786,1000042589
05.10.2022,ADULT SOCIAL CARE,CAPITAL HOMECARE (UK) LTD,330.96,LD LTS 18-64,HOMECARE - SPOT,2103567787,1000042589
05.10.2022,ADULT SOCIAL CARE,CAPITAL HOMECARE (UK) LTD,330.96,LD LTS 18-64,HOMECARE - SPOT,2103567788,1000042589
05.10.2022,ADULT SOCIAL CARE,MEDACS HOMECARE,"1,626.20",LD LTS 18-64,SUPPORTED LIVING,2103568507,11287415
05.10.2022,ADULT SOCIAL CARE,MEDACS HOMECARE,"1,730.00",LD LTS 18-64,SUPPORTED LIVING,2103568503,11287415
05.10.2022,ADULT SOCIAL CARE,MEDACS HOMECARE,"1,730.00",LD LTS 18-64,SUPPORTED LIVING,2103568504,11287415
05.10.2022,ADULT SOCIAL CARE,MEDACS HOMECARE,"1,730.00",LD LTS 18-64,SUPPORTED LIVING,2103568505,11287415
05.10.2022,ADULT SOCIAL CARE,MEDACS HOMECARE,"1,730.00",LD LTS 18-64,SUPPORTED LIVING,2103568506,11287415
05.10.2022,ADULT SOCIAL CARE,CARE DIRECT UK LTD,486.00,LD LTS 18-64,SUPPORTED LIVING,2103567776,1000066322
05.10.2022,ADULT SOCIAL CARE,SUPREME CARE SERVICES LTD,805.66,LD LTS 65+,HOMECARE - C&V,2103567822,1000059416
05.10.2022,ADULT SOCIAL CARE,SUPREME CARE SERVICES LTD,852.74,LD LTS 65+,HOMECARE - C&V,2103567901,1000059416
05.10.2022,ADULT SOCIAL CARE,SUPREME CARE SERVICES LTD,417.71,MEM LTS 18-64,HOMECARE - C&V,2103567982,1000059416
05.10.2022,ADULT SOCIAL CARE,MIHOMECARE LTD,"1,602.03",MEM LTS 65+,HOMECARE - C&V,2103567733,1000042594
05.10.2022,ADULT SOCIAL CARE,SUPREME CARE SERVICES LTD,253.54,MEM LTS 65+,HOMECARE - C&V,2103568188,1000059416
05.10.2022,ADULT SOCIAL CARE,SUPREME CARE SERVICES LTD,258.09,MEM LTS 65+,HOMECARE - C&V,2103568043,1000059416
05.10.2022,ADULT SOCIAL CARE,SUPREME CARE SERVICES LTD,566.94,MEM LTS 65+,HOMECARE - C&V,2103567833,1000059416
05.10.2022,ADULT SOCIAL CARE,SUPREME CARE SERVICES LTD,"1,920.77",MEM LTS 65+,HOMECARE - C&V,2103567873,1000059416
05.10.2022,ADULT SOCIAL CARE,SUPREME CARE SERVICES LTD,"2,405.77",MEM LTS 65+,HOMECARE - C&V,2103568116,1000059416
05.10.2022,ADULT SOCIAL CARE,SUPREME CARE SERVICES LTD,"2,414.44",MEM LTS 65+,HOMECARE - C&V,2103567942,1000059416
05.10.2022,ADULT SOCIAL CARE,CARE OUTLOOK LTD,"2,083.92",MEM LTS 65+,HOMECARE - C&V,2103567053,1000064508
05.10.2022,ADULT SOCIAL CARE,SUPREME CARE SERVICES LTD,250.52,MH LTS 18-64,HOMECARE - C&V,2103567844,1000059416
05.10.2022,ADULT SOCIAL CARE,SUPREME CARE SERVICES LTD,294.88,MH LTS 18-64,HOMECARE - C&V,2103568036,1000059416
05.10.2022,ADULT SOCIAL CARE,SUPREME CARE SERVICES LTD,313.32,MH LTS 18-64,HOMECARE - C&V,2103567885,1000059416
05.10.2022,ADULT SOCIAL CARE,SUPREME CARE SERVICES LTD,368.60,MH LTS 18-64,HOMECARE - C&V,2103568140,1000059416
05.10.2022,ADULT SOCIAL CARE,SUPREME CARE SERVICES LTD,391.59,MH LTS 18-64,HOMECARE - C&V,2103568062,1000059416
05.10.2022,ADULT SOCIAL CARE,SUPREME CARE SERVICES LTD,843.23,MH LTS 18-64,HOMECARE - C&V,2103568122,1000059416
05.10.2022,ADULT SOCIAL CARE,SUPREME CARE SERVICES LTD,963.34,MH LTS 18-64,HOMECARE - C&V,2103567884,1000059416
05.10.2022,ADULT SOCIAL CARE,MIHOMECARE LTD,484.61,MH LTS 65+,HOMECARE - C&V,2103567755,1000042594
05.10.2022,ADULT SOCIAL CARE,SUPREME CARE SERVICES LTD,413.46,MH LTS 65+,HOMECARE - C&V,2103567926,1000059416
05.10.2022,ADULT SOCIAL CARE,SUPREME CARE SERVICES LTD,497.61,MH LTS 65+,HOMECARE - C&V,2103567866,1000059416
05.10.2022,ADULT SOCIAL CARE,SUPREME CARE SERVICES LTD,507.01,MH LTS 65+,HOMECARE - C&V,2103568186,1000059416
05.10.2022,ADULT SOCIAL CARE,SUPREME CARE SERVICES LTD,516.04,MH LTS 65+,HOMECARE - C&V,2103567801,1000059416
05.10.2022,ADULT SOCIAL CARE,SUPREME CARE SERVICES LTD,589.76,MH LTS 65+,HOMECARE - C&V,2103567888,1000059416
05.10.2022,ADULT SOCIAL CARE,SUPREME CARE SERVICES LTD,824.82,MH LTS 65+,HOMECARE - C&V,2103567979,1000059416
05.10.2022,ADULT SOCIAL CARE,SUPREME CARE SERVICES LTD,276.40,PHY LTS 18-64,HOMECARE - C&V,2103568160,1000059416
05.10.2022,ADULT SOCIAL CARE,SUPREME CARE SERVICES LTD,281.32,PHY LTS 18-64,HOMECARE - C&V,2103567812,1000059416
05.10.2022,ADULT SOCIAL CARE,SUPREME CARE SERVICES LTD,308.67,PHY LTS 18-64,HOMECARE - C&V,2103568097,1000059416
05.10.2022,ADULT SOCIAL CARE,SUPREME CARE SERVICES LTD,315.56,PHY LTS 18-64,HOMECARE - C&V,2103567930,1000059416
05.10.2022,ADULT SOCIAL CARE,SUPREME CARE SERVICES LTD,322.48,PHY LTS 18-64,HOMECARE - C&V,2103567904,1000059416
05.10.2022,ADULT SOCIAL CARE,SUPREME CARE SERVICES LTD,328.96,PHY LTS 18-64,HOMECARE - C&V,2103568025,1000059416
05.10.2022,ADULT SOCIAL CARE,SUPREME CARE SERVICES LTD,336.31,PHY LTS 18-64,HOMECARE - C&V,2103568014,1000059416
05.10.2022,ADULT SOCIAL CARE,SUPREME CARE SERVICES LTD,341.00,PHY LTS 18-64,HOMECARE - C&V,2103567810,1000059416
05.10.2022,ADULT SOCIAL CARE,SUPREME CARE SERVICES LTD,359.18,PHY LTS 18-64,HOMECARE - C&V,2103567825,1000059416
05.10.2022,ADULT SOCIAL CARE,SUPREME CARE SERVICES LTD,391.57,PHY LTS 18-64,HOMECARE - C&V,2103568113,1000059416
05.10.2022,ADULT SOCIAL CARE,SUPREME CARE SERVICES LTD,391.60,PHY LTS 18-64,HOMECARE - C&V,2103568135,1000059416
05.10.2022,ADULT SOCIAL CARE,SUPREME CARE SERVICES LTD,396.20,PHY LTS 18-64,HOMECARE - C&V,2103567947,1000059416
05.10.2022,ADULT SOCIAL CARE,SUPREME CARE SERVICES LTD,422.12,PHY LTS 18-64,HOMECARE - C&V,2103567924,1000059416
05.10.2022,ADULT SOCIAL CARE,SUPREME CARE SERVICES LTD,437.66,PHY LTS 18-64,HOMECARE - C&V,2103568078,1000059416
05.10.2022,ADULT SOCIAL CARE,SUPREME CARE SERVICES LTD,498.74,PHY LTS 18-64,HOMECARE - C&V,2103567890,1000059416
05.10.2022,ADULT SOCIAL CARE,SUPREME CARE SERVICES LTD,500.73,PHY LTS 18-64,HOMECARE - C&V,2103567989,1000059416
05.10.2022,ADULT SOCIAL CARE,SUPREME CARE SERVICES LTD,507.30,PHY LTS 18-64,HOMECARE - C&V,2103567893,1000059416
05.10.2022,ADULT SOCIAL CARE,SUPREME CARE SERVICES LTD,516.04,PHY LTS 18-64,HOMECARE - C&V,2103568053,1000059416
05.10.2022,ADULT SOCIAL CARE,SUPREME CARE SERVICES LTD,529.81,PHY LTS 18-64,HOMECARE - C&V,2103568093,1000059416
05.10.2022,ADULT SOCIAL CARE,SUPREME CARE SERVICES LTD,534.70,PHY LTS 18-64,HOMECARE - C&V,2103567821,1000059416
05.10.2022,ADULT SOCIAL CARE,SUPREME CARE SERVICES LTD,537.06,PHY LTS 18-64,HOMECARE - C&V,2103567869,1000059416
05.10.2022,ADULT SOCIAL CARE,SUPREME CARE SERVICES LTD,548.31,PHY LTS 18-64,HOMECARE - C&V,2103568154,1000059416
05.10.2022,ADULT SOCIAL CARE,SUPREME CARE SERVICES LTD,548.34,PHY LTS 18-64,HOMECARE - C&V,2103568008,1000059416
05.10.2022,ADULT SOCIAL CARE,SUPREME CARE SERVICES LTD,597.12,PHY LTS 18-64,HOMECARE - C&V,2103567828,1000059416
05.10.2022,ADULT SOCIAL CARE,SUPREME CARE SERVICES LTD,612.80,PHY LTS 18-64,HOMECARE - C&V,2103568079,1000059416
05.10.2022,ADULT SOCIAL CARE,SUPREME CARE SERVICES LTD,613.05,PHY LTS 18-64,HOMECARE - C&V,2103568054,1000059416
05.10.2022,ADULT SOCIAL CARE,SUPREME CARE SERVICES LTD,630.96,PHY LTS 18-64,HOMECARE - C&V,2103567871,1000059416
05.10.2022,ADULT SOCIAL CARE,SUPREME CARE SERVICES LTD,652.81,PHY LTS 18-64,HOMECARE - C&V,2103567944,1000059416
05.10.2022,ADULT SOCIAL CARE,SUPREME CARE SERVICES LTD,653.47,PHY LTS 18-64,HOMECARE - C&V,2103567970,1000059416
05.10.2022,ADULT SOCIAL CARE,SUPREME CARE SERVICES LTD,660.94,PHY LTS 18-64,HOMECARE - C&V,2103567862,1000059416
05.10.2022,ADULT SOCIAL CARE,SUPREME CARE SERVICES LTD,673.81,PHY LTS 18-64,HOMECARE - C&V,2103567852,1000059416
05.10.2022,ADULT SOCIAL CARE,SUPREME CARE SERVICES LTD,685.69,PHY LTS 18-64,HOMECARE - C&V,2103568169,1000059416
05.10.2022,ADULT SOCIAL CARE,SUPREME CARE SERVICES LTD,694.31,PHY LTS 18-64,HOMECARE - C&V,2103567964,1000059416
05.10.2022,ADULT SOCIAL CARE,SUPREME CARE SERVICES LTD,700.58,PHY LTS 18-64,HOMECARE - C&V,2103568176,1000059416
05.10.2022,ADULT SOCIAL CARE,SUPREME CARE SERVICES LTD,708.34,PHY LTS 18-64,HOMECARE - C&V,2103567977,1000059416
05.10.2022,ADULT SOCIAL CARE,SUPREME CARE SERVICES LTD,728.06,PHY LTS 18-64,HOMECARE - C&V,2103568011,1000059416
05.10.2022,ADULT SOCIAL CARE,SUPREME CARE SERVICES LTD,736.32,PHY LTS 18-64,HOMECARE - C&V,2103568080,1000059416
05.10.2022,ADULT SOCIAL CARE,SUPREME CARE SERVICES LTD,774.27,PHY LTS 18-64,HOMECARE - C&V,2103568022,1000059416
05.10.2022,ADULT SOCIAL CARE,SUPREME CARE SERVICES LTD,778.72,PHY LTS 18-64,HOMECARE - C&V,2103567945,1000059416
05.10.2022,ADULT SOCIAL CARE,SUPREME CARE SERVICES LTD,779.08,PHY LTS 18-64,HOMECARE - C&V,2103568005,1000059416
05.10.2022,ADULT SOCIAL CARE,SUPREME CARE SERVICES LTD,797.49,PHY LTS 18-64,HOMECARE - C&V,2103568067,1000059416
05.10.2022,ADULT SOCIAL CARE,SUPREME CARE SERVICES LTD,815.54,PHY LTS 18-64,HOMECARE - C&V,2103568103,1000059416
05.10.2022,ADULT SOCIAL CARE,SUPREME CARE SERVICES LTD,815.73,PHY LTS 18-64,HOMECARE - C&V,2103568170,1000059416
05.10.2022,ADULT SOCIAL CARE,SUPREME CARE SERVICES LTD,827.90,PHY LTS 18-64,HOMECARE - C&V,2103568057,1000059416
05.10.2022,ADULT SOCIAL CARE,SUPREME CARE SERVICES LTD,866.33,PHY LTS 18-64,HOMECARE - C&V,2103568081,1000059416
05.10.2022,ADULT SOCIAL CARE,SUPREME CARE SERVICES LTD,869.72,PHY LTS 18-64,HOMECARE - C&V,2103567872,1000059416
05.10.2022,ADULT SOCIAL CARE,SUPREME CARE SERVICES LTD,880.18,PHY LTS 18-64,HOMECARE - C&V,2103568144,1000059416
05.10.2022,ADULT SOCIAL CARE,SUPREME CARE SERVICES LTD,891.62,PHY LTS 18-64,HOMECARE - C&V,2103567882,1000059416
05.10.2022,ADULT SOCIAL CARE,SUPREME CARE SERVICES LTD,912.64,PHY LTS 18-64,HOMECARE - C&V,2103568141,1000059416
05.10.2022,ADULT SOCIAL CARE,SUPREME CARE SERVICES LTD,917.10,PHY LTS 18-64,HOMECARE - C&V,2103568082,1000059416
05.10.2022,ADULT SOCIAL CARE,SUPREME CARE SERVICES LTD,950.86,PHY LTS 18-64,HOMECARE - C&V,2103567922,1000059416
05.10.2022,ADULT SOCIAL CARE,SUPREME CARE SERVICES LTD,953.75,PHY LTS 18-64,HOMECARE - C&V,2103567811,1000059416
05.10.2022,ADULT SOCIAL CARE,SUPREME CARE SERVICES LTD,953.84,PHY LTS 18-64,HOMECARE - C&V,2103567928,1000059416
05.10.2022,ADULT SOCIAL CARE,SUPREME CARE SERVICES LTD,958.54,PHY LTS 18-64,HOMECARE - C&V,2103567936,1000059416
05.10.2022,ADULT SOCIAL CARE,SUPREME CARE SERVICES LTD,963.26,PHY LTS 18-64,HOMECARE - C&V,2103568073,1000059416
05.10.2022,ADULT SOCIAL CARE,SUPREME CARE SERVICES LTD,980.67,PHY LTS 18-64,HOMECARE - C&V,2103567912,1000059416
05.10.2022,ADULT SOCIAL CARE,SUPREME CARE SERVICES LTD,993.42,PHY LTS 18-64,HOMECARE - C&V,2103567867,1000059416
05.10.2022,ADULT SOCIAL CARE,SUPREME CARE SERVICES LTD,"1,006.39",PHY LTS 18-64,HOMECARE - C&V,2103567827,1000059416
05.10.2022,ADULT SOCIAL CARE,SUPREME CARE SERVICES LTD,"1,027.64",PHY LTS 18-64,HOMECARE - C&V,2103567965,1000059416
05.10.2022,ADULT SOCIAL CARE,SUPREME CARE SERVICES LTD,"1,032.35",PHY LTS 18-64,HOMECARE - C&V,2103568134,1000059416
05.10.2022,ADULT SOCIAL CARE,SUPREME CARE SERVICES LTD,"1,036.02",PHY LTS 18-64,HOMECARE - C&V,2103567853,1000059416
05.10.2022,ADULT SOCIAL CARE,SUPREME CARE SERVICES LTD,"1,037.61",PHY LTS 18-64,HOMECARE - C&V,2103568115,1000059416
05.10.2022,ADULT SOCIAL CARE,SUPREME CARE SERVICES LTD,"1,050.70",PHY LTS 18-64,HOMECARE - C&V,2103568095,1000059416
05.10.2022,ADULT SOCIAL CARE,SUPREME CARE SERVICES LTD,"1,069.14",PHY LTS 18-64,HOMECARE - C&V,2103567818,1000059416
05.10.2022,ADULT SOCIAL CARE,SUPREME CARE SERVICES LTD,"1,133.50",PHY LTS 18-64,HOMECARE - C&V,2103568124,1000059416
05.10.2022,ADULT SOCIAL CARE,SUPREME CARE SERVICES LTD,"1,151.21",PHY LTS 18-64,HOMECARE - C&V,2103567856,1000059416
05.10.2022,ADULT SOCIAL CARE,SUPREME CARE SERVICES LTD,"1,165.76",PHY LTS 18-64,HOMECARE - C&V,2103568056,1000059416
05.10.2022,ADULT SOCIAL CARE,SUPREME CARE SERVICES LTD,"1,244.37",PHY LTS 18-64,HOMECARE - C&V,2103567990,1000059416
05.10.2022,ADULT SOCIAL CARE,SUPREME CARE SERVICES LTD,"1,245.88",PHY LTS 18-64,HOMECARE - C&V,2103568098,1000059416
05.10.2022,ADULT SOCIAL CARE,SUPREME CARE SERVICES LTD,"1,262.49",PHY LTS 18-64,HOMECARE - C&V,2103568181,1000059416
05.10.2022,ADULT SOCIAL CARE,SUPREME CARE SERVICES LTD,"1,271.75",PHY LTS 18-64,HOMECARE - C&V,2103568021,1000059416
05.10.2022,ADULT SOCIAL CARE,SUPREME CARE SERVICES LTD,"1,285.59",PHY LTS 18-64,HOMECARE - C&V,2103567992,1000059416
05.10.2022,ADULT SOCIAL CARE,SUPREME CARE SERVICES LTD,"1,354.54",PHY LTS 18-64,HOMECARE - C&V,2103568074,1000059416
05.10.2022,ADULT SOCIAL CARE,SUPREME CARE SERVICES LTD,"1,363.00",PHY LTS 18-64,HOMECARE - C&V,2103568125,1000059416
05.10.2022,ADULT SOCIAL CARE,SUPREME CARE SERVICES LTD,"1,381.10",PHY LTS 18-64,HOMECARE - C&V,2103567900,1000059416
05.10.2022,ADULT SOCIAL CARE,SUPREME CARE SERVICES LTD,"1,394.21",PHY LTS 18-64,HOMECARE - C&V,2103567841,1000059416
05.10.2022,ADULT SOCIAL CARE,SUPREME CARE SERVICES LTD,"1,465.50",PHY LTS 18-64,HOMECARE - C&V,2103567814,1000059416
05.10.2022,ADULT SOCIAL CARE,SUPREME CARE SERVICES LTD,"1,624.36",PHY LTS 18-64,HOMECARE - C&V,2103567858,1000059416
05.10.2022,ADULT SOCIAL CARE,SUPREME CARE SERVICES LTD,"1,724.64",PHY LTS 18-64,HOMECARE - C&V,2103568028,1000059416
05.10.2022,ADULT SOCIAL CARE,SUPREME CARE SERVICES LTD,"2,110.22",PHY LTS 18-64,HOMECARE - C&V,2103567861,1000059416
05.10.2022,ADULT SOCIAL CARE,SUPREME CARE SERVICES LTD,"2,198.31",PHY LTS 18-64,HOMECARE - C&V,2103568172,1000059416
05.10.2022,ADULT SOCIAL CARE,SUPREME CARE SERVICES LTD,"2,302.61",PHY LTS 18-64,HOMECARE - C&V,2103567876,1000059416
05.10.2022,ADULT SOCIAL CARE,SUPREME CARE SERVICES LTD,"2,310.57",PHY LTS 18-64,HOMECARE - C&V,2103567984,1000059416
05.10.2022,ADULT SOCIAL CARE,SUPREME CARE SERVICES LTD,"2,617.33",PHY LTS 18-64,HOMECARE - C&V,2103567898,1000059416
05.10.2022,ADULT SOCIAL CARE,SUPREME CARE SERVICES LTD,"2,907.20",PHY LTS 18-64,HOMECARE - C&V,2103567839,1000059416
05.10.2022,ADULT SOCIAL CARE,SUPREME CARE SERVICES LTD,"2,949.12",PHY LTS 18-64,HOMECARE - C&V,2103568091,1000059416
05.10.2022,ADULT SOCIAL CARE,SUPREME CARE SERVICES LTD,"2,985.72",PHY LTS 18-64,HOMECARE - C&V,2103567910,1000059416
05.10.2022,ADULT SOCIAL CARE,SUPREME CARE SERVICES LTD,"3,215.86",PHY LTS 18-64,HOMECARE - C&V,2103567864,1000059416
05.10.2022,ADULT SOCIAL CARE,SUPREME CARE SERVICES LTD,"3,215.89",PHY LTS 18-64,HOMECARE - C&V,2103568193,1000059416
05.10.2022,ADULT SOCIAL CARE,CARE OUTLOOK LTD,370.17,PHY LTS 18-64,HOMECARE - C&V,2103567083,1000064508
05.10.2022,ADULT SOCIAL CARE,CARE OUTLOOK LTD,530.12,PHY LTS 18-64,HOMECARE - C&V,2103567035,1000064508
05.10.2022,ADULT SOCIAL CARE,CARE OUTLOOK LTD,694.64,PHY LTS 18-64,HOMECARE - C&V,2103567073,1000064508
05.10.2022,ADULT SOCIAL CARE,CARE OUTLOOK LTD,"1,837.14",PHY LTS 18-64,HOMECARE - C&V,2103567069,1000064508
05.10.2022,ADULT SOCIAL CARE,CARE OUTLOOK LTD,"2,760.28",PHY LTS 18-64,HOMECARE - C&V,2103567127,1000064508
05.10.2022,ADULT SOCIAL CARE,SAGECARE LTD,472.50,PHY LTS 18-64,HOMECARE - C&V,2103568508,1000080924
05.10.2022,ADULT SOCIAL CARE,CARE OUTLOOK LTD,"1,083.09",PHY LTS 18-64,HOMECARE - SPOT,2103567107,1000064508
05.10.2022,ADULT SOCIAL CARE,CARE OUTLOOK LTD,"1,151.64",PHY LTS 18-64,HOMECARE - SPOT,2103567095,1000064508
05.10.2022,ADULT SOCIAL CARE,CARE DIRECT UK LTD,493.63,PHY LTS 18-64,HOMECARE - SPOT,2103567770,1000066322
05.10.2022,ADULT SOCIAL CARE,CARE DIRECT UK LTD,538.50,PHY LTS 18-64,HOMECARE - SPOT,2103567764,1000066322
05.10.2022,ADULT SOCIAL CARE,CARE DIRECT UK LTD,"1,166.75",PHY LTS 18-64,HOMECARE - SPOT,2103567778,1000066322
05.10.2022,ADULT SOCIAL CARE,LONDON CARE LTD,"2,789.39",PHY LTS 65+,HOMECARE - C&V,2103567789,1000003398
05.10.2022,ADULT SOCIAL CARE,MIHOMECARE LTD,323.06,PHY LTS 65+,HOMECARE - C&V,2103567744,1000042594
05.10.2022,ADULT SOCIAL CARE,MIHOMECARE LTD,332.37,PHY LTS 65+,HOMECARE - C&V,2103567728,1000042594
05.10.2022,ADULT SOCIAL CARE,MIHOMECARE LTD,336.95,PHY LTS 65+,HOMECARE - C&V,2103567734,1000042594
05.10.2022,ADULT SOCIAL CARE,MIHOMECARE LTD,493.91,PHY LTS 65+,HOMECARE - C&V,2103567758,1000042594
05.10.2022,ADULT SOCIAL CARE,MIHOMECARE LTD,503.15,PHY LTS 65+,HOMECARE - C&V,2103567741,1000042594
05.10.2022,ADULT SOCIAL CARE,MIHOMECARE LTD,640.06,PHY LTS 65+,HOMECARE - C&V,2103567730,1000042594
05.10.2022,ADULT SOCIAL CARE,MIHOMECARE LTD,669.35,PHY LTS 65+,HOMECARE - C&V,2103567738,1000042594
05.10.2022,ADULT SOCIAL CARE,MIHOMECARE LTD,673.96,PHY LTS 65+,HOMECARE - C&V,2103567751,1000042594
05.10.2022,ADULT SOCIAL CARE,MIHOMECARE LTD,729.26,PHY LTS 65+,HOMECARE - C&V,2103567749,1000042594
05.10.2022,ADULT SOCIAL CARE,MIHOMECARE LTD,752.44,PHY LTS 65+,HOMECARE - C&V,2103567756,1000042594
05.10.2022,ADULT SOCIAL CARE,MIHOMECARE LTD,821.79,PHY LTS 65+,HOMECARE - C&V,2103567757,1000042594
05.10.2022,ADULT SOCIAL CARE,MIHOMECARE LTD,830.72,PHY LTS 65+,HOMECARE - C&V,2103567748,1000042594
05.10.2022,ADULT SOCIAL CARE,MIHOMECARE LTD,974.02,PHY LTS 65+,HOMECARE - C&V,2103567746,1000042594
05.10.2022,ADULT SOCIAL CARE,MIHOMECARE LTD,"1,024.78",PHY LTS 65+,HOMECARE - C&V,2103567753,1000042594
05.10.2022,ADULT SOCIAL CARE,MIHOMECARE LTD,"1,236.98",PHY LTS 65+,HOMECARE - C&V,2103567740,1000042594
05.10.2022,ADULT SOCIAL CARE,MIHOMECARE LTD,"2,166.15",PHY LTS 65+,HOMECARE - C&V,2103567735,1000042594
05.10.2022,ADULT SOCIAL CARE,SUPREME CARE SERVICES LTD,262.58,PHY LTS 65+,HOMECARE - C&V,2103568040,1000059416
05.10.2022,ADULT SOCIAL CARE,SUPREME CARE SERVICES LTD,262.69,PHY LTS 65+,HOMECARE - C&V,2103568117,1000059416
05.10.2022,ADULT SOCIAL CARE,SUPREME CARE SERVICES LTD,267.33,PHY LTS 65+,HOMECARE - C&V,2103568041,1000059416
05.10.2022,ADULT SOCIAL CARE,SUPREME CARE SERVICES LTD,276.44,PHY LTS 65+,HOMECARE - C&V,2103568167,1000059416
05.10.2022,ADULT SOCIAL CARE,SUPREME CARE SERVICES LTD,276.47,PHY LTS 65+,HOMECARE - C&V,2103567883,1000059416
05.10.2022,ADULT SOCIAL CARE,SUPREME CARE SERVICES LTD,290.30,PHY LTS 65+,HOMECARE - C&V,2103567846,1000059416
05.10.2022,ADULT SOCIAL CARE,SUPREME CARE SERVICES LTD,294.88,PHY LTS 65+,HOMECARE - C&V,2103568009,1000059416
05.10.2022,ADULT SOCIAL CARE,SUPREME CARE SERVICES LTD,306.53,PHY LTS 65+,HOMECARE - C&V,2103567974,1000059416
05.10.2022,ADULT SOCIAL CARE,SUPREME CARE SERVICES LTD,308.73,PHY LTS 65+,HOMECARE - C&V,2103568069,1000059416
05.10.2022,ADULT SOCIAL CARE,SUPREME CARE SERVICES LTD,322.50,PHY LTS 65+,HOMECARE - C&V,2103568105,1000059416
05.10.2022,ADULT SOCIAL CARE,SUPREME CARE SERVICES LTD,324.12,PHY LTS 65+,HOMECARE - C&V,2103568137,1000059416
05.10.2022,ADULT SOCIAL CARE,SUPREME CARE SERVICES LTD,340.93,PHY LTS 65+,HOMECARE - C&V,2103568107,1000059416
05.10.2022,ADULT SOCIAL CARE,SUPREME CARE SERVICES LTD,368.59,PHY LTS 65+,HOMECARE - C&V,2103568058,1000059416
05.10.2022,ADULT SOCIAL CARE,SUPREME CARE SERVICES LTD,373.24,PHY LTS 65+,HOMECARE - C&V,2103567790,1000059416
05.10.2022,ADULT SOCIAL CARE,SUPREME CARE SERVICES LTD,377.91,PHY LTS 65+,HOMECARE - C&V,2103568173,1000059416
05.10.2022,ADULT SOCIAL CARE,SUPREME CARE SERVICES LTD,382.46,PHY LTS 65+,HOMECARE - C&V,2103568165,1000059416
05.10.2022,ADULT SOCIAL CARE,SUPREME CARE SERVICES LTD,386.96,PHY LTS 65+,HOMECARE - C&V,2103568049,1000059416
05.10.2022,ADULT SOCIAL CARE,SUPREME CARE SERVICES LTD,386.98,PHY LTS 65+,HOMECARE - C&V,2103567911,1000059416
05.10.2022,ADULT SOCIAL CARE,SUPREME CARE SERVICES LTD,391.58,PHY LTS 65+,HOMECARE - C&V,2103568145,1000059416
05.10.2022,ADULT SOCIAL CARE,SUPREME CARE SERVICES LTD,391.59,PHY LTS 65+,HOMECARE - C&V,2103568063,1000059416
05.10.2022,ADULT SOCIAL CARE,SUPREME CARE SERVICES LTD,396.22,PHY LTS 65+,HOMECARE - C&V,2103568059,1000059416
05.10.2022,ADULT SOCIAL CARE,SUPREME CARE SERVICES LTD,405.40,PHY LTS 65+,HOMECARE - C&V,2103568066,1000059416
05.10.2022,ADULT SOCIAL CARE,SUPREME CARE SERVICES LTD,410.01,PHY LTS 65+,HOMECARE - C&V,2103568027,1000059416
05.10.2022,ADULT SOCIAL CARE,SUPREME CARE SERVICES LTD,410.19,PHY LTS 65+,HOMECARE - C&V,2103568083,1000059416
05.10.2022,ADULT SOCIAL CARE,SUPREME CARE SERVICES LTD,410.20,PHY LTS 65+,HOMECARE - C&V,2103567971,1000059416
05.10.2022,ADULT SOCIAL CARE,SUPREME CARE SERVICES LTD,414.64,PHY LTS 65+,HOMECARE - C&V,2103568138,1000059416
05.10.2022,ADULT SOCIAL CARE,SUPREME CARE SERVICES LTD,414.76,PHY LTS 65+,HOMECARE - C&V,2103567987,1000059416
05.10.2022,ADULT SOCIAL CARE,SUPREME CARE SERVICES LTD,419.32,PHY LTS 65+,HOMECARE - C&V,2103568033,1000059416
05.10.2022,ADULT SOCIAL CARE,SUPREME CARE SERVICES LTD,426.32,PHY LTS 65+,HOMECARE - C&V,2103567840,1000059416
05.10.2022,ADULT SOCIAL CARE,SUPREME CARE SERVICES LTD,426.32,PHY LTS 65+,HOMECARE - C&V,2103567908,1000059416
05.10.2022,ADULT SOCIAL CARE,SUPREME CARE SERVICES LTD,434.87,PHY LTS 65+,HOMECARE - C&V,2103567995,1000059416
05.10.2022,ADULT SOCIAL CARE,SUPREME CARE SERVICES LTD,438.42,PHY LTS 65+,HOMECARE - C&V,2103567874,1000059416
05.10.2022,ADULT SOCIAL CARE,SUPREME CARE SERVICES LTD,442.30,PHY LTS 65+,HOMECARE - C&V,2103568179,1000059416
05.10.2022,ADULT SOCIAL CARE,SUPREME CARE SERVICES LTD,451.55,PHY LTS 65+,HOMECARE - C&V,2103568003,1000059416
05.10.2022,ADULT SOCIAL CARE,SUPREME CARE SERVICES LTD,456.06,PHY LTS 65+,HOMECARE - C&V,2103568132,1000059416
05.10.2022,ADULT SOCIAL CARE,SUPREME CARE SERVICES LTD,456.08,PHY LTS 65+,HOMECARE - C&V,2103568096,1000059416
05.10.2022,ADULT SOCIAL CARE,SUPREME CARE SERVICES LTD,457.31,PHY LTS 65+,HOMECARE - C&V,2103567988,1000059416
05.10.2022,ADULT SOCIAL CARE,SUPREME CARE SERVICES LTD,460.35,PHY LTS 65+,HOMECARE - C&V,2103567804,1000059416
05.10.2022,ADULT SOCIAL CARE,SUPREME CARE SERVICES LTD,479.22,PHY LTS 65+,HOMECARE - C&V,2103567978,1000059416
05.10.2022,ADULT SOCIAL CARE,SUPREME CARE SERVICES LTD,485.40,PHY LTS 65+,HOMECARE - C&V,2103568020,1000059416
05.10.2022,ADULT SOCIAL CARE,SUPREME CARE SERVICES LTD,494.57,PHY LTS 65+,HOMECARE - C&V,2103568032,1000059416
05.10.2022,ADULT SOCIAL CARE,SUPREME CARE SERVICES LTD,505.18,PHY LTS 65+,HOMECARE - C&V,2103567802,1000059416
05.10.2022,ADULT SOCIAL CARE,SUPREME CARE SERVICES LTD,506.94,PHY LTS 65+,HOMECARE - C&V,2103568068,1000059416
05.10.2022,ADULT SOCIAL CARE,SUPREME CARE SERVICES LTD,511.57,PHY LTS 65+,HOMECARE - C&V,2103568187,1000059416
05.10.2022,ADULT SOCIAL CARE,SUPREME CARE SERVICES LTD,512.52,PHY LTS 65+,HOMECARE - C&V,2103568042,1000059416
05.10.2022,ADULT SOCIAL CARE,SUPREME CARE SERVICES LTD,516.18,PHY LTS 65+,HOMECARE - C&V,2103568104,1000059416
05.10.2022,ADULT SOCIAL CARE,SUPREME CARE SERVICES LTD,525.37,PHY LTS 65+,HOMECARE - C&V,2103568161,1000059416
05.10.2022,ADULT SOCIAL CARE,SUPREME CARE SERVICES LTD,525.52,PHY LTS 65+,HOMECARE - C&V,2103568190,1000059416
05.10.2022,ADULT SOCIAL CARE,SUPREME CARE SERVICES LTD,529.79,PHY LTS 65+,HOMECARE - C&V,2103568052,1000059416
05.10.2022,ADULT SOCIAL CARE,SUPREME CARE SERVICES LTD,534.73,PHY LTS 65+,HOMECARE - C&V,2103568151,1000059416
05.10.2022,ADULT SOCIAL CARE,SUPREME CARE SERVICES LTD,539.09,PHY LTS 65+,HOMECARE - C&V,2103568126,1000059416
05.10.2022,ADULT SOCIAL CARE,SUPREME CARE SERVICES LTD,539.32,PHY LTS 65+,HOMECARE - C&V,2103568090,1000059416
05.10.2022,ADULT SOCIAL CARE,SUPREME CARE SERVICES LTD,540.97,PHY LTS 65+,HOMECARE - C&V,2103567941,1000059416
05.10.2022,ADULT SOCIAL CARE,SUPREME CARE SERVICES LTD,552.96,PHY LTS 65+,HOMECARE - C&V,2103568012,1000059416
05.10.2022,ADULT SOCIAL CARE,SUPREME CARE SERVICES LTD,557.56,PHY LTS 65+,HOMECARE - C&V,2103567929,1000059416
05.10.2022,ADULT SOCIAL CARE,SUPREME CARE SERVICES LTD,559.11,PHY LTS 65+,HOMECARE - C&V,2103567917,1000059416
05.10.2022,ADULT SOCIAL CARE,SUPREME CARE SERVICES LTD,566.76,PHY LTS 65+,HOMECARE - C&V,2103567993,1000059416
05.10.2022,ADULT SOCIAL CARE,SUPREME CARE SERVICES LTD,566.86,PHY LTS 65+,HOMECARE - C&V,2103568195,1000059416
05.10.2022,ADULT SOCIAL CARE,SUPREME CARE SERVICES LTD,567.83,PHY LTS 65+,HOMECARE - C&V,2103567819,1000059416
05.10.2022,ADULT SOCIAL CARE,SUPREME CARE SERVICES LTD,571.56,PHY LTS 65+,HOMECARE - C&V,2103568017,1000059416
05.10.2022,ADULT SOCIAL CARE,SUPREME CARE SERVICES LTD,576.11,PHY LTS 65+,HOMECARE - C&V,2103567953,1000059416
05.10.2022,ADULT SOCIAL CARE,SUPREME CARE SERVICES LTD,580.71,PHY LTS 65+,HOMECARE - C&V,2103568198,1000059416
05.10.2022,ADULT SOCIAL CARE,SUPREME CARE SERVICES LTD,584.16,PHY LTS 65+,HOMECARE - C&V,2103567889,1000059416
05.10.2022,ADULT SOCIAL CARE,SUPREME CARE SERVICES LTD,596.96,PHY LTS 65+,HOMECARE - C&V,2103567824,1000059416
05.10.2022,ADULT SOCIAL CARE,SUPREME CARE SERVICES LTD,598.98,PHY LTS 65+,HOMECARE - C&V,2103568004,1000059416
05.10.2022,ADULT SOCIAL CARE,SUPREME CARE SERVICES LTD,603.71,PHY LTS 65+,HOMECARE - C&V,2103568182,1000059416
05.10.2022,ADULT SOCIAL CARE,SUPREME CARE SERVICES LTD,605.51,PHY LTS 65+,HOMECARE - C&V,2103567915,1000059416
05.10.2022,ADULT SOCIAL CARE,SUPREME CARE SERVICES LTD,605.58,PHY LTS 65+,HOMECARE - C&V,2103567943,1000059416
05.10.2022,ADULT SOCIAL CARE,SUPREME CARE SERVICES LTD,613.76,PHY LTS 65+,HOMECARE - C&V,2103568084,1000059416
05.10.2022,ADULT SOCIAL CARE,SUPREME CARE SERVICES LTD,616.78,PHY LTS 65+,HOMECARE - C&V,2103567997,1000059416
05.10.2022,ADULT SOCIAL CARE,SUPREME CARE SERVICES LTD,623.88,PHY LTS 65+,HOMECARE - C&V,2103567946,1000059416
05.10.2022,ADULT SOCIAL CARE,SUPREME CARE SERVICES LTD,630.43,PHY LTS 65+,HOMECARE - C&V,2103568196,1000059416
05.10.2022,ADULT SOCIAL CARE,SUPREME CARE SERVICES LTD,631.23,PHY LTS 65+,HOMECARE - C&V,2103568085,1000059416
05.10.2022,ADULT SOCIAL CARE,SUPREME CARE SERVICES LTD,635.87,PHY LTS 65+,HOMECARE - C&V,2103568148,1000059416
05.10.2022,ADULT SOCIAL CARE,SUPREME CARE SERVICES LTD,635.90,PHY LTS 65+,HOMECARE - C&V,2103568108,1000059416
05.10.2022,ADULT SOCIAL CARE,SUPREME CARE SERVICES LTD,636.03,PHY LTS 65+,HOMECARE - C&V,2103567816,1000059416
05.10.2022,ADULT SOCIAL CARE,SUPREME CARE SERVICES LTD,636.06,PHY LTS 65+,HOMECARE - C&V,2103568189,1000059416
05.10.2022,ADULT SOCIAL CARE,SUPREME CARE SERVICES LTD,645.08,PHY LTS 65+,HOMECARE - C&V,2103567849,1000059416
05.10.2022,ADULT SOCIAL CARE,SUPREME CARE SERVICES LTD,645.11,PHY LTS 65+,HOMECARE - C&V,2103568045,1000059416
05.10.2022,ADULT SOCIAL CARE,SUPREME CARE SERVICES LTD,646.34,PHY LTS 65+,HOMECARE - C&V,2103568146,1000059416
05.10.2022,ADULT SOCIAL CARE,SUPREME CARE SERVICES LTD,649.07,PHY LTS 65+,HOMECARE - C&V,2103568047,1000059416
05.10.2022,ADULT SOCIAL CARE,SUPREME CARE SERVICES LTD,653.39,PHY LTS 65+,HOMECARE - C&V,2103568092,1000059416
05.10.2022,ADULT SOCIAL CARE,SUPREME CARE SERVICES LTD,655.85,PHY LTS 65+,HOMECARE - C&V,2103568110,1000059416
05.10.2022,ADULT SOCIAL CARE,SUPREME CARE SERVICES LTD,657.98,PHY LTS 65+,HOMECARE - C&V,2103568023,1000059416
05.10.2022,ADULT SOCIAL CARE,SUPREME CARE SERVICES LTD,663.51,PHY LTS 65+,HOMECARE - C&V,2103568191,1000059416
05.10.2022,ADULT SOCIAL CARE,SUPREME CARE SERVICES LTD,663.54,PHY LTS 65+,HOMECARE - C&V,2103567887,1000059416
05.10.2022,ADULT SOCIAL CARE,SUPREME CARE SERVICES LTD,668.24,PHY LTS 65+,HOMECARE - C&V,2103568194,1000059416
05.10.2022,ADULT SOCIAL CARE,SUPREME CARE SERVICES LTD,672.76,PHY LTS 65+,HOMECARE - C&V,2103568060,1000059416
05.10.2022,ADULT SOCIAL CARE,SUPREME CARE SERVICES LTD,675.54,PHY LTS 65+,HOMECARE - C&V,2103568158,1000059416
05.10.2022,ADULT SOCIAL CARE,SUPREME CARE SERVICES LTD,677.38,PHY LTS 65+,HOMECARE - C&V,2103567899,1000059416
05.10.2022,ADULT SOCIAL CARE,SUPREME CARE SERVICES LTD,689.00,PHY LTS 65+,HOMECARE - C&V,2103568166,1000059416
05.10.2022,ADULT SOCIAL CARE,SUPREME CARE SERVICES LTD,694.86,PHY LTS 65+,HOMECARE - C&V,2103567998,1000059416
05.10.2022,ADULT SOCIAL CARE,SUPREME CARE SERVICES LTD,697.43,PHY LTS 65+,HOMECARE - C&V,2103567830,1000059416
05.10.2022,ADULT SOCIAL CARE,SUPREME CARE SERVICES LTD,699.24,PHY LTS 65+,HOMECARE - C&V,2103567895,1000059416
05.10.2022,ADULT SOCIAL CARE,SUPREME CARE SERVICES LTD,718.82,PHY LTS 65+,HOMECARE - C&V,2103567991,1000059416
05.10.2022,ADULT SOCIAL CARE,SUPREME CARE SERVICES LTD,718.84,PHY LTS 65+,HOMECARE - C&V,2103567955,1000059416
05.10.2022,ADULT SOCIAL CARE,SUPREME CARE SERVICES LTD,727.74,PHY LTS 65+,HOMECARE - C&V,2103567966,1000059416
05.10.2022,ADULT SOCIAL CARE,SUPREME CARE SERVICES LTD,728.10,PHY LTS 65+,HOMECARE - C&V,2103568183,1000059416
05.10.2022,ADULT SOCIAL CARE,SUPREME CARE SERVICES LTD,737.31,PHY LTS 65+,HOMECARE - C&V,2103567959,1000059416
05.10.2022,ADULT SOCIAL CARE,SUPREME CARE SERVICES LTD,737.59,PHY LTS 65+,HOMECARE - C&V,2103567902,1000059416
05.10.2022,ADULT SOCIAL CARE,SUPREME CARE SERVICES LTD,741.67,PHY LTS 65+,HOMECARE - C&V,2103567807,1000059416
05.10.2022,ADULT SOCIAL CARE,SUPREME CARE SERVICES LTD,741.85,PHY LTS 65+,HOMECARE - C&V,2103567963,1000059416
05.10.2022,ADULT SOCIAL CARE,SUPREME CARE SERVICES LTD,746.44,PHY LTS 65+,HOMECARE - C&V,2103567940,1000059416
05.10.2022,ADULT SOCIAL CARE,SUPREME CARE SERVICES LTD,756.04,PHY LTS 65+,HOMECARE - C&V,2103568077,1000059416
05.10.2022,ADULT SOCIAL CARE,SUPREME CARE SERVICES LTD,769.66,PHY LTS 65+,HOMECARE - C&V,2103568016,1000059416
05.10.2022,ADULT SOCIAL CARE,SUPREME CARE SERVICES LTD,774.48,PHY LTS 65+,HOMECARE - C&V,2103568152,1000059416
05.10.2022,ADULT SOCIAL CARE,SUPREME CARE SERVICES LTD,778.82,PHY LTS 65+,HOMECARE - C&V,2103567813,1000059416
05.10.2022,ADULT SOCIAL CARE,SUPREME CARE SERVICES LTD,783.36,PHY LTS 65+,HOMECARE - C&V,2103567975,1000059416
05.10.2022,ADULT SOCIAL CARE,SUPREME CARE SERVICES LTD,788.69,PHY LTS 65+,HOMECARE - C&V,2103567838,1000059416
05.10.2022,ADULT SOCIAL CARE,SUPREME CARE SERVICES LTD,789.10,PHY LTS 65+,HOMECARE - C&V,2103567806,1000059416
05.10.2022,ADULT SOCIAL CARE,SUPREME CARE SERVICES LTD,794.14,PHY LTS 65+,HOMECARE - C&V,2103568050,1000059416
05.10.2022,ADULT SOCIAL CARE,SUPREME CARE SERVICES LTD,805.79,PHY LTS 65+,HOMECARE - C&V,2103567835,1000059416
05.10.2022,ADULT SOCIAL CARE,SUPREME CARE SERVICES LTD,811.19,PHY LTS 65+,HOMECARE - C&V,2103568072,1000059416
05.10.2022,ADULT SOCIAL CARE,SUPREME CARE SERVICES LTD,820.18,PHY LTS 65+,HOMECARE - C&V,2103568149,1000059416
05.10.2022,ADULT SOCIAL CARE,SUPREME CARE SERVICES LTD,828.21,PHY LTS 65+,HOMECARE - C&V,2103567983,1000059416
05.10.2022,ADULT SOCIAL CARE,SUPREME CARE SERVICES LTD,831.35,PHY LTS 65+,HOMECARE - C&V,2103567851,1000059416
05.10.2022,ADULT SOCIAL CARE,SUPREME CARE SERVICES LTD,847.92,PHY LTS 65+,HOMECARE - C&V,2103568039,1000059416
05.10.2022,ADULT SOCIAL CARE,SUPREME CARE SERVICES LTD,848.57,PHY LTS 65+,HOMECARE - C&V,2103567935,1000059416
05.10.2022,ADULT SOCIAL CARE,SUPREME CARE SERVICES LTD,852.53,PHY LTS 65+,HOMECARE - C&V,2103567896,1000059416
05.10.2022,ADULT SOCIAL CARE,SUPREME CARE SERVICES LTD,861.63,PHY LTS 65+,HOMECARE - C&V,2103568026,1000059416
05.10.2022,ADULT SOCIAL CARE,SUPREME CARE SERVICES LTD,867.92,PHY LTS 65+,HOMECARE - C&V,2103568015,1000059416
05.10.2022,ADULT SOCIAL CARE,SUPREME CARE SERVICES LTD,877.01,PHY LTS 65+,HOMECARE - C&V,2103567939,1000059416
05.10.2022,ADULT SOCIAL CARE,SUPREME CARE SERVICES LTD,880.25,PHY LTS 65+,HOMECARE - C&V,2103568136,1000059416
05.10.2022,ADULT SOCIAL CARE,SUPREME CARE SERVICES LTD,882.75,PHY LTS 65+,HOMECARE - C&V,2103567931,1000059416
05.10.2022,ADULT SOCIAL CARE,SUPREME CARE SERVICES LTD,885.05,PHY LTS 65+,HOMECARE - C&V,2103568075,1000059416
05.10.2022,ADULT SOCIAL CARE,SUPREME CARE SERVICES LTD,887.00,PHY LTS 65+,HOMECARE - C&V,2103567914,1000059416
05.10.2022,ADULT SOCIAL CARE,SUPREME CARE SERVICES LTD,893.97,PHY LTS 65+,HOMECARE - C&V,2103568064,1000059416
05.10.2022,ADULT SOCIAL CARE,SUPREME CARE SERVICES LTD,894.01,PHY LTS 65+,HOMECARE - C&V,2103568139,1000059416
05.10.2022,ADULT SOCIAL CARE,SUPREME CARE SERVICES LTD,898.64,PHY LTS 65+,HOMECARE - C&V,2103568000,1000059416
05.10.2022,ADULT SOCIAL CARE,SUPREME CARE SERVICES LTD,906.13,PHY LTS 65+,HOMECARE - C&V,2103567831,1000059416
05.10.2022,ADULT SOCIAL CARE,SUPREME CARE SERVICES LTD,906.13,PHY LTS 65+,HOMECARE - C&V,2103567880,1000059416
05.10.2022,ADULT SOCIAL CARE,SUPREME CARE SERVICES LTD,912.48,PHY LTS 65+,HOMECARE - C&V,2103568164,1000059416
05.10.2022,ADULT SOCIAL CARE,SUPREME CARE SERVICES LTD,916.75,PHY LTS 65+,HOMECARE - C&V,2103567834,1000059416
05.10.2022,ADULT SOCIAL CARE,SUPREME CARE SERVICES LTD,922.74,PHY LTS 65+,HOMECARE - C&V,2103567829,1000059416
05.10.2022,ADULT SOCIAL CARE,SUPREME CARE SERVICES LTD,930.87,PHY LTS 65+,HOMECARE - C&V,2103567938,1000059416
05.10.2022,ADULT SOCIAL CARE,SUPREME CARE SERVICES LTD,935.49,PHY LTS 65+,HOMECARE - C&V,2103567836,1000059416
05.10.2022,ADULT SOCIAL CARE,SUPREME CARE SERVICES LTD,935.50,PHY LTS 65+,HOMECARE - C&V,2103568007,1000059416
05.10.2022,ADULT SOCIAL CARE,SUPREME CARE SERVICES LTD,938.21,PHY LTS 65+,HOMECARE - C&V,2103567954,1000059416
05.10.2022,ADULT SOCIAL CARE,SUPREME CARE SERVICES LTD,940.05,PHY LTS 65+,HOMECARE - C&V,2103568142,1000059416
05.10.2022,ADULT SOCIAL CARE,SUPREME CARE SERVICES LTD,946.59,PHY LTS 65+,HOMECARE - C&V,2103568469,1000059416
05.10.2022,ADULT SOCIAL CARE,SUPREME CARE SERVICES LTD,949.34,PHY LTS 65+,HOMECARE - C&V,2103568101,1000059416
05.10.2022,ADULT SOCIAL CARE,SUPREME CARE SERVICES LTD,954.77,PHY LTS 65+,HOMECARE - C&V,2103568118,1000059416
05.10.2022,ADULT SOCIAL CARE,SUPREME CARE SERVICES LTD,958.36,PHY LTS 65+,HOMECARE - C&V,2103568470,1000059416
05.10.2022,ADULT SOCIAL CARE,SUPREME CARE SERVICES LTD,977.12,PHY LTS 65+,HOMECARE - C&V,2103567952,1000059416
05.10.2022,ADULT SOCIAL CARE,SUPREME CARE SERVICES LTD,993.69,PHY LTS 65+,HOMECARE - C&V,2103567809,1000059416
05.10.2022,ADULT SOCIAL CARE,SUPREME CARE SERVICES LTD,995.43,PHY LTS 65+,HOMECARE - C&V,2103568089,1000059416
05.10.2022,ADULT SOCIAL CARE,SUPREME CARE SERVICES LTD,"1,000.00",PHY LTS 65+,HOMECARE - C&V,2103567791,1000059416
05.10.2022,ADULT SOCIAL CARE,SUPREME CARE SERVICES LTD,"1,001.66",PHY LTS 65+,HOMECARE - C&V,2103567796,1000059416
05.10.2022,ADULT SOCIAL CARE,SUPREME CARE SERVICES LTD,"1,010.08",PHY LTS 65+,HOMECARE - C&V,2103568178,1000059416
05.10.2022,ADULT SOCIAL CARE,SUPREME CARE SERVICES LTD,"1,023.09",PHY LTS 65+,HOMECARE - C&V,2103568184,1000059416
05.10.2022,ADULT SOCIAL CARE,SUPREME CARE SERVICES LTD,"1,027.48",PHY LTS 65+,HOMECARE - C&V,2103568035,1000059416
05.10.2022,ADULT SOCIAL CARE,SUPREME CARE SERVICES LTD,"1,036.08",PHY LTS 65+,HOMECARE - C&V,2103567832,1000059416
05.10.2022,ADULT SOCIAL CARE,SUPREME CARE SERVICES LTD,"1,036.97",PHY LTS 65+,HOMECARE - C&V,2103567860,1000059416
05.10.2022,ADULT SOCIAL CARE,SUPREME CARE SERVICES LTD,"1,050.72",PHY LTS 65+,HOMECARE - C&V,2103567950,1000059416
05.10.2022,ADULT SOCIAL CARE,SUPREME CARE SERVICES LTD,"1,054.78",PHY LTS 65+,HOMECARE - C&V,2103568123,1000059416
05.10.2022,ADULT SOCIAL CARE,SUPREME CARE SERVICES LTD,"1,063.13",PHY LTS 65+,HOMECARE - C&V,2103568076,1000059416
05.10.2022,ADULT SOCIAL CARE,SUPREME CARE SERVICES LTD,"1,064.57",PHY LTS 65+,HOMECARE - C&V,2103567961,1000059416
05.10.2022,ADULT SOCIAL CARE,SUPREME CARE SERVICES LTD,"1,082.76",PHY LTS 65+,HOMECARE - C&V,2103567957,1000059416
05.10.2022,ADULT SOCIAL CARE,SUPREME CARE SERVICES LTD,"1,087.42",PHY LTS 65+,HOMECARE - C&V,2103567903,1000059416
05.10.2022,ADULT SOCIAL CARE,SUPREME CARE SERVICES LTD,"1,087.64",PHY LTS 65+,HOMECARE - C&V,2103568006,1000059416
05.10.2022,ADULT SOCIAL CARE,SUPREME CARE SERVICES LTD,"1,098.04",PHY LTS 65+,HOMECARE - C&V,2103567863,1000059416
05.10.2022,ADULT SOCIAL CARE,SUPREME CARE SERVICES LTD,"1,105.80",PHY LTS 65+,HOMECARE - C&V,2103567968,1000059416
05.10.2022,ADULT SOCIAL CARE,SUPREME CARE SERVICES LTD,"1,106.49",PHY LTS 65+,HOMECARE - C&V,2103567956,1000059416
05.10.2022,ADULT SOCIAL CARE,SUPREME CARE SERVICES LTD,"1,110.59",PHY LTS 65+,HOMECARE - C&V,2103568024,1000059416
05.10.2022,ADULT SOCIAL CARE,SUPREME CARE SERVICES LTD,"1,111.93",PHY LTS 65+,HOMECARE - C&V,2103568001,1000059416
05.10.2022,ADULT SOCIAL CARE,SUPREME CARE SERVICES LTD,"1,114.86",PHY LTS 65+,HOMECARE - C&V,2103567877,1000059416
05.10.2022,ADULT SOCIAL CARE,SUPREME CARE SERVICES LTD,"1,117.83",PHY LTS 65+,HOMECARE - C&V,2103568018,1000059416
05.10.2022,ADULT SOCIAL CARE,SUPREME CARE SERVICES LTD,"1,123.74",PHY LTS 65+,HOMECARE - C&V,2103568159,1000059416
05.10.2022,ADULT SOCIAL CARE,SUPREME CARE SERVICES LTD,"1,142.58",PHY LTS 65+,HOMECARE - C&V,2103567934,1000059416
05.10.2022,ADULT SOCIAL CARE,SUPREME CARE SERVICES LTD,"1,166.04",PHY LTS 65+,HOMECARE - C&V,2103568130,1000059416
05.10.2022,ADULT SOCIAL CARE,SUPREME CARE SERVICES LTD,"1,170.65",PHY LTS 65+,HOMECARE - C&V,2103567905,1000059416
05.10.2022,ADULT SOCIAL CARE,SUPREME CARE SERVICES LTD,"1,174.66",PHY LTS 65+,HOMECARE - C&V,2103568175,1000059416
05.10.2022,ADULT SOCIAL CARE,SUPREME CARE SERVICES LTD,"1,179.83",PHY LTS 65+,HOMECARE - C&V,2103567845,1000059416
05.10.2022,ADULT SOCIAL CARE,SUPREME CARE SERVICES LTD,"1,185.79",PHY LTS 65+,HOMECARE - C&V,2103567799,1000059416
05.10.2022,ADULT SOCIAL CARE,SUPREME CARE SERVICES LTD,"1,193.92",PHY LTS 65+,HOMECARE - C&V,2103567886,1000059416
05.10.2022,ADULT SOCIAL CARE,SUPREME CARE SERVICES LTD,"1,196.68",PHY LTS 65+,HOMECARE - C&V,2103567967,1000059416
05.10.2022,ADULT SOCIAL CARE,SUPREME CARE SERVICES LTD,"1,202.57",PHY LTS 65+,HOMECARE - C&V,2103568157,1000059416
05.10.2022,ADULT SOCIAL CARE,SUPREME CARE SERVICES LTD,"1,208.38",PHY LTS 65+,HOMECARE - C&V,2103568112,1000059416
05.10.2022,ADULT SOCIAL CARE,SUPREME CARE SERVICES LTD,"1,210.76",PHY LTS 65+,HOMECARE - C&V,2103567875,1000059416
05.10.2022,ADULT SOCIAL CARE,SUPREME CARE SERVICES LTD,"1,221.26",PHY LTS 65+,HOMECARE - C&V,2103568163,1000059416
05.10.2022,ADULT SOCIAL CARE,SUPREME CARE SERVICES LTD,"1,230.48",PHY LTS 65+,HOMECARE - C&V,2103568087,1000059416
05.10.2022,ADULT SOCIAL CARE,SUPREME CARE SERVICES LTD,"1,243.29",PHY LTS 65+,HOMECARE - C&V,2103568109,1000059416
05.10.2022,ADULT SOCIAL CARE,SUPREME CARE SERVICES LTD,"1,262.02",PHY LTS 65+,HOMECARE - C&V,2103567865,1000059416
05.10.2022,ADULT SOCIAL CARE,SUPREME CARE SERVICES LTD,"1,267.41",PHY LTS 65+,HOMECARE - C&V,2103567994,1000059416
05.10.2022,ADULT SOCIAL CARE,SUPREME CARE SERVICES LTD,"1,271.74",PHY LTS 65+,HOMECARE - C&V,2103568038,1000059416
05.10.2022,ADULT SOCIAL CARE,SUPREME CARE SERVICES LTD,"1,285.82",PHY LTS 65+,HOMECARE - C&V,2103567894,1000059416
05.10.2022,ADULT SOCIAL CARE,SUPREME CARE SERVICES LTD,"1,290.35",PHY LTS 65+,HOMECARE - C&V,2103567823,1000059416
05.10.2022,ADULT SOCIAL CARE,SUPREME CARE SERVICES LTD,"1,304.16",PHY LTS 65+,HOMECARE - C&V,2103567798,1000059416
05.10.2022,ADULT SOCIAL CARE,SUPREME CARE SERVICES LTD,"1,317.79",PHY LTS 65+,HOMECARE - C&V,2103567927,1000059416
05.10.2022,ADULT SOCIAL CARE,SUPREME CARE SERVICES LTD,"1,329.74",PHY LTS 65+,HOMECARE - C&V,2103568177,1000059416
05.10.2022,ADULT SOCIAL CARE,SUPREME CARE SERVICES LTD,"1,333.50",PHY LTS 65+,HOMECARE - C&V,2103567925,1000059416
05.10.2022,ADULT SOCIAL CARE,SUPREME CARE SERVICES LTD,"1,365.89",PHY LTS 65+,HOMECARE - C&V,2103568171,1000059416
05.10.2022,ADULT SOCIAL CARE,SUPREME CARE SERVICES LTD,"1,382.11",PHY LTS 65+,HOMECARE - C&V,2103568197,1000059416
05.10.2022,ADULT SOCIAL CARE,SUPREME CARE SERVICES LTD,"1,383.33",PHY LTS 65+,HOMECARE - C&V,2103568150,1000059416
05.10.2022,ADULT SOCIAL CARE,SUPREME CARE SERVICES LTD,"1,391.81",PHY LTS 65+,HOMECARE - C&V,2103567907,1000059416
05.10.2022,ADULT SOCIAL CARE,SUPREME CARE SERVICES LTD,"1,396.83",PHY LTS 65+,HOMECARE - C&V,2103567847,1000059416
05.10.2022,ADULT SOCIAL CARE,SUPREME CARE SERVICES LTD,"1,410.02",PHY LTS 65+,HOMECARE - C&V,2103568100,1000059416
05.10.2022,ADULT SOCIAL CARE,SUPREME CARE SERVICES LTD,"1,428.44",PHY LTS 65+,HOMECARE - C&V,2103568147,1000059416
05.10.2022,ADULT SOCIAL CARE,SUPREME CARE SERVICES LTD,"1,455.90",PHY LTS 65+,HOMECARE - C&V,2103567891,1000059416
05.10.2022,ADULT SOCIAL CARE,SUPREME CARE SERVICES LTD,"1,467.19",PHY LTS 65+,HOMECARE - C&V,2103568044,1000059416
05.10.2022,ADULT SOCIAL CARE,SUPREME CARE SERVICES LTD,"1,612.00",PHY LTS 65+,HOMECARE - C&V,2103568131,1000059416
05.10.2022,ADULT SOCIAL CARE,SUPREME CARE SERVICES LTD,"1,659.00",PHY LTS 65+,HOMECARE - C&V,2103568106,1000059416
05.10.2022,ADULT SOCIAL CARE,SUPREME CARE SERVICES LTD,"1,663.20",PHY LTS 65+,HOMECARE - C&V,2103567916,1000059416
05.10.2022,ADULT SOCIAL CARE,SUPREME CARE SERVICES LTD,"1,686.56",PHY LTS 65+,HOMECARE - C&V,2103567999,1000059416
05.10.2022,ADULT SOCIAL CARE,SUPREME CARE SERVICES LTD,"1,695.86",PHY LTS 65+,HOMECARE - C&V,2103568065,1000059416
05.10.2022,ADULT SOCIAL CARE,SUPREME CARE SERVICES LTD,"1,709.49",PHY LTS 65+,HOMECARE - C&V,2103568119,1000059416
05.10.2022,ADULT SOCIAL CARE,SUPREME CARE SERVICES LTD,"1,804.08",PHY LTS 65+,HOMECARE - C&V,2103568156,1000059416
05.10.2022,ADULT SOCIAL CARE,SUPREME CARE SERVICES LTD,"1,819.84",PHY LTS 65+,HOMECARE - C&V,2103568102,1000059416
05.10.2022,ADULT SOCIAL CARE,SUPREME CARE SERVICES LTD,"1,820.22",PHY LTS 65+,HOMECARE - C&V,2103567857,1000059416
05.10.2022,ADULT SOCIAL CARE,SUPREME CARE SERVICES LTD,"1,853.99",PHY LTS 65+,HOMECARE - C&V,2103568070,1000059416
05.10.2022,ADULT SOCIAL CARE,SUPREME CARE SERVICES LTD,"1,898.25",PHY LTS 65+,HOMECARE - C&V,2103568029,1000059416
05.10.2022,ADULT SOCIAL CARE,SUPREME CARE SERVICES LTD,"1,935.84",PHY LTS 65+,HOMECARE - C&V,2103567913,1000059416
05.10.2022,ADULT SOCIAL CARE,SUPREME CARE SERVICES LTD,"2,100.88",PHY LTS 65+,HOMECARE - C&V,2103567985,1000059416
05.10.2022,ADULT SOCIAL CARE,SUPREME CARE SERVICES LTD,"2,188.03",PHY LTS 65+,HOMECARE - C&V,2103567795,1000059416
05.10.2022,ADULT SOCIAL CARE,SUPREME CARE SERVICES LTD,"2,198.93",PHY LTS 65+,HOMECARE - C&V,2103567958,1000059416
05.10.2022,ADULT SOCIAL CARE,SUPREME CARE SERVICES LTD,"2,215.92",PHY LTS 65+,HOMECARE - C&V,2103568111,1000059416
05.10.2022,ADULT SOCIAL CARE,SUPREME CARE SERVICES LTD,"2,216.88",PHY LTS 65+,HOMECARE - C&V,2103567921,1000059416
05.10.2022,ADULT SOCIAL CARE,SUPREME CARE SERVICES LTD,"2,225.43",PHY LTS 65+,HOMECARE - C&V,2103567962,1000059416
05.10.2022,ADULT SOCIAL CARE,SUPREME CARE SERVICES LTD,"2,304.98",PHY LTS 65+,HOMECARE - C&V,2103567850,1000059416
05.10.2022,ADULT SOCIAL CARE,SUPREME CARE SERVICES LTD,"2,417.68",PHY LTS 65+,HOMECARE - C&V,2103567937,1000059416
05.10.2022,ADULT SOCIAL CARE,SUPREME CARE SERVICES LTD,"2,428.70",PHY LTS 65+,HOMECARE - C&V,2103568094,1000059416
05.10.2022,ADULT SOCIAL CARE,SUPREME CARE SERVICES LTD,"2,447.15",PHY LTS 65+,HOMECARE - C&V,2103567797,1000059416
05.10.2022,ADULT SOCIAL CARE,SUPREME CARE SERVICES LTD,"2,469.76",PHY LTS 65+,HOMECARE - C&V,2103567986,1000059416
05.10.2022,ADULT SOCIAL CARE,SUPREME CARE SERVICES LTD,"2,494.48",PHY LTS 65+,HOMECARE - C&V,2103568099,1000059416
05.10.2022,ADULT SOCIAL CARE,SUPREME CARE SERVICES LTD,"2,512.56",PHY LTS 65+,HOMECARE - C&V,2103567805,1000059416
05.10.2022,ADULT SOCIAL CARE,SUPREME CARE SERVICES LTD,"2,524.18",PHY LTS 65+,HOMECARE - C&V,2103567918,1000059416
05.10.2022,ADULT SOCIAL CARE,SUPREME CARE SERVICES LTD,"2,603.78",PHY LTS 65+,HOMECARE - C&V,2103567948,1000059416
05.10.2022,ADULT SOCIAL CARE,SUPREME CARE SERVICES LTD,"2,604.59",PHY LTS 65+,HOMECARE - C&V,2103567859,1000059416
05.10.2022,ADULT SOCIAL CARE,SUPREME CARE SERVICES LTD,"2,759.49",PHY LTS 65+,HOMECARE - C&V,2103567960,1000059416
05.10.2022,ADULT SOCIAL CARE,SUPREME CARE SERVICES LTD,"2,760.84",PHY LTS 65+,HOMECARE - C&V,2103568086,1000059416
05.10.2022,ADULT SOCIAL CARE,SUPREME CARE SERVICES LTD,"2,940.19",PHY LTS 65+,HOMECARE - C&V,2103567920,1000059416
05.10.2022,ADULT SOCIAL CARE,SUPREME CARE SERVICES LTD,"2,962.95",PHY LTS 65+,HOMECARE - C&V,2103567803,1000059416
05.10.2022,ADULT SOCIAL CARE,SUPREME CARE SERVICES LTD,"3,031.19",PHY LTS 65+,HOMECARE - C&V,2103567815,1000059416
05.10.2022,ADULT SOCIAL CARE,SUPREME CARE SERVICES LTD,"3,186.08",PHY LTS 65+,HOMECARE - C&V,2103567848,1000059416
05.10.2022,ADULT SOCIAL CARE,SUPREME CARE SERVICES LTD,"3,450.13",PHY LTS 65+,HOMECARE - C&V,2103568174,1000059416
05.10.2022,ADULT SOCIAL CARE,SUPREME CARE SERVICES LTD,"3,491.24",PHY LTS 65+,HOMECARE - C&V,2103567881,1000059416
05.10.2022,ADULT SOCIAL CARE,SUPREME CARE SERVICES LTD,"3,601.97",PHY LTS 65+,HOMECARE - C&V,2103567919,1000059416
05.10.2022,ADULT SOCIAL CARE,SUPREME CARE SERVICES LTD,"4,119.28",PHY LTS 65+,HOMECARE - C&V,2103567996,1000059416
05.10.2022,ADULT SOCIAL CARE,CARE OUTLOOK LTD,329.04,PHY LTS 65+,HOMECARE - C&V,2103567085,1000064508
05.10.2022,ADULT SOCIAL CARE,CARE OUTLOOK LTD,365.60,PHY LTS 65+,HOMECARE - C&V,2103567033,1000064508
05.10.2022,ADULT SOCIAL CARE,CARE OUTLOOK LTD,374.74,PHY LTS 65+,HOMECARE - C&V,2103567063,1000064508
05.10.2022,ADULT SOCIAL CARE,CARE OUTLOOK LTD,393.02,PHY LTS 65+,HOMECARE - C&V,2103567121,1000064508
05.10.2022,ADULT SOCIAL CARE,CARE OUTLOOK LTD,402.16,PHY LTS 65+,HOMECARE - C&V,2103567055,1000064508
05.10.2022,ADULT SOCIAL CARE,CARE OUTLOOK LTD,434.15,PHY LTS 65+,HOMECARE - C&V,2103567065,1000064508
05.10.2022,ADULT SOCIAL CARE,CARE OUTLOOK LTD,434.15,PHY LTS 65+,HOMECARE - C&V,2103567125,1000064508
05.10.2022,ADULT SOCIAL CARE,CARE OUTLOOK LTD,492.04,PHY LTS 65+,HOMECARE - C&V,2103567071,1000064508
05.10.2022,ADULT SOCIAL CARE,CARE OUTLOOK LTD,543.83,PHY LTS 65+,HOMECARE - C&V,2103567109,1000064508
05.10.2022,ADULT SOCIAL CARE,CARE OUTLOOK LTD,548.40,PHY LTS 65+,HOMECARE - C&V,2103567089,1000064508
05.10.2022,ADULT SOCIAL CARE,CARE OUTLOOK LTD,584.96,PHY LTS 65+,HOMECARE - C&V,2103567061,1000064508
05.10.2022,ADULT SOCIAL CARE,CARE OUTLOOK LTD,589.53,PHY LTS 65+,HOMECARE - C&V,2103567031,1000064508
05.10.2022,ADULT SOCIAL CARE,CARE OUTLOOK LTD,639.80,PHY LTS 65+,HOMECARE - C&V,2103567017,1000064508
05.10.2022,ADULT SOCIAL CARE,CARE OUTLOOK LTD,776.90,PHY LTS 65+,HOMECARE - C&V,2103567111,1000064508
05.10.2022,ADULT SOCIAL CARE,CARE OUTLOOK LTD,786.04,PHY LTS 65+,HOMECARE - C&V,2103567049,1000064508
05.10.2022,ADULT SOCIAL CARE,CARE OUTLOOK LTD,854.59,PHY LTS 65+,HOMECARE - C&V,2103567025,1000064508
05.10.2022,ADULT SOCIAL CARE,CARE OUTLOOK LTD,959.70,PHY LTS 65+,HOMECARE - C&V,2103567103,1000064508
05.10.2022,ADULT SOCIAL CARE,CARE OUTLOOK LTD,"1,087.66",PHY LTS 65+,HOMECARE - C&V,2103567027,1000064508
05.10.2022,ADULT SOCIAL CARE,CARE OUTLOOK LTD,"1,261.32",PHY LTS 65+,HOMECARE - C&V,2103567019,1000064508
05.10.2022,ADULT SOCIAL CARE,CARE OUTLOOK LTD,"1,262.17",PHY LTS 65+,HOMECARE - C&V,2103567099,1000064508
05.10.2022,ADULT SOCIAL CARE,CARE OUTLOOK LTD,"1,517.24",PHY LTS 65+,HOMECARE - C&V,2103567079,1000064508
05.10.2022,ADULT SOCIAL CARE,CARE OUTLOOK LTD,"1,581.22",PHY LTS 65+,HOMECARE - C&V,2103567115,1000064508
05.10.2022,ADULT SOCIAL CARE,CARE OUTLOOK LTD,"1,869.13",PHY LTS 65+,HOMECARE - C&V,2103567091,1000064508
05.10.2022,ADULT SOCIAL CARE,CARE OUTLOOK LTD,"2,088.49",PHY LTS 65+,HOMECARE - C&V,2103567087,1000064508
05.10.2022,ADULT SOCIAL CARE,CARE OUTLOOK LTD,"2,508.93",PHY LTS 65+,HOMECARE - C&V,2103567041,1000064508
05.10.2022,ADULT SOCIAL CARE,CARE DIRECT UK LTD,601.33,PHY LTS 65+,HOMECARE - C&V,2103567769,1000066322
05.10.2022,ADULT SOCIAL CARE,CARE DIRECT UK LTD,691.08,PHY LTS 65+,HOMECARE - C&V,2103567768,1000066322
05.10.2022,ADULT SOCIAL CARE,HARTWIG CARE LTD,310.10,PHY LTS 65+,HOMECARE - C&V,2103568482,1000088354
05.10.2022,ADULT SOCIAL CARE,HARTWIG CARE LTD,411.99,PHY LTS 65+,HOMECARE - C&V,2103568475,1000088354
05.10.2022,ADULT SOCIAL CARE,HARTWIG CARE LTD,429.71,PHY LTS 65+,HOMECARE - C&V,2103568493,1000088354
05.10.2022,ADULT SOCIAL CARE,HARTWIG CARE LTD,496.16,PHY LTS 65+,HOMECARE - C&V,2103568492,1000088354
05.10.2022,ADULT SOCIAL CARE,HARTWIG CARE LTD,513.88,PHY LTS 65+,HOMECARE - C&V,2103568494,1000088354
05.10.2022,ADULT SOCIAL CARE,HARTWIG CARE LTD,558.18,PHY LTS 65+,HOMECARE - C&V,2103568490,1000088354
05.10.2022,ADULT SOCIAL CARE,HARTWIG CARE LTD,744.24,PHY LTS 65+,HOMECARE - C&V,2103568485,1000088354
05.10.2022,ADULT SOCIAL CARE,MIHOMECARE LTD,364.68,PHY LTS 65+,HOMECARE - SPOT,2103567737,1000042594
05.10.2022,ADULT SOCIAL CARE,MIHOMECARE LTD,371.72,PHY LTS 65+,HOMECARE - SPOT,2103567729,1000042594
05.10.2022,ADULT SOCIAL CARE,MIHOMECARE LTD,383.13,PHY LTS 65+,HOMECARE - SPOT,2103567743,1000042594
05.10.2022,ADULT SOCIAL CARE,MIHOMECARE LTD,401.58,PHY LTS 65+,HOMECARE - SPOT,2103567731,1000042594
05.10.2022,ADULT SOCIAL CARE,MIHOMECARE LTD,660.08,PHY LTS 65+,HOMECARE - SPOT,2103567750,1000042594
05.10.2022,ADULT SOCIAL CARE,CARE OUTLOOK LTD,404.99,PHY LTS 65+,HOMECARE - SPOT,2103567057,1000064508
05.10.2022,ADULT SOCIAL CARE,CARE DIRECT UK LTD,251.30,PHY LTS 65+,HOMECARE - SPOT,2103567772,1000066322
05.10.2022,ADULT SOCIAL CARE,CARE DIRECT UK LTD,280.00,PHY LTS 65+,HOMECARE - SPOT,2103567775,1000066322
05.10.2022,ADULT SOCIAL CARE,CARE DIRECT UK LTD,327.59,PHY LTS 65+,HOMECARE - SPOT,2103567767,1000066322
05.10.2022,ADULT SOCIAL CARE,CARE DIRECT UK LTD,520.55,PHY LTS 65+,HOMECARE - SPOT,2103567774,1000066322
05.10.2022,ADULT SOCIAL CARE,CARE DIRECT UK LTD,560.94,PHY LTS 65+,HOMECARE - SPOT,2103567766,1000066322
05.10.2022,ADULT SOCIAL CARE,CARE DIRECT UK LTD,565.43,PHY LTS 65+,HOMECARE - SPOT,2103567765,1000066322
05.10.2022,ADULT SOCIAL CARE,CARE DIRECT UK LTD,565.43,PHY LTS 65+,HOMECARE - SPOT,2103567777,1000066322
05.10.2022,ADULT SOCIAL CARE,CARE DIRECT UK LTD,753.90,PHY LTS 65+,HOMECARE - SPOT,2103567771,1000066322
05.10.2022,ADULT SOCIAL CARE,CARE DIRECT UK LTD,"1,059.05",PHY LTS 65+,HOMECARE - SPOT,2103567759,1000066322
05.10.2022,ADULT SOCIAL CARE,SUPREME CARE SERVICES LTD,674.35,PHY STS 65+,HOMECARE - IC,2103567973,1000059416
05.10.2022,ADULT SOCIAL CARE,SUPREME CARE SERVICES LTD,"3,483.28",PHY STS 65+,HOMECARE - IC,2103568471,1000059416
05.10.2022,ADULT SOCIAL CARE,SAGECARE LTD,793.80,PHY STS 65+,HOMECARE - IC,2103568509,1000080924
05.10.2022,ADULT SOCIAL CARE,LEWISHAM INDO CHINESE COMMUNITY,352.00,SEN LTS 65+,DAYCARE,2103568550,1000076593
05.10.2022,ADULT SOCIAL CARE,SUPREME CARE SERVICES LTD,741.84,SEN LTS 65+,HOMECARE - C&V,2103568061,1000059416
05.10.2022,ADULT SOCIAL CARE,SUPREME CARE SERVICES LTD,918.67,SEN LTS 65+,HOMECARE - C&V,2103567868,1000059416
05.10.2022,ADULT SOCIAL CARE,SUPREME CARE SERVICES LTD,"1,024.88",SEN LTS 65+,HOMECARE - C&V,2103568114,1000059416
05.10.2022,ADULT SOCIAL CARE,SUPREME CARE SERVICES LTD,"1,101.14",SEN LTS 65+,HOMECARE - C&V,2103567854,1000059416
05.10.2022,ADULT SOCIAL CARE,CARE DIRECT UK LTD,628.25,SEN LTS 65+,HOMECARE - SPOT,2103567773,1000066322
05.10.2022,ADULT SOCIAL CARE,SUPREME CARE SERVICES LTD,350.21,SOCIAL ISOLATION,HOMECARE - C&V,2103568192,1000059416
05.10.2022,ADULT SOCIAL CARE,SUPREME CARE SERVICES LTD,589.72,SOCIAL ISOLATION,HOMECARE - C&V,2103568128,1000059416
05.10.2022,ADULT SOCIAL CARE,SUPREME CARE SERVICES LTD,594.64,SOCIAL ISOLATION,HOMECARE - C&V,2103567972,1000059416
05.10.2022,ADULT SOCIAL CARE,SUPREME CARE SERVICES LTD,"2,208.89",SOCIAL ISOLATION,HOMECARE - C&V,2103567855,1000059416
05.10.2022,ADULT SOCIAL CARE,KIDS,600.00,SPECIALIST CARE,SECTION 17 PAYMENTS TO AGENCIES/CARERS,2103568447,1000030036
05.10.2022,ADULT SOCIAL CARE,CONTACT PROFESSIONALS,270.60,SPECIALIST CARE,SECTION 17 PAYMENTS TO AGENCIES/CARERS,2103568449,1000057263
05.10.2022,ADULT SOCIAL CARE,SUPREME CARE SERVICES LTD,288.00,SPECIALIST CARE,SECTION 17 PAYMENTS TO AGENCIES/CARERS,2103568444,1000059416
05.10.2022,ADULT SOCIAL CARE,SUPREME CARE SERVICES LTD,288.00,SPECIALIST CARE,SECTION 17 PAYMENTS TO AGENCIES/CARERS,2103568445,1000059416
05.10.2022,ADULT SOCIAL CARE,SUPREME CARE SERVICES LTD,288.00,SPECIALIST CARE,SECTION 17 PAYMENTS TO AGENCIES/CARERS,2103568453,1000059416
05.10.2022,ADULT SOCIAL CARE,SUPREME CARE SERVICES LTD,288.00,SPECIALIST CARE,SECTION 17 PAYMENTS TO AGENCIES/CARERS,2103568454,1000059416
05.10.2022,ADULT SOCIAL CARE,SUPREME CARE SERVICES LTD,288.00,SPECIALIST CARE,SECTION 17 PAYMENTS TO AGENCIES/CARERS,2103568457,1000059416
05.10.2022,ADULT SOCIAL CARE,SUPREME CARE SERVICES LTD,288.00,SPECIALIST CARE,SECTION 17 PAYMENTS TO AGENCIES/CARERS,2103568458,1000059416
05.10.2022,ADULT SOCIAL CARE,SUPREME CARE SERVICES LTD,288.00,SPECIALIST CARE,SECTION 17 PAYMENTS TO AGENCIES/CARERS,2103568460,1000059416
05.10.2022,ADULT SOCIAL CARE,SUPREME CARE SERVICES LTD,288.00,SPECIALIST CARE,SECTION 17 PAYMENTS TO AGENCIES/CARERS,2103568462,1000059416
05.10.2022,ADULT SOCIAL CARE,SUPREME CARE SERVICES LTD,324.00,SPECIALIST CARE,SECTION 17 PAYMENTS TO AGENCIES/CARERS,2103568441,1000059416
05.10.2022,ADULT SOCIAL CARE,SUPREME CARE SERVICES LTD,360.00,SPECIALIST CARE,SECTION 17 PAYMENTS TO AGENCIES/CARERS,2103568443,1000059416
05.10.2022,ADULT SOCIAL CARE,SUPREME CARE SERVICES LTD,360.00,SPECIALIST CARE,SECTION 17 PAYMENTS TO AGENCIES/CARERS,2103568456,1000059416
05.10.2022,ADULT SOCIAL CARE,SUPREME CARE SERVICES LTD,432.00,SPECIALIST CARE,SECTION 17 PAYMENTS TO AGENCIES/CARERS,2103568450,1000059416
05.10.2022,ADULT SOCIAL CARE,SUPREME CARE SERVICES LTD,432.00,SPECIALIST CARE,SECTION 17 PAYMENTS TO AGENCIES/CARERS,2103568452,1000059416
05.10.2022,ADULT SOCIAL CARE,SUPREME CARE SERVICES LTD,432.00,SPECIALIST CARE,SECTION 17 PAYMENTS TO AGENCIES/CARERS,2103568455,1000059416
05.10.2022,ADULT SOCIAL CARE,SUPREME CARE SERVICES LTD,432.00,SPECIALIST CARE,SECTION 17 PAYMENTS TO AGENCIES/CARERS,2103568463,1000059416
05.10.2022,ADULT SOCIAL CARE,SUPREME CARE SERVICES LTD,504.00,SPECIALIST CARE,SECTION 17 PAYMENTS TO AGENCIES/CARERS,2103568446,1000059416
05.10.2022,ADULT SOCIAL CARE,SUPREME CARE SERVICES LTD,"1,411.26",SUB LTS 18-64,HOMECARE - C&V,2103567878,1000059416
05.10.2022,ASSET MANAGEMENT,ALEXANDER MILLS CONSULTING LTD,"9,571.60",BUILDING SAFETY PROGRAMME,CONSULTANTS SERVICES,5902545559,1000088721
05.10.2022,ASSET MANAGEMENT,FRANKLYN SHAW ASSOCIATES LTD,420.00,DISREPAIR,BUILDING R&M,5902545557,1000068289
05.10.2022,ASSET MANAGEMENT,ARMINA LTD,322.67,DISREPAIR,BUILDING R&M,2103568556,3000002121
05.10.2022,ASSET MANAGEMENT,ARMINA LTD,934.11,DISREPAIR,BUILDING R&M,2103568557,3000002121
05.10.2022,ASSET MANAGEMENT,GAS ADVISORY SERVICES LIMITED,"1,054.22",ENG CONTRACTS (NORTH),HEATING -DISTRICT SERVICE (CONTRACT SUM),5902545691,1000064649
05.10.2022,ASSET MANAGEMENT,GAS ADVISORY SERVICES LIMITED,"1,258.00",ENG CONTRACTS (NORTH),HEATING -DISTRICT SERVICE (CONTRACT SUM),5902545690,1000064649
05.10.2022,CENTRAL FUNCTIONS,CBS MAINTENANCE SERVICES LTD,600.00,COMMERCIAL PROPERTIES,BUILDING R&M,5902545561,1000072375
05.10.2022,CHIEF EXECUTIVE,SHERGROUP LTD,"3,360.00",CAPITAL PS (REGEN),CONSTRUCTION SITE COSTS,5902545671,1000087977
05.10.2022,CHIEF EXECUTIVE,SHERGROUP LTD,"3,360.00",CAPITAL PS (REGEN),CONSTRUCTION SITE COSTS,5902545674,1000087977
05.10.2022,CHIEF EXECUTIVE,SHERGROUP LTD,"3,360.00",CAPITAL PS (REGEN),CONSTRUCTION SITE COSTS,5902545676,1000087977
05.10.2022,CHIEF EXECUTIVE,SHERGROUP LTD,"3,360.00",CAPITAL PS (REGEN),CONSTRUCTION SITE COSTS,5902545679,1000087977
05.10.2022,CHIEF EXECUTIVE'S OFFICE,CONNEXIONS CUISINE LTD T/A MASONS CATERING,361.10,STRATEGY AND CHANGE,REFRESHMENTS FOR MEETINGS,5902545661,11317153
05.10.2022,CHILDREN AND ADULT,CULLINAN STUDIO LTD,"28,748.22",CAPITAL PS (EDUCATION),CONSTRUCTION FEES - ARCHITECT,5902545684,1000087576
05.10.2022,CHILDREN AND ADULT,FARRANS CONSTRUCTION,"258,037.19",CAPITAL PS (EDUCATION),CONSTRUCTION MAIN CONTRACT -CERTIFICATED,2103568564,3000002159
05.10.2022,CHILDREN AND FAMILIES,DOG KENNEL HILL ADVENTURE PLAYGROUND LTD,350.00,ADOPT LONDON SOUTH,EXTERNAL AGENCIES AND BODIES,5902545619,11134529
05.10.2022,CHILDREN AND FAMILIES,FAMILY ACTION,900.00,ADOPT LONDON SOUTH,PROFESSIONAL FEES,5902545628,1013739
05.10.2022,CHILDREN AND FAMILIES,FAMILY ACTION,"11,250.00",ADOPT LONDON SOUTH,PROFESSIONAL FEES,5902545629,1013739
05.10.2022,CHILDREN AND FAMILIES,REDACTED PERSONAL DATA,375.54,ADOPTION ALLOWANCES,PAYMENTS TO CARERS,REDACTED,REDACTED
05.10.2022,CHILDREN AND FAMILIES,REDACTED PERSONAL DATA,375.54,ADOPTION ALLOWANCES,PAYMENTS TO CARERS,REDACTED,REDACTED
05.10.2022,CHILDREN AND FAMILIES,REDACTED PERSONAL DATA,712.30,ADOPTION ALLOWANCES,PAYMENTS TO CARERS,REDACTED,REDACTED
05.10.2022,CHILDREN AND FAMILIES,REDACTED PERSONAL DATA,862.00,ADOPTION ALLOWANCES,PAYMENTS TO CARERS,REDACTED,REDACTED
05.10.2022,CHILDREN AND FAMILIES,REDACTED PERSONAL DATA,635.34,ADOPTION ALLOWANCES,PAYMENTS TO CARERS,REDACTED,REDACTED
05.10.2022,CHILDREN AND FAMILIES,REDACTED PERSONAL DATA,375.54,ADOPTION ALLOWANCES,PAYMENTS TO CARERS,REDACTED,REDACTED
05.10.2022,CHILDREN AND FAMILIES,REDACTED PERSONAL DATA,375.54,ADOPTION ALLOWANCES,PAYMENTS TO CARERS,REDACTED,REDACTED
05.10.2022,CHILDREN AND FAMILIES,REDACTED PERSONAL DATA,451.80,ADOPTION ALLOWANCES,PAYMENTS TO CARERS,REDACTED,REDACTED
05.10.2022,CHILDREN AND FAMILIES,REDACTED PERSONAL DATA,386.00,ADOPTION ALLOWANCES,PAYMENTS TO CARERS,REDACTED,REDACTED
05.10.2022,CHILDREN AND FAMILIES,REDACTED PERSONAL DATA,705.24,ADOPTION ALLOWANCES,PAYMENTS TO CARERS,REDACTED,REDACTED
05.10.2022,CHILDREN AND FAMILIES,REDACTED PERSONAL DATA,777.36,ADOPTION ALLOWANCES,PAYMENTS TO CARERS,REDACTED,REDACTED
05.10.2022,CHILDREN AND FAMILIES,REDACTED PERSONAL DATA,512.02,ADOPTION ALLOWANCES,PAYMENTS TO CARERS,REDACTED,REDACTED
05.10.2022,CHILDREN AND FAMILIES,REDACTED PERSONAL DATA,251.12,ADOPTION ALLOWANCES,PAYMENTS TO CARERS,REDACTED,REDACTED
05.10.2022,CHILDREN AND FAMILIES,REDACTED PERSONAL DATA,375.54,ADOPTION ALLOWANCES,PAYMENTS TO CARERS,REDACTED,REDACTED
05.10.2022,CHILDREN AND FAMILIES,REDACTED PERSONAL DATA,375.54,ADOPTION ALLOWANCES,PAYMENTS TO CARERS,REDACTED,REDACTED
05.10.2022,CHILDREN AND FAMILIES,REDACTED PERSONAL DATA,502.00,ADOPTION ALLOWANCES,PAYMENTS TO CARERS,REDACTED,REDACTED
05.10.2022,CHILDREN AND FAMILIES,REDACTED PERSONAL DATA,375.54,ADOPTION ALLOWANCES,PAYMENTS TO CARERS,REDACTED,REDACTED
05.10.2022,CHILDREN AND FAMILIES,REDACTED PERSONAL DATA,640.90,ADOPTION ALLOWANCES,PAYMENTS TO CARERS,REDACTED,REDACTED
05.10.2022,CHILDREN AND FAMILIES,REDACTED PERSONAL DATA,382.30,ADOPTION ALLOWANCES,PAYMENTS TO CARERS,REDACTED,REDACTED
05.10.2022,CHILDREN AND FAMILIES,REDACTED PERSONAL DATA,382.30,ADOPTION ALLOWANCES,PAYMENTS TO CARERS,REDACTED,REDACTED
05.10.2022,CHILDREN AND FAMILIES,REDACTED PERSONAL DATA,359.90,ADOPTION ALLOWANCES,PAYMENTS TO CARERS,REDACTED,REDACTED
05.10.2022,CHILDREN AND FAMILIES,REDACTED PERSONAL DATA,320.56,ADOPTION ALLOWANCES,PAYMENTS TO CARERS,REDACTED,REDACTED
05.10.2022,CHILDREN AND FAMILIES,REDACTED PERSONAL DATA,278.54,ADOPTION ALLOWANCES,PAYMENTS TO CARERS,REDACTED,REDACTED
05.10.2022,CHILDREN AND FAMILIES,REDACTED PERSONAL DATA,485.22,ADOPTION ALLOWANCES,PAYMENTS TO CARERS,REDACTED,REDACTED
05.10.2022,CHILDREN AND FAMILIES,REDACTED PERSONAL DATA,442.74,ADOPTION ALLOWANCES,PAYMENTS TO CARERS,REDACTED,REDACTED
05.10.2022,CHILDREN AND FAMILIES,REDACTED PERSONAL DATA,252.90,ADOPTION ALLOWANCES,PAYMENTS TO CARERS,REDACTED,REDACTED
05.10.2022,CHILDREN AND FAMILIES,REDACTED PERSONAL DATA,253.56,ADOPTION ALLOWANCES,PAYMENTS TO CARERS,REDACTED,REDACTED
05.10.2022,CHILDREN AND FAMILIES,REDACTED PERSONAL DATA,382.30,ADOPTION ALLOWANCES,PAYMENTS TO CARERS,REDACTED,REDACTED
05.10.2022,CHILDREN AND FAMILIES,REDACTED PERSONAL DATA,382.30,ADOPTION ALLOWANCES,PAYMENTS TO CARERS,REDACTED,REDACTED
05.10.2022,CHILDREN AND FAMILIES,REDACTED PERSONAL DATA,484.92,ADOPTION ALLOWANCES,PAYMENTS TO CARERS,REDACTED,REDACTED
05.10.2022,CHILDREN AND FAMILIES,REDACTED PERSONAL DATA,530.00,ADOPTION ALLOWANCES,PAYMENTS TO CARERS,REDACTED,REDACTED
05.10.2022,CHILDREN AND FAMILIES,REDACTED PERSONAL DATA,908.00,ADOPTION ALLOWANCES,PAYMENTS TO CARERS,REDACTED,REDACTED
05.10.2022,CHILDREN AND FAMILIES,REDACTED PERSONAL DATA,369.16,ADOPTION ALLOWANCES,PAYMENTS TO CARERS,REDACTED,REDACTED
05.10.2022,CHILDREN AND FAMILIES,REDACTED PERSONAL DATA,695.12,ADOPTION ALLOWANCES,PAYMENTS TO CARERS,REDACTED,REDACTED
05.10.2022,CHILDREN AND FAMILIES,REDACTED PERSONAL DATA,293.98,ADOPTION ALLOWANCES,PAYMENTS TO CARERS,REDACTED,REDACTED
05.10.2022,CHILDREN AND FAMILIES,REDACTED PERSONAL DATA,251.94,ADOPTION ALLOWANCES,PAYMENTS TO CARERS,REDACTED,REDACTED
05.10.2022,CHILDREN AND FAMILIES,REDACTED PERSONAL DATA,652.90,ADOPTION ALLOWANCES,PAYMENTS TO CARERS,REDACTED,REDACTED
05.10.2022,CHILDREN AND FAMILIES,REDACTED PERSONAL DATA,652.90,ADOPTION ALLOWANCES,PAYMENTS TO CARERS,REDACTED,REDACTED
05.10.2022,CHILDREN AND FAMILIES,REDACTED PERSONAL DATA,712.30,ADOPTION ALLOWANCES,PAYMENTS TO CARERS,REDACTED,REDACTED
05.10.2022,CHILDREN AND FAMILIES,REDACTED PERSONAL DATA,767.68,ADOPTION ALLOWANCES,PAYMENTS TO CARERS,REDACTED,REDACTED
05.10.2022,CHILDREN AND FAMILIES,REDACTED PERSONAL DATA,400.18,ADOPTION ALLOWANCES,PAYMENTS TO CARERS,REDACTED,REDACTED
05.10.2022,CHILDREN AND FAMILIES,REDACTED PERSONAL DATA,704.00,ADOPTION ALLOWANCES,PAYMENTS TO CARERS,REDACTED,REDACTED
05.10.2022,CHILDREN AND FAMILIES,REDACTED PERSONAL DATA,789.70,ADOPTION ALLOWANCES,PAYMENTS TO CARERS,REDACTED,REDACTED
05.10.2022,CHILDREN AND FAMILIES,REDACTED PERSONAL DATA,588.42,ADOPTION ALLOWANCES,PAYMENTS TO CARERS,REDACTED,REDACTED
05.10.2022,CHILDREN AND FAMILIES,REDACTED PERSONAL DATA,"1,053.20",ADOPTION ALLOWANCES,PAYMENTS TO CARERS,REDACTED,REDACTED
05.10.2022,CHILDREN AND FAMILIES,REDACTED PERSONAL DATA,386.00,ADOPTION ALLOWANCES,PAYMENTS TO CARERS,REDACTED,REDACTED
05.10.2022,CHILDREN AND FAMILIES,REDACTED PERSONAL DATA,618.60,ADOPTION ALLOWANCES,PAYMENTS TO CARERS,REDACTED,REDACTED
05.10.2022,CHILDREN AND FAMILIES,REDACTED PERSONAL DATA,682.00,ADOPTION ALLOWANCES,PAYMENTS TO CARERS,REDACTED,REDACTED
05.10.2022,CHILDREN AND FAMILIES,REDACTED PERSONAL DATA,276.10,ADOPTION ALLOWANCES,PAYMENTS TO CARERS,REDACTED,REDACTED
05.10.2022,CHILDREN AND FAMILIES,REDACTED PERSONAL DATA,268.62,ADOPTION ALLOWANCES,PAYMENTS TO CARERS,REDACTED,REDACTED
05.10.2022,CHILDREN AND FAMILIES,REDACTED PERSONAL DATA,288.82,ADOPTION ALLOWANCES,PAYMENTS TO CARERS,REDACTED,REDACTED
05.10.2022,CHILDREN AND FAMILIES,REDACTED PERSONAL DATA,288.92,ADOPTION ALLOWANCES,PAYMENTS TO CARERS,REDACTED,REDACTED
05.10.2022,CHILDREN AND FAMILIES,REDACTED PERSONAL DATA,682.00,ADOPTION ALLOWANCES,PAYMENTS TO CARERS,REDACTED,REDACTED
05.10.2022,CHILDREN AND FAMILIES,REDACTED PERSONAL DATA,682.00,ADOPTION ALLOWANCES,PAYMENTS TO CARERS,REDACTED,REDACTED
05.10.2022,CHILDREN AND FAMILIES,REDACTED PERSONAL DATA,682.00,ADOPTION ALLOWANCES,PAYMENTS TO CARERS,REDACTED,REDACTED
05.10.2022,CHILDREN AND FAMILIES,REDACTED PERSONAL DATA,682.00,ADOPTION ALLOWANCES,PAYMENTS TO CARERS,REDACTED,REDACTED
05.10.2022,CHILDREN AND FAMILIES,REDACTED PERSONAL DATA,682.00,ADOPTION ALLOWANCES,PAYMENTS TO CARERS,REDACTED,REDACTED
05.10.2022,CHILDREN AND FAMILIES,REDACTED PERSONAL DATA,696.00,ADOPTION ALLOWANCES,PAYMENTS TO CARERS,REDACTED,REDACTED
05.10.2022,CHILDREN AND FAMILIES,REDACTED PERSONAL DATA,696.00,ADOPTION ALLOWANCES,PAYMENTS TO CARERS,REDACTED,REDACTED
05.10.2022,CHILDREN AND FAMILIES,REDACTED PERSONAL DATA,696.00,ADOPTION ALLOWANCES,PAYMENTS TO CARERS,REDACTED,REDACTED
05.10.2022,CHILDREN AND FAMILIES,INDEPENDENT BIA LTD,400.00,ADOPTION SUPP FUND,EXTERNAL AGENCIES AND BODIES,5902545639,1000086264
05.10.2022,CHILDREN AND FAMILIES,ALEX VOLOVISKY LTD,600.00,ADOPTION SUPP FUND,EXTERNAL AGENCIES AND BODIES,5902545724,1000088469
05.10.2022,CHILDREN AND FAMILIES,REDACTED PERSONAL DATA,520.00,ADOPTION SUPP FUND,EXTERNAL AGENCIES AND BODIES,REDACTED,REDACTED
05.10.2022,CHILDREN AND FAMILIES,REDACTED PERSONAL DATA,350.00,ADOPTION SUPP FUND,EXTERNAL AGENCIES AND BODIES,REDACTED,REDACTED
05.10.2022,CHILDREN AND FAMILIES,CREATING CARE CHOICES LTD,"4,242.85",CHILDREN�S RESID,RESIDENTIAL CARE,2103568416,1000076738
05.10.2022,CHILDREN AND FAMILIES,STONELAKE LONDON LTD,"18,000.00",CHILDREN�S RESID,RESIDENTIAL CARE,2103568418,1000080075
05.10.2022,CHILDREN AND FAMILIES,247 BLUEBELL CARE LIMITED,"20,790.39",CHILDREN�S RESID,RESIDENTIAL CARE,2103568420,1000087186
05.10.2022,CHILDREN AND FAMILIES,CAMERON & COOPER LIMITED,"17,400.00",CHILDREN�S RESID,RESIDENTIAL CARE,2103568421,1000087598
05.10.2022,CHILDREN AND FAMILIES,REDACTED PERSONAL DATA,300.00,FE SUPPORT,CLIENT TRANSPORT,REDACTED,REDACTED
05.10.2022,CHILDREN AND FAMILIES,REDACTED PERSONAL DATA,300.00,FE SUPPORT,CLIENT TRANSPORT,REDACTED,REDACTED
05.10.2022,CHILDREN AND FAMILIES,REDACTED PERSONAL DATA,300.00,FE SUPPORT,CLIENT TRANSPORT,REDACTED,REDACTED
05.10.2022,CHILDREN AND FAMILIES,REDACTED PERSONAL DATA,300.00,FE SUPPORT,CLIENT TRANSPORT,REDACTED,REDACTED
05.10.2022,CHILDREN AND FAMILIES,REDACTED PERSONAL DATA,500.00,FE SUPPORT,OTHER PAYMENTS FOR CLIENTS,REDACTED,REDACTED
05.10.2022,CHILDREN AND FAMILIES,REDACTED PERSONAL DATA,300.00,FOSTERING ALLOWANCES,ADDITIONAL PAYMENTS TO AGENCIES/CARERS,REDACTED,REDACTED
05.10.2022,CHILDREN AND FAMILIES,REDACTED PERSONAL DATA,400.00,FOSTERING ALLOWANCES,ADDITIONAL PAYMENTS TO AGENCIES/CARERS,REDACTED,REDACTED
05.10.2022,CHILDREN AND FAMILIES,REDACTED PERSONAL DATA,400.00,FOSTERING ALLOWANCES,ADDITIONAL PAYMENTS TO AGENCIES/CARERS,REDACTED,REDACTED
05.10.2022,CHILDREN AND FAMILIES,REDACTED PERSONAL DATA,"1,900.00",FOSTERING ALLOWANCES,ADDITIONAL PAYMENTS TO AGENCIES/CARERS,REDACTED,REDACTED
05.10.2022,CHILDREN AND FAMILIES,REDACTED PERSONAL DATA,-400.00,FOSTERING ALLOWANCES,ADDITIONAL PAYMENTS TO AGENCIES/CARERS,REDACTED,REDACTED
05.10.2022,CHILDREN AND FAMILIES,REDACTED PERSONAL DATA,400.00,FOSTERING ALLOWANCES,ADDITIONAL PAYMENTS TO AGENCIES/CARERS,REDACTED,REDACTED
05.10.2022,CHILDREN AND FAMILIES,REDACTED PERSONAL DATA,500.00,FOSTERING ALLOWANCES,ADDITIONAL PAYMENTS TO AGENCIES/CARERS,REDACTED,REDACTED
05.10.2022,CHILDREN AND FAMILIES,REDACTED PERSONAL DATA,300.00,FOSTERING ALLOWANCES,ADDITIONAL PAYMENTS TO AGENCIES/CARERS,REDACTED,REDACTED
05.10.2022,CHILDREN AND FAMILIES,REDACTED PERSONAL DATA,300.00,FOSTERING ALLOWANCES,ADDITIONAL PAYMENTS TO AGENCIES/CARERS,REDACTED,REDACTED
05.10.2022,CHILDREN AND FAMILIES,REDACTED PERSONAL DATA,500.00,FOSTERING ALLOWANCES,COMPUTER CONSUMABLES,REDACTED,REDACTED
05.10.2022,CHILDREN AND FAMILIES,REDACTED PERSONAL DATA,778.00,FOSTERING ALLOWANCES,PAYMENTS TO CARERS,REDACTED,REDACTED
05.10.2022,CHILDREN AND FAMILIES,REDACTED PERSONAL DATA,972.00,FOSTERING ALLOWANCES,PAYMENTS TO CARERS,REDACTED,REDACTED
05.10.2022,CHILDREN AND FAMILIES,REDACTED PERSONAL DATA,972.00,FOSTERING ALLOWANCES,PAYMENTS TO CARERS,REDACTED,REDACTED
05.10.2022,CHILDREN AND FAMILIES,REDACTED PERSONAL DATA,882.00,FOSTERING ALLOWANCES,PAYMENTS TO CARERS,REDACTED,REDACTED
05.10.2022,CHILDREN AND FAMILIES,REDACTED PERSONAL DATA,920.57,FOSTERING ALLOWANCES,PAYMENTS TO CARERS,REDACTED,REDACTED
05.10.2022,CHILDREN AND FAMILIES,REDACTED PERSONAL DATA,972.00,FOSTERING ALLOWANCES,PAYMENTS TO CARERS,REDACTED,REDACTED
05.10.2022,CHILDREN AND FAMILIES,REDACTED PERSONAL DATA,882.00,FOSTERING ALLOWANCES,PAYMENTS TO CARERS,REDACTED,REDACTED
05.10.2022,CHILDREN AND FAMILIES,REDACTED PERSONAL DATA,880.00,FOSTERING ALLOWANCES,PAYMENTS TO CARERS,REDACTED,REDACTED
05.10.2022,CHILDREN AND FAMILIES,REDACTED PERSONAL DATA,914.00,FOSTERING ALLOWANCES,PAYMENTS TO CARERS,REDACTED,REDACTED
05.10.2022,CHILDREN AND FAMILIES,REDACTED PERSONAL DATA,972.00,FOSTERING ALLOWANCES,PAYMENTS TO CARERS,REDACTED,REDACTED
05.10.2022,CHILDREN AND FAMILIES,REDACTED PERSONAL DATA,972.00,FOSTERING ALLOWANCES,PAYMENTS TO CARERS,REDACTED,REDACTED
05.10.2022,CHILDREN AND FAMILIES,REDACTED PERSONAL DATA,632.30,FOSTERING ALLOWANCES,PAYMENTS TO CARERS,REDACTED,REDACTED
05.10.2022,CHILDREN AND FAMILIES,REDACTED PERSONAL DATA,848.00,FOSTERING ALLOWANCES,PAYMENTS TO CARERS,REDACTED,REDACTED
05.10.2022,CHILDREN AND FAMILIES,REDACTED PERSONAL DATA,-300.00,FOSTERING ALLOWANCES,PAYMENTS TO CARERS,REDACTED,REDACTED
05.10.2022,CHILDREN AND FAMILIES,REDACTED PERSONAL DATA,726.00,FOSTERING ALLOWANCES,PAYMENTS TO CARERS,REDACTED,REDACTED
05.10.2022,CHILDREN AND FAMILIES,REDACTED PERSONAL DATA,880.00,FOSTERING ALLOWANCES,PAYMENTS TO CARERS,REDACTED,REDACTED
05.10.2022,CHILDREN AND FAMILIES,REDACTED PERSONAL DATA,"1,632.00",FOSTERING ALLOWANCES,PAYMENTS TO CARERS,REDACTED,REDACTED
05.10.2022,CHILDREN AND FAMILIES,REDACTED PERSONAL DATA,882.00,FOSTERING ALLOWANCES,PAYMENTS TO CARERS,REDACTED,REDACTED
05.10.2022,CHILDREN AND FAMILIES,REDACTED PERSONAL DATA,"1,632.00",FOSTERING ALLOWANCES,PAYMENTS TO CARERS,REDACTED,REDACTED
05.10.2022,CHILDREN AND FAMILIES,REDACTED PERSONAL DATA,882.00,FOSTERING ALLOWANCES,PAYMENTS TO CARERS,REDACTED,REDACTED
05.10.2022,CHILDREN AND FAMILIES,REDACTED PERSONAL DATA,972.00,FOSTERING ALLOWANCES,PAYMENTS TO CARERS,REDACTED,REDACTED
05.10.2022,CHILDREN AND FAMILIES,REDACTED PERSONAL DATA,972.00,FOSTERING ALLOWANCES,PAYMENTS TO CARERS,REDACTED,REDACTED
05.10.2022,CHILDREN AND FAMILIES,REDACTED PERSONAL DATA,880.00,FOSTERING ALLOWANCES,PAYMENTS TO CARERS,REDACTED,REDACTED
05.10.2022,CHILDREN AND FAMILIES,REDACTED PERSONAL DATA,-440.00,FOSTERING ALLOWANCES,PAYMENTS TO CARERS,REDACTED,REDACTED
05.10.2022,CHILDREN AND FAMILIES,REDACTED PERSONAL DATA,778.00,FOSTERING ALLOWANCES,PAYMENTS TO CARERS,REDACTED,REDACTED
05.10.2022,CHILDREN AND FAMILIES,REDACTED PERSONAL DATA,880.00,FOSTERING ALLOWANCES,PAYMENTS TO CARERS,REDACTED,REDACTED
05.10.2022,CHILDREN AND FAMILIES,REDACTED PERSONAL DATA,972.00,FOSTERING ALLOWANCES,PAYMENTS TO CARERS,REDACTED,REDACTED
05.10.2022,CHILDREN AND FAMILIES,REDACTED PERSONAL DATA,880.00,FOSTERING ALLOWANCES,PAYMENTS TO CARERS,REDACTED,REDACTED
05.10.2022,CHILDREN AND FAMILIES,REDACTED PERSONAL DATA,880.00,FOSTERING ALLOWANCES,PAYMENTS TO CARERS,REDACTED,REDACTED
05.10.2022,CHILDREN AND FAMILIES,REDACTED PERSONAL DATA,882.00,FOSTERING ALLOWANCES,PAYMENTS TO CARERS,REDACTED,REDACTED
05.10.2022,CHILDREN AND FAMILIES,REDACTED PERSONAL DATA,882.00,FOSTERING ALLOWANCES,PAYMENTS TO CARERS,REDACTED,REDACTED
05.10.2022,CHILDREN AND FAMILIES,REDACTED PERSONAL DATA,882.00,FOSTERING ALLOWANCES,PAYMENTS TO CARERS,REDACTED,REDACTED
05.10.2022,CHILDREN AND FAMILIES,REDACTED PERSONAL DATA,660.00,FOSTERING ALLOWANCES,PAYMENTS TO CARERS,REDACTED,REDACTED
05.10.2022,CHILDREN AND FAMILIES,REDACTED PERSONAL DATA,880.00,FOSTERING ALLOWANCES,PAYMENTS TO CARERS,REDACTED,REDACTED
05.10.2022,CHILDREN AND FAMILIES,REDACTED PERSONAL DATA,880.00,FOSTERING ALLOWANCES,PAYMENTS TO CARERS,REDACTED,REDACTED
05.10.2022,CHILDREN AND FAMILIES,REDACTED PERSONAL DATA,972.00,FOSTERING ALLOWANCES,PAYMENTS TO CARERS,REDACTED,REDACTED
05.10.2022,CHILDREN AND FAMILIES,REDACTED PERSONAL DATA,"1,632.00",FOSTERING ALLOWANCES,PAYMENTS TO CARERS,REDACTED,REDACTED
05.10.2022,CHILDREN AND FAMILIES,REDACTED PERSONAL DATA,"1,632.00",FOSTERING ALLOWANCES,PAYMENTS TO CARERS,REDACTED,REDACTED
05.10.2022,CHILDREN AND FAMILIES,REDACTED PERSONAL DATA,938.00,FOSTERING ALLOWANCES,PAYMENTS TO CARERS,REDACTED,REDACTED
05.10.2022,CHILDREN AND FAMILIES,REDACTED PERSONAL DATA,914.00,FOSTERING ALLOWANCES,PAYMENTS TO CARERS,REDACTED,REDACTED
05.10.2022,CHILDREN AND FAMILIES,REDACTED PERSONAL DATA,-314.29,FOSTERING ALLOWANCES,PAYMENTS TO CARERS,REDACTED,REDACTED
05.10.2022,CHILDREN AND FAMILIES,REDACTED PERSONAL DATA,914.00,FOSTERING ALLOWANCES,PAYMENTS TO CARERS,REDACTED,REDACTED
05.10.2022,CHILDREN AND FAMILIES,REDACTED PERSONAL DATA,726.00,FOSTERING ALLOWANCES,PAYMENTS TO CARERS,REDACTED,REDACTED
05.10.2022,CHILDREN AND FAMILIES,REDACTED PERSONAL DATA,744.00,FOSTERING ALLOWANCES,PAYMENTS TO CARERS,REDACTED,REDACTED
05.10.2022,CHILDREN AND FAMILIES,REDACTED PERSONAL DATA,696.00,FOSTERING ALLOWANCES,PAYMENTS TO CARERS,REDACTED,REDACTED
05.10.2022,CHILDREN AND FAMILIES,REDACTED PERSONAL DATA,850.00,FOSTERING ALLOWANCES,PAYMENTS TO CARERS,REDACTED,REDACTED
05.10.2022,CHILDREN AND FAMILIES,REDACTED PERSONAL DATA,880.00,FOSTERING ALLOWANCES,PAYMENTS TO CARERS,REDACTED,REDACTED
05.10.2022,CHILDREN AND FAMILIES,REDACTED PERSONAL DATA,972.00,FOSTERING ALLOWANCES,PAYMENTS TO CARERS,REDACTED,REDACTED
05.10.2022,CHILDREN AND FAMILIES,REDACTED PERSONAL DATA,"1,694.00",FOSTERING ALLOWANCES,PAYMENTS TO CARERS,REDACTED,REDACTED
05.10.2022,CHILDREN AND FAMILIES,REDACTED PERSONAL DATA,-450.38,FOSTERING ALLOWANCES,PAYMENTS TO CARERS,REDACTED,REDACTED
05.10.2022,CHILDREN AND FAMILIES,REDACTED PERSONAL DATA,880.00,FOSTERING ALLOWANCES,PAYMENTS TO CARERS,REDACTED,REDACTED
05.10.2022,CHILDREN AND FAMILIES,REDACTED PERSONAL DATA,972.00,FOSTERING ALLOWANCES,PAYMENTS TO CARERS,REDACTED,REDACTED
05.10.2022,CHILDREN AND FAMILIES,REDACTED PERSONAL DATA,880.00,FOSTERING ALLOWANCES,PAYMENTS TO CARERS,REDACTED,REDACTED
05.10.2022,CHILDREN AND FAMILIES,REDACTED PERSONAL DATA,726.00,FOSTERING ALLOWANCES,PAYMENTS TO CARERS,REDACTED,REDACTED
05.10.2022,CHILDREN AND FAMILIES,REDACTED PERSONAL DATA,"-1,900.00",FOSTERING ALLOWANCES,PAYMENTS TO CARERS,REDACTED,REDACTED
05.10.2022,CHILDREN AND FAMILIES,REDACTED PERSONAL DATA,914.00,FOSTERING ALLOWANCES,PAYMENTS TO CARERS,REDACTED,REDACTED
05.10.2022,CHILDREN AND FAMILIES,REDACTED PERSONAL DATA,"1,004.00",FOSTERING ALLOWANCES,PAYMENTS TO CARERS,REDACTED,REDACTED
05.10.2022,CHILDREN AND FAMILIES,REDACTED PERSONAL DATA,880.00,FOSTERING ALLOWANCES,PAYMENTS TO CARERS,REDACTED,REDACTED
05.10.2022,CHILDREN AND FAMILIES,REDACTED PERSONAL DATA,972.00,FOSTERING ALLOWANCES,PAYMENTS TO CARERS,REDACTED,REDACTED
05.10.2022,CHILDREN AND FAMILIES,REDACTED PERSONAL DATA,"1,694.00",FOSTERING ALLOWANCES,PAYMENTS TO CARERS,REDACTED,REDACTED
05.10.2022,CHILDREN AND FAMILIES,REDACTED PERSONAL DATA,880.00,FOSTERING ALLOWANCES,PAYMENTS TO CARERS,REDACTED,REDACTED
05.10.2022,CHILDREN AND FAMILIES,REDACTED PERSONAL DATA,880.00,FOSTERING ALLOWANCES,PAYMENTS TO CARERS,REDACTED,REDACTED
05.10.2022,CHILDREN AND FAMILIES,REDACTED PERSONAL DATA,726.00,FOSTERING ALLOWANCES,PAYMENTS TO CARERS,REDACTED,REDACTED
05.10.2022,CHILDREN AND FAMILIES,REDACTED PERSONAL DATA,882.00,FOSTERING ALLOWANCES,PAYMENTS TO CARERS,REDACTED,REDACTED
05.10.2022,CHILDREN AND FAMILIES,REDACTED PERSONAL DATA,880.00,FOSTERING ALLOWANCES,PAYMENTS TO CARERS,REDACTED,REDACTED
05.10.2022,CHILDREN AND FAMILIES,REDACTED PERSONAL DATA,972.00,FOSTERING ALLOWANCES,PAYMENTS TO CARERS,REDACTED,REDACTED
05.10.2022,CHILDREN AND FAMILIES,REDACTED PERSONAL DATA,726.02,FOSTERING ALLOWANCES,PAYMENTS TO CARERS,REDACTED,REDACTED
05.10.2022,CHILDREN AND FAMILIES,REDACTED PERSONAL DATA,778.00,FOSTERING ALLOWANCES,PAYMENTS TO CARERS,REDACTED,REDACTED
05.10.2022,CHILDREN AND FAMILIES,REDACTED PERSONAL DATA,882.00,FOSTERING ALLOWANCES,PAYMENTS TO CARERS,REDACTED,REDACTED
05.10.2022,CHILDREN AND FAMILIES,REDACTED PERSONAL DATA,972.00,FOSTERING ALLOWANCES,PAYMENTS TO CARERS,REDACTED,REDACTED
05.10.2022,CHILDREN AND FAMILIES,REDACTED PERSONAL DATA,882.00,FOSTERING ALLOWANCES,PAYMENTS TO CARERS,REDACTED,REDACTED
05.10.2022,CHILDREN AND FAMILIES,REDACTED PERSONAL DATA,726.00,FOSTERING ALLOWANCES,PAYMENTS TO CARERS,REDACTED,REDACTED
05.10.2022,CHILDREN AND FAMILIES,REDACTED PERSONAL DATA,850.00,FOSTERING ALLOWANCES,PAYMENTS TO CARERS,REDACTED,REDACTED
05.10.2022,CHILDREN AND FAMILIES,REDACTED PERSONAL DATA,972.00,FOSTERING ALLOWANCES,PAYMENTS TO CARERS,REDACTED,REDACTED
05.10.2022,CHILDREN AND FAMILIES,REDACTED PERSONAL DATA,882.00,FOSTERING ALLOWANCES,PAYMENTS TO CARERS,REDACTED,REDACTED
05.10.2022,CHILDREN AND FAMILIES,REDACTED PERSONAL DATA,-500.14,FOSTERING ALLOWANCES,PAYMENTS TO CARERS,REDACTED,REDACTED
05.10.2022,CHILDREN AND FAMILIES,REDACTED PERSONAL DATA,880.00,FOSTERING ALLOWANCES,PAYMENTS TO CARERS,REDACTED,REDACTED
05.10.2022,CHILDREN AND FAMILIES,REDACTED PERSONAL DATA,882.00,FOSTERING ALLOWANCES,PAYMENTS TO CARERS,REDACTED,REDACTED
05.10.2022,CHILDREN AND FAMILIES,REDACTED PERSONAL DATA,746.00,FOSTERING ALLOWANCES,PAYMENTS TO CARERS,REDACTED,REDACTED
05.10.2022,CHILDREN AND FAMILIES,REDACTED PERSONAL DATA,746.00,FOSTERING ALLOWANCES,PAYMENTS TO CARERS,REDACTED,REDACTED
05.10.2022,CHILDREN AND FAMILIES,REDACTED PERSONAL DATA,726.00,FOSTERING ALLOWANCES,PAYMENTS TO CARERS,REDACTED,REDACTED
05.10.2022,CHILDREN AND FAMILIES,REDACTED PERSONAL DATA,880.00,FOSTERING ALLOWANCES,PAYMENTS TO CARERS,REDACTED,REDACTED
05.10.2022,CHILDREN AND FAMILIES,REDACTED PERSONAL DATA,880.00,FOSTERING ALLOWANCES,PAYMENTS TO CARERS,REDACTED,REDACTED
05.10.2022,CHILDREN AND FAMILIES,REDACTED PERSONAL DATA,880.00,FOSTERING ALLOWANCES,PAYMENTS TO CARERS,REDACTED,REDACTED
05.10.2022,CHILDREN AND FAMILIES,REDACTED PERSONAL DATA,"1,080.00",FOSTERING ALLOWANCES,PAYMENTS TO CARERS,REDACTED,REDACTED
05.10.2022,CHILDREN AND FAMILIES,REDACTED PERSONAL DATA,880.00,FOSTERING ALLOWANCES,PAYMENTS TO CARERS,REDACTED,REDACTED
05.10.2022,CHILDREN AND FAMILIES,REDACTED PERSONAL DATA,778.00,FOSTERING ALLOWANCES,PAYMENTS TO CARERS,REDACTED,REDACTED
05.10.2022,CHILDREN AND FAMILIES,REDACTED PERSONAL DATA,880.00,FOSTERING ALLOWANCES,PAYMENTS TO CARERS,REDACTED,REDACTED
05.10.2022,CHILDREN AND FAMILIES,REDACTED PERSONAL DATA,880.00,FOSTERING ALLOWANCES,PAYMENTS TO CARERS,REDACTED,REDACTED
05.10.2022,CHILDREN AND FAMILIES,REDACTED PERSONAL DATA,880.00,FOSTERING ALLOWANCES,PAYMENTS TO CARERS,REDACTED,REDACTED
05.10.2022,CHILDREN AND FAMILIES,REDACTED PERSONAL DATA,972.00,FOSTERING ALLOWANCES,PAYMENTS TO CARERS,REDACTED,REDACTED
05.10.2022,CHILDREN AND FAMILIES,REDACTED PERSONAL DATA,880.00,FOSTERING ALLOWANCES,PAYMENTS TO CARERS,REDACTED,REDACTED
05.10.2022,CHILDREN AND FAMILIES,REDACTED PERSONAL DATA,850.00,FOSTERING ALLOWANCES,PAYMENTS TO CARERS,REDACTED,REDACTED
05.10.2022,CHILDREN AND FAMILIES,REDACTED PERSONAL DATA,778.00,FOSTERING ALLOWANCES,PAYMENTS TO CARERS,REDACTED,REDACTED
05.10.2022,CHILDREN AND FAMILIES,REDACTED PERSONAL DATA,778.00,FOSTERING ALLOWANCES,PAYMENTS TO CARERS,REDACTED,REDACTED
05.10.2022,CHILDREN AND FAMILIES,REDACTED PERSONAL DATA,850.00,FOSTERING ALLOWANCES,PAYMENTS TO CARERS,REDACTED,REDACTED
05.10.2022,CHILDREN AND FAMILIES,REDACTED PERSONAL DATA,880.00,FOSTERING ALLOWANCES,PAYMENTS TO CARERS,REDACTED,REDACTED
05.10.2022,CHILDREN AND FAMILIES,REDACTED PERSONAL DATA,972.00,FOSTERING ALLOWANCES,PAYMENTS TO CARERS,REDACTED,REDACTED
05.10.2022,CHILDREN AND FAMILIES,REDACTED PERSONAL DATA,778.00,FOSTERING ALLOWANCES,PAYMENTS TO CARERS,REDACTED,REDACTED
05.10.2022,CHILDREN AND FAMILIES,REDACTED PERSONAL DATA,880.00,FOSTERING ALLOWANCES,PAYMENTS TO CARERS,REDACTED,REDACTED
05.10.2022,CHILDREN AND FAMILIES,REDACTED PERSONAL DATA,882.00,FOSTERING ALLOWANCES,PAYMENTS TO CARERS,REDACTED,REDACTED
05.10.2022,CHILDREN AND FAMILIES,REDACTED PERSONAL DATA,972.00,FOSTERING ALLOWANCES,PAYMENTS TO CARERS,REDACTED,REDACTED
05.10.2022,CHILDREN AND FAMILIES,REDACTED PERSONAL DATA,-440.00,FOSTERING ALLOWANCES,PAYMENTS TO CARERS,REDACTED,REDACTED
05.10.2022,CHILDREN AND FAMILIES,REDACTED PERSONAL DATA,880.00,FOSTERING ALLOWANCES,PAYMENTS TO CARERS,REDACTED,REDACTED
05.10.2022,CHILDREN AND FAMILIES,REDACTED PERSONAL DATA,880.00,FOSTERING ALLOWANCES,PAYMENTS TO CARERS,REDACTED,REDACTED
05.10.2022,CHILDREN AND FAMILIES,REDACTED PERSONAL DATA,778.00,FOSTERING ALLOWANCES,PAYMENTS TO CARERS,REDACTED,REDACTED
05.10.2022,CHILDREN AND FAMILIES,REDACTED PERSONAL DATA,726.00,FOSTERING ALLOWANCES,PAYMENTS TO CARERS,REDACTED,REDACTED
05.10.2022,CHILDREN AND FAMILIES,REDACTED PERSONAL DATA,726.00,FOSTERING ALLOWANCES,PAYMENTS TO CARERS,REDACTED,REDACTED
05.10.2022,CHILDREN AND FAMILIES,REDACTED PERSONAL DATA,778.00,FOSTERING ALLOWANCES,PAYMENTS TO CARERS,REDACTED,REDACTED
05.10.2022,CHILDREN AND FAMILIES,REDACTED PERSONAL DATA,"1,292.00",FOSTERING ALLOWANCES,PAYMENTS TO CARERS,REDACTED,REDACTED
05.10.2022,CHILDREN AND FAMILIES,REDACTED PERSONAL DATA,"1,632.00",FOSTERING ALLOWANCES,PAYMENTS TO CARERS,REDACTED,REDACTED
05.10.2022,CHILDREN AND FAMILIES,REDACTED PERSONAL DATA,972.00,FOSTERING ALLOWANCES,PAYMENTS TO CARERS,REDACTED,REDACTED
05.10.2022,CHILDREN AND FAMILIES,REDACTED PERSONAL DATA,882.00,FOSTERING ALLOWANCES,PAYMENTS TO CARERS,REDACTED,REDACTED
05.10.2022,CHILDREN AND FAMILIES,REDACTED PERSONAL DATA,850.00,FOSTERING ALLOWANCES,PAYMENTS TO CARERS,REDACTED,REDACTED
05.10.2022,CHILDREN AND FAMILIES,REDACTED PERSONAL DATA,"1,713.10",FOSTERING ALLOWANCES,PAYMENTS TO CARERS,REDACTED,REDACTED
05.10.2022,CHILDREN AND FAMILIES,REDACTED PERSONAL DATA,848.00,FOSTERING ALLOWANCES,PAYMENTS TO CARERS,REDACTED,REDACTED
05.10.2022,CHILDREN AND FAMILIES,REDACTED PERSONAL DATA,-277.71,FOSTERING ALLOWANCES,PAYMENTS TO CARERS,REDACTED,REDACTED
05.10.2022,CHILDREN AND FAMILIES,REDACTED PERSONAL DATA,"1,328.57",FOSTERING ALLOWANCES,PAYMENTS TO CARERS,REDACTED,REDACTED
05.10.2022,CHILDREN AND FAMILIES,REDACTED PERSONAL DATA,"1,700.00",FOSTERING ALLOWANCES,PAYMENTS TO CARERS,REDACTED,REDACTED
05.10.2022,CHILDREN AND FAMILIES,REDACTED PERSONAL DATA,880.00,FOSTERING ALLOWANCES,PAYMENTS TO CARERS,REDACTED,REDACTED
05.10.2022,CHILDREN AND FAMILIES,REDACTED PERSONAL DATA,848.00,FOSTERING ALLOWANCES,PAYMENTS TO CARERS,REDACTED,REDACTED
05.10.2022,CHILDREN AND FAMILIES,REDACTED PERSONAL DATA,696.00,FOSTERING ALLOWANCES,PAYMENTS TO CARERS,REDACTED,REDACTED
05.10.2022,CHILDREN AND FAMILIES,REDACTED PERSONAL DATA,746.00,FOSTERING ALLOWANCES,PAYMENTS TO CARERS,REDACTED,REDACTED
05.10.2022,CHILDREN AND FAMILIES,REDACTED PERSONAL DATA,696.00,FOSTERING ALLOWANCES,PAYMENTS TO CARERS,REDACTED,REDACTED
05.10.2022,CHILDREN AND FAMILIES,REDACTED PERSONAL DATA,850.00,FOSTERING ALLOWANCES,PAYMENTS TO CARERS,REDACTED,REDACTED
05.10.2022,CHILDREN AND FAMILIES,REDACTED PERSONAL DATA,824.00,FOSTERING ALLOWANCES,PAYMENTS TO CARERS,REDACTED,REDACTED
05.10.2022,CHILDREN AND FAMILIES,REDACTED PERSONAL DATA,"1,070.16",FOSTERING ALLOWANCES,PAYMENTS TO CARERS,REDACTED,REDACTED
05.10.2022,CHILDREN AND FAMILIES,REDACTED PERSONAL DATA,850.00,FOSTERING ALLOWANCES,PAYMENTS TO CARERS,REDACTED,REDACTED
05.10.2022,CHILDREN AND FAMILIES,REDACTED PERSONAL DATA,938.00,FOSTERING ALLOWANCES,PAYMENTS TO CARERS,REDACTED,REDACTED
05.10.2022,CHILDREN AND FAMILIES,REDACTED PERSONAL DATA,348.00,FOSTERING ALLOWANCES,PAYMENTS TO CARERS,REDACTED,REDACTED
05.10.2022,CHILDREN AND FAMILIES,REDACTED PERSONAL DATA,696.00,FOSTERING ALLOWANCES,PAYMENTS TO CARERS,REDACTED,REDACTED
05.10.2022,CHILDREN AND FAMILIES,REDACTED PERSONAL DATA,696.00,FOSTERING ALLOWANCES,PAYMENTS TO CARERS,REDACTED,REDACTED
05.10.2022,CHILDREN AND FAMILIES,REDACTED PERSONAL DATA,850.00,FOSTERING ALLOWANCES,PAYMENTS TO CARERS,REDACTED,REDACTED
05.10.2022,CHILDREN AND FAMILIES,REDACTED PERSONAL DATA,746.00,FOSTERING ALLOWANCES,PAYMENTS TO CARERS,REDACTED,REDACTED
05.10.2022,CHILDREN AND FAMILIES,REDACTED PERSONAL DATA,750.00,FOSTERING ALLOWANCES,PAYMENTS TO CARERS,REDACTED,REDACTED
05.10.2022,CHILDREN AND FAMILIES,REDACTED PERSONAL DATA,938.00,FOSTERING ALLOWANCES,PAYMENTS TO CARERS,REDACTED,REDACTED
05.10.2022,CHILDREN AND FAMILIES,FAMILY FOSTERING LTD,"4,453.20",FRIENDS & FAMILY FOSTERING,EXTERNAL AGENCIES AND BODIES,2103568468,1000075179
05.10.2022,CHILDREN AND FAMILIES,DIVERSITY FOSTER CARE LTD,"3,976.16",FRIENDS & FAMILY FOSTERING,EXTERNAL AGENCIES AND BODIES,2103568464,1000081399
05.10.2022,CHILDREN AND FAMILIES,DIVERSITY FOSTER CARE LTD,"4,221.43",FRIENDS & FAMILY FOSTERING,EXTERNAL AGENCIES AND BODIES,2103568465,1000081399
05.10.2022,CHILDREN AND FAMILIES,DIVERSITY FOSTER CARE LTD,"4,221.43",FRIENDS & FAMILY FOSTERING,EXTERNAL AGENCIES AND BODIES,2103568466,1000081399
05.10.2022,CHILDREN AND FAMILIES,SILVER LINING FOSTERING LTD,"3,321.43",FRIENDS & FAMILY FOSTERING,EXTERNAL AGENCIES AND BODIES,2103568467,1000087318
05.10.2022,CHILDREN AND FAMILIES,REDACTED PERSONAL DATA,"11,830.29",FRIENDS &FAMILY FOST,ADDITIONAL PAYMENTS TO AGENCIES/CARERS,REDACTED,REDACTED
05.10.2022,CHILDREN AND FAMILIES,REDACTED PERSONAL DATA,459.00,FRIENDS &FAMILY FOST,ADDITIONAL PAYMENTS TO AGENCIES/CARERS,REDACTED,REDACTED
05.10.2022,CHILDREN AND FAMILIES,REDACTED PERSONAL DATA,362.00,FRIENDS &FAMILY FOST,PAYMENTS TO CARERS,REDACTED,REDACTED
05.10.2022,CHILDREN AND FAMILIES,REDACTED PERSONAL DATA,850.00,FRIENDS &FAMILY FOST,PAYMENTS TO CARERS,REDACTED,REDACTED
05.10.2022,CHILDREN AND FAMILIES,REDACTED PERSONAL DATA,850.00,FRIENDS &FAMILY FOST,PAYMENTS TO CARERS,REDACTED,REDACTED
05.10.2022,CHILDREN AND FAMILIES,REDACTED PERSONAL DATA,746.00,FRIENDS &FAMILY FOST,PAYMENTS TO CARERS,REDACTED,REDACTED
05.10.2022,CHILDREN AND FAMILIES,REDACTED PERSONAL DATA,850.00,FRIENDS &FAMILY FOST,PAYMENTS TO CARERS,REDACTED,REDACTED
05.10.2022,CHILDREN AND FAMILIES,REDACTED PERSONAL DATA,938.00,FRIENDS &FAMILY FOST,PAYMENTS TO CARERS,REDACTED,REDACTED
05.10.2022,CHILDREN AND FAMILIES,REDACTED PERSONAL DATA,850.00,FRIENDS &FAMILY FOST,PAYMENTS TO CARERS,REDACTED,REDACTED
05.10.2022,CHILDREN AND FAMILIES,REDACTED PERSONAL DATA,938.00,FRIENDS &FAMILY FOST,PAYMENTS TO CARERS,REDACTED,REDACTED
05.10.2022,CHILDREN AND FAMILIES,REDACTED PERSONAL DATA,880.00,FRIENDS &FAMILY FOST,PAYMENTS TO CARERS,REDACTED,REDACTED
05.10.2022,CHILDREN AND FAMILIES,REDACTED PERSONAL DATA,882.00,FRIENDS &FAMILY FOST,PAYMENTS TO CARERS,REDACTED,REDACTED
05.10.2022,CHILDREN AND FAMILIES,REDACTED PERSONAL DATA,850.00,FRIENDS &FAMILY FOST,PAYMENTS TO CARERS,REDACTED,REDACTED
05.10.2022,CHILDREN AND FAMILIES,REDACTED PERSONAL DATA,850.00,FRIENDS &FAMILY FOST,PAYMENTS TO CARERS,REDACTED,REDACTED
05.10.2022,CHILDREN AND FAMILIES,REDACTED PERSONAL DATA,480.00,FRIENDS &FAMILY FOST,PAYMENTS TO CARERS,REDACTED,REDACTED
05.10.2022,CHILDREN AND FAMILIES,REDACTED PERSONAL DATA,848.00,FRIENDS &FAMILY FOST,PAYMENTS TO CARERS,REDACTED,REDACTED
05.10.2022,CHILDREN AND FAMILIES,REDACTED PERSONAL DATA,850.00,FRIENDS &FAMILY FOST,PAYMENTS TO CARERS,REDACTED,REDACTED
05.10.2022,CHILDREN AND FAMILIES,REDACTED PERSONAL DATA,938.00,FRIENDS &FAMILY FOST,PAYMENTS TO CARERS,REDACTED,REDACTED
05.10.2022,CHILDREN AND FAMILIES,REDACTED PERSONAL DATA,746.00,FRIENDS &FAMILY FOST,PAYMENTS TO CARERS,REDACTED,REDACTED
05.10.2022,CHILDREN AND FAMILIES,REDACTED PERSONAL DATA,850.00,FRIENDS &FAMILY FOST,PAYMENTS TO CARERS,REDACTED,REDACTED
05.10.2022,CHILDREN AND FAMILIES,REDACTED PERSONAL DATA,850.00,FRIENDS &FAMILY FOST,PAYMENTS TO CARERS,REDACTED,REDACTED
05.10.2022,CHILDREN AND FAMILIES,REDACTED PERSONAL DATA,746.00,FRIENDS &FAMILY FOST,PAYMENTS TO CARERS,REDACTED,REDACTED
05.10.2022,CHILDREN AND FAMILIES,REDACTED PERSONAL DATA,850.00,FRIENDS &FAMILY FOST,PAYMENTS TO CARERS,REDACTED,REDACTED
05.10.2022,CHILDREN AND FAMILIES,REDACTED PERSONAL DATA,848.00,FRIENDS &FAMILY FOST,PAYMENTS TO CARERS,REDACTED,REDACTED
05.10.2022,CHILDREN AND FAMILIES,REDACTED PERSONAL DATA,938.00,FRIENDS &FAMILY FOST,PAYMENTS TO CARERS,REDACTED,REDACTED
05.10.2022,CHILDREN AND FAMILIES,REDACTED PERSONAL DATA,850.00,FRIENDS &FAMILY FOST,PAYMENTS TO CARERS,REDACTED,REDACTED
05.10.2022,CHILDREN AND FAMILIES,REDACTED PERSONAL DATA,850.00,FRIENDS &FAMILY FOST,PAYMENTS TO CARERS,REDACTED,REDACTED
05.10.2022,CHILDREN AND FAMILIES,REDACTED PERSONAL DATA,746.00,FRIENDS &FAMILY FOST,PAYMENTS TO CARERS,REDACTED,REDACTED
05.10.2022,CHILDREN AND FAMILIES,REDACTED PERSONAL DATA,850.00,FRIENDS &FAMILY FOST,PAYMENTS TO CARERS,REDACTED,REDACTED
05.10.2022,CHILDREN AND FAMILIES,REDACTED PERSONAL DATA,824.00,FRIENDS &FAMILY FOST,PAYMENTS TO CARERS,REDACTED,REDACTED
05.10.2022,CHILDREN AND FAMILIES,REDACTED PERSONAL DATA,850.00,FRIENDS &FAMILY FOST,PAYMENTS TO CARERS,REDACTED,REDACTED
05.10.2022,CHILDREN AND FAMILIES,REDACTED PERSONAL DATA,848.00,FRIENDS &FAMILY FOST,PAYMENTS TO CARERS,REDACTED,REDACTED
05.10.2022,CHILDREN AND FAMILIES,REDACTED PERSONAL DATA,850.00,FRIENDS &FAMILY FOST,PAYMENTS TO CARERS,REDACTED,REDACTED
05.10.2022,CHILDREN AND FAMILIES,REDACTED PERSONAL DATA,850.00,FRIENDS &FAMILY FOST,PAYMENTS TO CARERS,REDACTED,REDACTED
05.10.2022,CHILDREN AND FAMILIES,REDACTED PERSONAL DATA,696.00,FRIENDS &FAMILY FOST,PAYMENTS TO CARERS,REDACTED,REDACTED
05.10.2022,CHILDREN AND FAMILIES,REDACTED PERSONAL DATA,746.00,FRIENDS &FAMILY FOST,PAYMENTS TO CARERS,REDACTED,REDACTED
05.10.2022,CHILDREN AND FAMILIES,REDACTED PERSONAL DATA,746.00,FRIENDS &FAMILY FOST,PAYMENTS TO CARERS,REDACTED,REDACTED
05.10.2022,CHILDREN AND FAMILIES,REDACTED PERSONAL DATA,850.00,FRIENDS &FAMILY FOST,PAYMENTS TO CARERS,REDACTED,REDACTED
05.10.2022,CHILDREN AND FAMILIES,REDACTED PERSONAL DATA,"-4,731.85",FRIENDS &FAMILY FOST,PAYMENTS TO CARERS,REDACTED,REDACTED
05.10.2022,CHILDREN AND FAMILIES,REDACTED PERSONAL DATA,"9,751.28",FRIENDS &FAMILY FOST,PAYMENTS TO CARERS,REDACTED,REDACTED
05.10.2022,CHILDREN AND FAMILIES,REDACTED PERSONAL DATA,850.00,FRIENDS &FAMILY FOST,PAYMENTS TO CARERS,REDACTED,REDACTED
05.10.2022,CHILDREN AND FAMILIES,REDACTED PERSONAL DATA,850.00,FRIENDS &FAMILY FOST,PAYMENTS TO CARERS,REDACTED,REDACTED
05.10.2022,CHILDREN AND FAMILIES,REDACTED PERSONAL DATA,938.00,FRIENDS &FAMILY FOST,PAYMENTS TO CARERS,REDACTED,REDACTED
05.10.2022,CHILDREN AND FAMILIES,REDACTED PERSONAL DATA,696.00,FRIENDS &FAMILY FOST,PAYMENTS TO CARERS,REDACTED,REDACTED
05.10.2022,CHILDREN AND FAMILIES,REDACTED PERSONAL DATA,850.00,FRIENDS &FAMILY FOST,PAYMENTS TO CARERS,REDACTED,REDACTED
05.10.2022,CHILDREN AND FAMILIES,REDACTED PERSONAL DATA,938.00,FRIENDS &FAMILY FOST,PAYMENTS TO CARERS,REDACTED,REDACTED
05.10.2022,CHILDREN AND FAMILIES,REDACTED PERSONAL DATA,412.00,FRIENDS &FAMILY FOST,PAYMENTS TO CARERS,REDACTED,REDACTED
05.10.2022,CHILDREN AND FAMILIES,REDACTED PERSONAL DATA,848.00,FRIENDS &FAMILY FOST,PAYMENTS TO CARERS,REDACTED,REDACTED
05.10.2022,CHILDREN AND FAMILIES,REDACTED PERSONAL DATA,850.00,FRIENDS &FAMILY FOST,PAYMENTS TO CARERS,REDACTED,REDACTED
05.10.2022,CHILDREN AND FAMILIES,REDACTED PERSONAL DATA,"-4,590.86",FRIENDS &FAMILY FOST,PAYMENTS TO CARERS,REDACTED,REDACTED
05.10.2022,CHILDREN AND FAMILIES,REDACTED PERSONAL DATA,"10,321.43",FRIENDS &FAMILY FOST,PAYMENTS TO CARERS,REDACTED,REDACTED
05.10.2022,CHILDREN AND FAMILIES,REDACTED PERSONAL DATA,850.00,FRIENDS &FAMILY FOST,PAYMENTS TO CARERS,REDACTED,REDACTED
05.10.2022,CHILDREN AND FAMILIES,REDACTED PERSONAL DATA,932.00,FRIENDS &FAMILY FOST,PAYMENTS TO CARERS,REDACTED,REDACTED
05.10.2022,CHILDREN AND FAMILIES,REDACTED PERSONAL DATA,938.00,FRIENDS &FAMILY FOST,PAYMENTS TO CARERS,REDACTED,REDACTED
05.10.2022,CHILDREN AND FAMILIES,REDACTED PERSONAL DATA,362.00,FRIENDS &FAMILY FOST,PAYMENTS TO CARERS,REDACTED,REDACTED
05.10.2022,CHILDREN AND FAMILIES,REDACTED PERSONAL DATA,412.00,FRIENDS &FAMILY FOST,PAYMENTS TO CARERS,REDACTED,REDACTED
05.10.2022,CHILDREN AND FAMILIES,REDACTED PERSONAL DATA,362.00,FRIENDS &FAMILY FOST,PAYMENTS TO CARERS,REDACTED,REDACTED
05.10.2022,CHILDREN AND FAMILIES,REDACTED PERSONAL DATA,412.00,FRIENDS &FAMILY FOST,PAYMENTS TO CARERS,REDACTED,REDACTED
05.10.2022,CHILDREN AND FAMILIES,REDACTED PERSONAL DATA,750.00,FRIENDS &FAMILY FOST,PAYMENTS TO CARERS,REDACTED,REDACTED
05.10.2022,CHILDREN AND FAMILIES,REDACTED PERSONAL DATA,412.00,FRIENDS &FAMILY FOST,PAYMENTS TO CARERS,REDACTED,REDACTED
05.10.2022,CHILDREN AND FAMILIES,REDACTED PERSONAL DATA,412.00,FRIENDS &FAMILY FOST,PAYMENTS TO CARERS,REDACTED,REDACTED
05.10.2022,CHILDREN AND FAMILIES,REDACTED PERSONAL DATA,362.00,FRIENDS &FAMILY FOST,PAYMENTS TO CARERS,REDACTED,REDACTED
05.10.2022,CHILDREN AND FAMILIES,REDACTED PERSONAL DATA,324.00,FRIENDS &FAMILY FOST,PAYMENTS TO CARERS,REDACTED,REDACTED
05.10.2022,CHILDREN AND FAMILIES,REDACTED PERSONAL DATA,412.00,FRIENDS &FAMILY FOST,PAYMENTS TO CARERS,REDACTED,REDACTED
05.10.2022,CHILDREN AND FAMILIES,CLIFTON CHILDRENS SOCIETY,259.56,NEW ASF,EXTERNAL AGENCIES AND BODIES,5902545766,1000049956
05.10.2022,CHILDREN AND FAMILIES,RAGDOLL TRAINING AND THERAPEUTIC SERVICES LIMITED,460.00,NEW ASF,EXTERNAL AGENCIES AND BODIES,5902545646,1000085096
05.10.2022,CHILDREN AND FAMILIES,C E RICHARDSON CONSULTANTS LTD,450.00,NEW ASF,EXTERNAL AGENCIES AND BODIES,5902545709,1000085808
05.10.2022,CHILDREN AND FAMILIES,REDACTED PERSONAL DATA,280.00,NEW ASF,EXTERNAL AGENCIES AND BODIES,REDACTED,REDACTED
05.10.2022,CHILDREN AND FAMILIES,REDACTED PERSONAL DATA,500.00,NEW ASF,EXTERNAL AGENCIES AND BODIES,REDACTED,REDACTED
05.10.2022,CHILDREN AND FAMILIES,REDACTED PERSONAL DATA,"1,065.00",NEW ASF,EXTERNAL AGENCIES AND BODIES,REDACTED,REDACTED
05.10.2022,CHILDREN AND FAMILIES,REDACTED PERSONAL DATA,"1,560.00",NEW ASF,EXTERNAL AGENCIES AND BODIES,REDACTED,REDACTED
05.10.2022,CHILDREN AND FAMILIES,REDACTED PERSONAL DATA,800.00,NEW ASF,EXTERNAL AGENCIES AND BODIES,REDACTED,REDACTED
05.10.2022,CHILDREN AND FAMILIES,NETPEX LTD CORPORATE SERVICES,"2,464.26",SEMI-IND CARELEAVERS,EXTERNAL AGENCIES AND BODIES,2103568436,1000076073
05.10.2022,CHILDREN AND FAMILIES,NETPEX LTD CORPORATE SERVICES,"2,678.55",SEMI-IND CARELEAVERS,EXTERNAL AGENCIES AND BODIES,2103568438,1000076073
05.10.2022,CHILDREN AND FAMILIES,NETPEX LTD CORPORATE SERVICES,"2,678.70",SEMI-IND CARELEAVERS,EXTERNAL AGENCIES AND BODIES,2103568437,1000076073
05.10.2022,CHILDREN AND FAMILIES,NETPEX LTD CORPORATE SERVICES,"2,704.26",SEMI-IND CARELEAVERS,EXTERNAL AGENCIES AND BODIES,2103568439,1000076073
05.10.2022,CHILDREN AND FAMILIES,FUTURE FOUNDATIONS LTD,570.28,SEMI-IND LAC 16-17,EXTERNAL AGENCIES AND BODIES,2103567622,1000063272
05.10.2022,CHILDREN AND FAMILIES,OPENMINDS SOCIAL CARE,"1,671.52",SEMI-IND LAC 16-17,EXTERNAL AGENCIES AND BODIES,2103568423,1000085800
05.10.2022,CHILDREN AND FAMILIES,DREAMFO HOUSING LTD,"2,064.29",SEMI-IND LAC 16-17,EXTERNAL AGENCIES AND BODIES,2103568434,1000087273
05.10.2022,CHILDREN AND FAMILIES,DREAMFO HOUSING LTD,"2,792.85",SEMI-IND LAC 16-17,EXTERNAL AGENCIES AND BODIES,2103568430,1000087273
05.10.2022,CHILDREN AND FAMILIES,DREAMFO HOUSING LTD,"3,764.29",SEMI-IND LAC 16-17,EXTERNAL AGENCIES AND BODIES,2103568428,1000087273
05.10.2022,CHILDREN AND FAMILIES,OUR ROCK LTD,"4,071.43",SEMI-IND LAC 16-17,EXTERNAL AGENCIES AND BODIES,2103568431,1000088325
05.10.2022,CHILDREN AND FAMILIES,DREAMFO HOUSING LTD,265.71,SEMI-IND LAC 16-17,OTHER PAYMENTS FOR CLIENTS,2103568427,1000087273
05.10.2022,CHILDREN AND FAMILIES,REDACTED PERSONAL DATA,"2,175.72",SEMI-IND LAC 16-17,OTHER PAYMENTS FOR CLIENTS,REDACTED,REDACTED
05.10.2022,CHILDREN AND FAMILIES,E4 LAW LTD,565.00,SFS MGMT & SUPPORT,LEGAL FEES & COURT COSTS,2103568526,1000072222
05.10.2022,CHILDREN AND FAMILIES,CARTER BROWN THE EXPERT SERVICE LTD,"2,016.00",SFS MGMT & SUPPORT,LEGAL FEES & COURT COSTS,2103568518,1000076652
05.10.2022,CHILDREN AND FAMILIES,JOSHUA SWIRSKY,525.00,SFS MGMT & SUPPORT,LEGAL FEES & COURT COSTS,2103568522,1000017798
05.10.2022,CHILDREN AND FAMILIES,OLIVER MILLINGTON,450.00,SFS MGMT & SUPPORT,LEGAL FEES & COURT COSTS,2103568537,1000051055
05.10.2022,CHILDREN AND FAMILIES,OLIVER MILLINGTON,500.00,SFS MGMT & SUPPORT,LEGAL FEES & COURT COSTS,2103568532,1000051055
05.10.2022,CHILDREN AND FAMILIES,OLIVER MILLINGTON,500.00,SFS MGMT & SUPPORT,LEGAL FEES & COURT COSTS,2103568534,1000051055
05.10.2022,CHILDREN AND FAMILIES,OLIVER MILLINGTON,750.00,SFS MGMT & SUPPORT,LEGAL FEES & COURT COSTS,2103568533,1000051055
05.10.2022,CHILDREN AND FAMILIES,OLIVER MILLINGTON,750.00,SFS MGMT & SUPPORT,LEGAL FEES & COURT COSTS,2103568536,1000051055
05.10.2022,CHILDREN AND FAMILIES,TABITHA BARRAN,425.00,SFS MGMT & SUPPORT,LEGAL FEES & COURT COSTS,2103568542,1000053940
05.10.2022,CHILDREN AND FAMILIES,TABITHA BARRAN,750.00,SFS MGMT & SUPPORT,LEGAL FEES & COURT COSTS,2103568543,1000053940
05.10.2022,CHILDREN AND FAMILIES,TABITHA BARRAN,750.00,SFS MGMT & SUPPORT,LEGAL FEES & COURT COSTS,2103568545,1000053940
05.10.2022,CHILDREN AND FAMILIES,KATE LAMONT,425.00,SFS MGMT & SUPPORT,LEGAL FEES & COURT COSTS,2103568525,1000064216
05.10.2022,CHILDREN AND FAMILIES,KATE LAMONT,500.00,SFS MGMT & SUPPORT,LEGAL FEES & COURT COSTS,2103568523,1000064216
05.10.2022,CHILDREN AND FAMILIES,WILLIAM DEAN,750.00,SFS MGMT & SUPPORT,LEGAL FEES & COURT COSTS,2103568549,1000070780
05.10.2022,CHILDREN AND FAMILIES,AMY SLINGO,450.00,SFS MGMT & SUPPORT,LEGAL FEES & COURT COSTS,2103568516,1000080875
05.10.2022,CHILDREN AND FAMILIES,FRANCESCA KOLAR,300.00,SFS MGMT & SUPPORT,LEGAL FEES & COURT COSTS,2103568520,1000086974
05.10.2022,CHILDREN AND FAMILIES,REDACTED PERSONAL DATA,648.83,SPECIAL GUARDIANSHIP,PAYMENTS TO CARERS,REDACTED,REDACTED
05.10.2022,CHILDREN AND FAMILIES,REDACTED PERSONAL DATA,388.04,SPECIAL GUARDIANSHIP,PAYMENTS TO CARERS,REDACTED,REDACTED
05.10.2022,CHILDREN AND FAMILIES,REDACTED PERSONAL DATA,342.45,SPECIAL GUARDIANSHIP,PAYMENTS TO CARERS,REDACTED,REDACTED
05.10.2022,CHILDREN AND FAMILIES,REDACTED PERSONAL DATA,389.34,SPECIAL GUARDIANSHIP,PAYMENTS TO CARERS,REDACTED,REDACTED
05.10.2022,CHILDREN AND FAMILIES,REDACTED PERSONAL DATA,356.15,SPECIAL GUARDIANSHIP,PAYMENTS TO CARERS,REDACTED,REDACTED
05.10.2022,CHILDREN AND FAMILIES,REDACTED PERSONAL DATA,403.04,SPECIAL GUARDIANSHIP,PAYMENTS TO CARERS,REDACTED,REDACTED
05.10.2022,CHILDREN AND FAMILIES,REDACTED PERSONAL DATA,525.00,SPECIAL GUARDIANSHIP,PAYMENTS TO CARERS,REDACTED,REDACTED
05.10.2022,CHILDREN AND FAMILIES,REDACTED PERSONAL DATA,341.15,SPECIAL GUARDIANSHIP,PAYMENTS TO CARERS,REDACTED,REDACTED
05.10.2022,CHILDREN AND FAMILIES,REDACTED PERSONAL DATA,338.00,SPECIAL GUARDIANSHIP,PAYMENTS TO CARERS,REDACTED,REDACTED
05.10.2022,CHILDREN AND FAMILIES,REDACTED PERSONAL DATA,338.00,SPECIAL GUARDIANSHIP,PAYMENTS TO CARERS,REDACTED,REDACTED
05.10.2022,CHILDREN AND FAMILIES,REDACTED PERSONAL DATA,472.71,SPECIAL GUARDIANSHIP,PAYMENTS TO CARERS,REDACTED,REDACTED
05.10.2022,CHILDREN AND FAMILIES,REDACTED PERSONAL DATA,472.71,SPECIAL GUARDIANSHIP,PAYMENTS TO CARERS,REDACTED,REDACTED
05.10.2022,CHILDREN AND FAMILIES,REDACTED PERSONAL DATA,341.22,SPECIAL GUARDIANSHIP,PAYMENTS TO CARERS,REDACTED,REDACTED
05.10.2022,CHILDREN AND FAMILIES,REDACTED PERSONAL DATA,600.00,STAYPUT- FOST CARERS,PAYMENTS TO CARERS,REDACTED,REDACTED
05.10.2022,CHILDREN AND FAMILIES,REDACTED PERSONAL DATA,600.00,STAYPUT- FOST CARERS,PAYMENTS TO CARERS,REDACTED,REDACTED
05.10.2022,CHILDREN AND FAMILIES,REDACTED PERSONAL DATA,600.00,STAYPUT- FOST CARERS,PAYMENTS TO CARERS,REDACTED,REDACTED
05.10.2022,CHILDREN AND FAMILIES,REDACTED PERSONAL DATA,600.00,STAYPUT- FOST CARERS,PAYMENTS TO CARERS,REDACTED,REDACTED
05.10.2022,CHILDREN AND FAMILIES,REDACTED PERSONAL DATA,600.00,STAYPUT- FOST CARERS,PAYMENTS TO CARERS,REDACTED,REDACTED
05.10.2022,CHILDREN AND FAMILIES,REDACTED PERSONAL DATA,600.00,STAYPUT- FOST CARERS,PAYMENTS TO CARERS,REDACTED,REDACTED
05.10.2022,CHILDREN AND FAMILIES,REDACTED PERSONAL DATA,800.00,STAYPUT- FOST CARERS,PAYMENTS TO CARERS,REDACTED,REDACTED
05.10.2022,CHILDREN AND FAMILIES,REDACTED PERSONAL DATA,600.00,STAYPUT- FOST CARERS,PAYMENTS TO CARERS,REDACTED,REDACTED
05.10.2022,CHILDREN AND FAMILIES,REDACTED PERSONAL DATA,600.00,STAYPUT- FOST CARERS,PAYMENTS TO CARERS,REDACTED,REDACTED
05.10.2022,CHILDREN AND FAMILIES,REDACTED PERSONAL DATA,388.06,STAYPUT- FOST CARERS,PAYMENTS TO CARERS,REDACTED,REDACTED
05.10.2022,CHILDREN AND FAMILIES,REDACTED PERSONAL DATA,600.00,STAYPUT- FOST CARERS,PAYMENTS TO CARERS,REDACTED,REDACTED
05.10.2022,CHILDREN AND FAMILIES,REDACTED PERSONAL DATA,600.00,STAYPUT- FOST CARERS,PAYMENTS TO CARERS,REDACTED,REDACTED
05.10.2022,CHILDREN AND FAMILIES,REDACTED PERSONAL DATA,600.00,STAYPUT- FOST CARERS,PAYMENTS TO CARERS,REDACTED,REDACTED
05.10.2022,CHILDREN AND FAMILIES,REDACTED PERSONAL DATA,600.00,STAYPUT- FOST CARERS,PAYMENTS TO CARERS,REDACTED,REDACTED
05.10.2022,CHILDREN AND FAMILIES,REDACTED PERSONAL DATA,600.00,STAYPUT- FOST CARERS,PAYMENTS TO CARERS,REDACTED,REDACTED
05.10.2022,CHILDREN AND FAMILIES,REDACTED PERSONAL DATA,600.00,STAYPUT- FOST CARERS,PAYMENTS TO CARERS,REDACTED,REDACTED
05.10.2022,CHILDREN AND FAMILIES,REDACTED PERSONAL DATA,600.00,STAYPUT- FOST CARERS,PAYMENTS TO CARERS,REDACTED,REDACTED
05.10.2022,CHILDREN AND FAMILIES,REDACTED PERSONAL DATA,600.00,STAYPUT- FOST CARERS,PAYMENTS TO CARERS,REDACTED,REDACTED
05.10.2022,CHILDREN AND FAMILIES,REDACTED PERSONAL DATA,600.00,STAYPUT- FOST CARERS,PAYMENTS TO CARERS,REDACTED,REDACTED
05.10.2022,CHILDREN AND FAMILIES,REDACTED PERSONAL DATA,600.00,STAYPUT- FOST CARERS,PAYMENTS TO CARERS,REDACTED,REDACTED
05.10.2022,CHILDREN AND FAMILIES,REDACTED PERSONAL DATA,852.00,STAYPUT- FOST CARERS,PAYMENTS TO CARERS,REDACTED,REDACTED
05.10.2022,CHILDREN AND FAMILIES,REDACTED PERSONAL DATA,600.00,STAYPUT- FOST CARERS,PAYMENTS TO CARERS,REDACTED,REDACTED
05.10.2022,CHILDREN AND FAMILIES,REDACTED PERSONAL DATA,600.00,STAYPUT- FOST CARERS,PAYMENTS TO CARERS,REDACTED,REDACTED
05.10.2022,CHILDREN AND FAMILIES,REDACTED PERSONAL DATA,600.00,STAYPUT- FOST CARERS,PAYMENTS TO CARERS,REDACTED,REDACTED
05.10.2022,CHILDREN AND FAMILIES,REDACTED PERSONAL DATA,600.00,STAYPUT- FOST CARERS,PAYMENTS TO CARERS,REDACTED,REDACTED
05.10.2022,CHILDREN AND FAMILIES,REDACTED PERSONAL DATA,600.00,STAYPUT- FOST CARERS,PAYMENTS TO CARERS,REDACTED,REDACTED
05.10.2022,CHILDREN AND FAMILIES,REDACTED PERSONAL DATA,656.00,STAYPUT- FOST CARERS,PAYMENTS TO CARERS,REDACTED,REDACTED
05.10.2022,CHILDREN AND FAMILIES,REDACTED PERSONAL DATA,600.00,STAYPUT- FOST CARERS,PAYMENTS TO CARERS,REDACTED,REDACTED
05.10.2022,CHILDREN AND FAMILIES,REDACTED PERSONAL DATA,600.00,STAYPUT- FOST CARERS,PAYMENTS TO CARERS,REDACTED,REDACTED
05.10.2022,CHILDREN AND FAMILIES,REDACTED PERSONAL DATA,600.00,STAYPUT- FOST CARERS,PAYMENTS TO CARERS,REDACTED,REDACTED
05.10.2022,CHILDREN AND FAMILIES,REDACTED PERSONAL DATA,600.00,STAYPUT- FOST CARERS,PAYMENTS TO CARERS,REDACTED,REDACTED
05.10.2022,CHILDREN AND FAMILIES,REDACTED PERSONAL DATA,600.00,STAYPUT- FOST CARERS,PAYMENTS TO CARERS,REDACTED,REDACTED
05.10.2022,CHILDREN AND FAMILIES,REDACTED PERSONAL DATA,265.40,STAYPUT- FOST CARERS,PAYMENTS TO CARERS,REDACTED,REDACTED
05.10.2022,CHILDREN AND FAMILIES,REDACTED PERSONAL DATA,832.00,STAYPUT- FOST CARERS,PAYMENTS TO CARERS,REDACTED,REDACTED
05.10.2022,CHILDREN AND FAMILIES,REDACTED PERSONAL DATA,600.00,STAYPUT- FOST CARERS,PAYMENTS TO CARERS,REDACTED,REDACTED
05.10.2022,CHILDREN AND FAMILIES,REDACTED PERSONAL DATA,600.00,STAYPUT- FOST CARERS,PAYMENTS TO CARERS,REDACTED,REDACTED
05.10.2022,CHILDREN AND FAMILIES,REDACTED PERSONAL DATA,600.00,STAYPUT- FOST CARERS,PAYMENTS TO CARERS,REDACTED,REDACTED
05.10.2022,CHILDREN AND FAMILIES,REDACTED PERSONAL DATA,600.00,STAYPUT- FOST CARERS,PAYMENTS TO CARERS,REDACTED,REDACTED
05.10.2022,CHILDREN AND FAMILIES,REDACTED PERSONAL DATA,600.00,STAYPUT- FOST CARERS,PAYMENTS TO CARERS,REDACTED,REDACTED
05.10.2022,CHILDREN AND FAMILIES,REDACTED PERSONAL DATA,656.00,STAYPUT- FOST CARERS,PAYMENTS TO CARERS,REDACTED,REDACTED
05.10.2022,CHILDREN AND FAMILIES,REDACTED PERSONAL DATA,600.00,STAYPUT- FOST CARERS,PAYMENTS TO CARERS,REDACTED,REDACTED
05.10.2022,CHILDREN AND FAMILIES,REDACTED PERSONAL DATA,600.00,STAYPUT- FOST CARERS,PAYMENTS TO CARERS,REDACTED,REDACTED
05.10.2022,CHILDREN AND FAMILIES,REDACTED PERSONAL DATA,900.00,STAYPUT- FOST CARERS,PAYMENTS TO CARERS,REDACTED,REDACTED
05.10.2022,CHILDREN AND FAMILIES,REDACTED PERSONAL DATA,900.00,STAYPUT- FOST CARERS,PAYMENTS TO CARERS,REDACTED,REDACTED
05.10.2022,CHILDREN AND FAMILIES,REDACTED PERSONAL DATA,600.00,STAYPUT- FOST CARERS,PAYMENTS TO CARERS,REDACTED,REDACTED
05.10.2022,CHILDREN AND FAMILIES,REDACTED PERSONAL DATA,600.00,STAYPUT- FOST CARERS,PAYMENTS TO CARERS,REDACTED,REDACTED
05.10.2022,CHILDREN AND FAMILIES,REDACTED PERSONAL DATA,600.00,STAYPUT- FOST CARERS,PAYMENTS TO CARERS,REDACTED,REDACTED
05.10.2022,CHILDREN AND FAMILIES,REDACTED PERSONAL DATA,600.00,STAYPUT- FOST CARERS,PAYMENTS TO CARERS,REDACTED,REDACTED
05.10.2022,CHILDREN AND FAMILIES,REDACTED PERSONAL DATA,600.00,STAYPUT- FOST CARERS,PAYMENTS TO CARERS,REDACTED,REDACTED
05.10.2022,CHILDREN AND FAMILIES,REDACTED PERSONAL DATA,600.00,STAYPUT- FOST CARERS,PAYMENTS TO CARERS,REDACTED,REDACTED
05.10.2022,CHILDREN AND FAMILIES,REDACTED PERSONAL DATA,600.00,STAYPUT- FOST CARERS,PAYMENTS TO CARERS,REDACTED,REDACTED
05.10.2022,CHILDREN AND FAMILIES,REDACTED PERSONAL DATA,300.00,STAYPUT- FOST CARERS,PAYMENTS TO CARERS,REDACTED,REDACTED
05.10.2022,CHILDREN AND FAMILIES,REDACTED PERSONAL DATA,600.00,STAYPUT- FOST CARERS,PAYMENTS TO CARERS,REDACTED,REDACTED
05.10.2022,CHILDREN AND FAMILIES,REDACTED PERSONAL DATA,800.00,STAYPUT- FOST CARERS,PAYMENTS TO CARERS,REDACTED,REDACTED
05.10.2022,CHILDREN AND FAMILIES,REDACTED PERSONAL DATA,921.43,STAYPUT- FOST CARERS,PAYMENTS TO CARERS,REDACTED,REDACTED
05.10.2022,CHILDREN AND FAMILIES,NETPEX LTD CORPORATE SERVICES,"2,100.00",UASC CARELEAVERS,EXTERNAL AGENCIES AND BODIES,2103568435,1000076073
05.10.2022,CHILDREN AND FAMILIES,OUR ROCK LTD,"3,214.29",UASC LAC 16-17,EXTERNAL AGENCIES AND BODIES,2103568424,1000088325
05.10.2022,CHILDREN AND FAMILIES,OUR ROCK LTD,360.00,UASC LAC 16-17,OTHER PAYMENTS FOR CLIENTS,2103568425,1000088325
05.10.2022,COMMUNITIES,COMMUNITY SOUTHWARK,"38,750.00",HEALTHWATCH,GRANTS,5902545634,1000018147
05.10.2022,COMMUNITIES,CARE OUTLOOK LTD,"1,197.34",NO RECOURSE TO PUBLIC FUNDS,HOMECARE - C&V,2103567047,1000064508
05.10.2022,COMMUNITIES,CARE OUTLOOK LTD,"1,480.68",NO RECOURSE TO PUBLIC FUNDS,HOMECARE - C&V,2103567037,1000064508
05.10.2022,COMMUNITIES,CARE OUTLOOK LTD,"1,485.25",NO RECOURSE TO PUBLIC FUNDS,HOMECARE - C&V,2103567013,1000064508
05.10.2022,COMMUNITIES,REDACTED PERSONAL DATA,350.00,UKRAINIAN PROGRAMME,GRANTS,REDACTED,REDACTED
05.10.2022,COMMUNITIES,REDACTED PERSONAL DATA,350.00,UKRAINIAN PROGRAMME,GRANTS,REDACTED,REDACTED
05.10.2022,COMMUNITIES,REDACTED PERSONAL DATA,350.00,UKRAINIAN PROGRAMME,GRANTS,REDACTED,REDACTED
05.10.2022,COMMUNITIES,REDACTED PERSONAL DATA,350.00,UKRAINIAN PROGRAMME,GRANTS,REDACTED,REDACTED
05.10.2022,COMMUNITIES,REDACTED PERSONAL DATA,350.00,UKRAINIAN PROGRAMME,GRANTS,REDACTED,REDACTED
05.10.2022,COMMUNITIES,REDACTED PERSONAL DATA,350.00,UKRAINIAN PROGRAMME,GRANTS,REDACTED,REDACTED
05.10.2022,COMMUNITIES,REDACTED PERSONAL DATA,350.00,UKRAINIAN PROGRAMME,GRANTS,REDACTED,REDACTED
05.10.2022,COMMUNITIES,REDACTED PERSONAL DATA,350.00,UKRAINIAN PROGRAMME,GRANTS,REDACTED,REDACTED
05.10.2022,COMMUNITIES,REDACTED PERSONAL DATA,350.00,UKRAINIAN PROGRAMME,GRANTS,REDACTED,REDACTED
05.10.2022,COMMUNITIES,REDACTED PERSONAL DATA,350.00,UKRAINIAN PROGRAMME,GRANTS,REDACTED,REDACTED
05.10.2022,COMMUNITIES,ST FAITHS COMMUNITY CENTRE,"5,000.00",VCS GRANTS,GRANTS,5902545571,1039446
05.10.2022,COMMUNITIES,TIME & TALENTS ASSOCIATION,"4,500.00",VCS GRANTS,GRANTS,5902545572,1757632
05.10.2022,COMMUNITIES,LONDON WILDLIFE TRUST,"7,500.00",VCS GRANTS,GRANTS,5902545573,1832374
05.10.2022,COMMUNITIES,SOUTHWARK CITIZENS ADVICE,"5,600.00",VCS GRANTS,GRANTS,5902545574,1874379
05.10.2022,COMMUNITIES,SOMALI INTEGRATION & DEVELOPMENT ASSOCIATION,"14,000.00",VCS GRANTS,GRANTS,5902545575,11048946
05.10.2022,COMMUNITIES,GOLDEN OLDIES COMMUNITY CARE PROJECT,"2,500.00",VCS GRANTS,GRANTS,5902545576,11122958
05.10.2022,COMMUNITIES,BEDE HSE,"4,500.00",VCS GRANTS,GRANTS,5902545578,11248731
05.10.2022,COMMUNITIES,CAMBRIDGE HOUSE & TALBOT,"4,500.00",VCS GRANTS,GRANTS,5902545579,11248874
05.10.2022,COMMUNITIES,PECAN LTD,"6,500.00",VCS GRANTS,GRANTS,5902545581,11263114
05.10.2022,COMMUNITIES,PECAN LTD,"7,375.00",VCS GRANTS,GRANTS,5902545580,11263114
05.10.2022,COMMUNITIES,SURREY DOCKS FARM PROVIDENT SOCIETY,"10,000.00",VCS GRANTS,GRANTS,5902545582,1000000958
05.10.2022,COMMUNITIES,AAINA WOMEN GROUP,"8,018.25",VCS GRANTS,GRANTS,5902545583,1000002442
05.10.2022,COMMUNITIES,BANKSIDE OPEN SPACES TRUST,"4,208.00",VCS GRANTS,GRANTS,5902545584,1000018290
05.10.2022,COMMUNITIES,SOUTHWARK PENSIONERS CENTRE,"25,855.25",VCS GRANTS,GRANTS,5902545585,1000027831
05.10.2022,COMMUNITIES,SWK DAY CTR FOR ASYLUM SEEKERS,"11,330.25",VCS GRANTS,GRANTS,5902545586,1000040491
05.10.2022,COMMUNITIES,FUTURE MEN,"4,125.00",VCS GRANTS,GRANTS,5902545588,1000046010
05.10.2022,COMMUNITIES,THE MANNA CENTRE,"13,750.00",VCS GRANTS,GRANTS,5902545589,1000048508
05.10.2022,COMMUNITIES,MENTAL FIGHT CLUB,"2,500.00",VCS GRANTS,GRANTS,5902545590,1000051170
05.10.2022,COMMUNITIES,LATIN AMERICAN DISABLED PEOPLE PROJECT,"4,625.00",VCS GRANTS,GRANTS,5902545591,1000058588
05.10.2022,COMMUNITIES,LATIN AMERICAN WOMEN'S RIGHTS SERVICES,"4,625.00",VCS GRANTS,GRANTS,5902545592,1000068356
05.10.2022,COMMUNITIES,PAXTON GREEN TIME BANK,"4,250.00",VCS GRANTS,GRANTS,5902545595,1000070648
05.10.2022,COMMUNITIES,BLACKFRIARS SETTLEMENT,"4,500.00",VCS GRANTS,GRANTS,5902545596,1000071456
05.10.2022,COMMUNITIES,PEMBROKE COLLEGE SETTLEMENT,"4,500.00",VCS GRANTS,GRANTS,5902545597,1000073444
05.10.2022,COMMUNITIES,BERMONDSEY COMMUNITY KITCHEN,"3,750.00",VCS GRANTS,GRANTS,5902545598,1000075477
05.10.2022,COMMUNITIES,THE BIKE PROJECT,"3,851.00",VCS GRANTS,GRANTS,5902545599,1000077217
05.10.2022,COMMUNITIES,SOUTHWARK TRAVELLERS' ACTION,"5,750.00",VCS GRANTS,GRANTS,5902545600,1000077795
05.10.2022,COMMUNITIES,GLOBAL GENERATION,"4,250.00",VCS GRANTS,GRANTS,5902545601,1000080135
05.10.2022,COMMUNITIES,SPRING COMMUNITY HUB,"5,250.00",VCS GRANTS,GRANTS,5902545602,1000083089
05.10.2022,COMMUNITIES,OPENING DOORS LONDON,"4,750.00",VCS GRANTS,GRANTS,5902545603,1000086261
05.10.2022,COMMUNITIES HRA,APPLEGARTH HOUSE COOPERATIVE LTD,"18,949.00",APPLEGARTH HOUSE CO-OP,M&M ALLOWANCE CO-OPS,5902545704,1296074
05.10.2022,COMMUNITIES HRA,COOPER CLOSE CO-OPERATIVE LTD,"12,546.00",COOPERS CLOSE CO-OP,M&M ALLOWANCE CO-OPS,5902545542,1216346
05.10.2022,COMMUNITIES HRA,APPLEGARTH HOUSE COOPERATIVE LTD,"1,300.00",RESIDENTS PARTICIPATION FUND,GRANTS,5902545541,1296074
05.10.2022,COMMUNITIES HRA,ARNOLD ESTATE TRA,"1,782.00",RESIDENTS PARTICIPATION FUND,GRANTS,5902545547,1000052806
05.10.2022,COMMUNITIES HRA,WRAYBURN COMMUNITIES ORGANISATION LTD,"1,300.00",RESIDENTS PARTICIPATION FUND,GRANTS,5902545721,1000078477
05.10.2022,COMMUNITY HOUSING SERVICES (HGF),TERRY GALLIVAN,"1,800.00",HOMELESS PROJECTS,LEGAL FEES & COURT COSTS,2103568547,1000044794
05.10.2022,COMMUNITY HOUSING SERVICES (HGF),NOWMEDICAL LTD,"2,620.00",HOUSING OPTIONS,PROFESSIONAL FEES,5902545673,1000068185
05.10.2022,CUSTOMER EXPERIENCE,POSTURITE LTD,290.53,COMPLAINTS,FURNITURE PURCHASE & REPAIR,5902545736,11015468
05.10.2022,CUSTOMER EXPERIENCE,POSTURITE LTD,290.53,COMPLAINTS,FURNITURE PURCHASE & REPAIR,5902545738,11015468
05.10.2022,CUSTOMER EXPERIENCE HGF,SG PATH LTD,415.80,CORONER'S,PROFESSIONAL FEES,5902545716,1000077883
05.10.2022,CUSTOMER EXPERIENCE HGF,IMPERIAL COLLEGE PROJECTS LTD,357.00,CORONER'S,PROFESSIONAL FEES,5902545694,1000080106
05.10.2022,CUSTOMER EXPERIENCE HGF,IMPERIAL COLLEGE PROJECTS LTD,357.00,CORONER'S,PROFESSIONAL FEES,5902545696,1000080106
05.10.2022,CUSTOMER EXPERIENCE HGF,IMPERIAL COLLEGE PROJECTS LTD,357.00,CORONER'S,PROFESSIONAL FEES,5902545698,1000080106
05.10.2022,CUSTOMER EXPERIENCE HGF,IMPERIAL COLLEGE PROJECTS LTD,357.00,CORONER'S,PROFESSIONAL FEES,5902545742,1000080106
05.10.2022,CUSTOMER EXPERIENCE HGF,IMPERIAL COLLEGE PROJECTS LTD,382.00,CORONER'S,PROFESSIONAL FEES,5902545744,1000080106
05.10.2022,CUSTOMER EXPERIENCE HGF,IMPERIAL COLLEGE PROJECTS LTD,399.00,CORONER'S,PROFESSIONAL FEES,5902545703,1000080106
05.10.2022,CUSTOMER EXPERIENCE HGF,IMPERIAL COLLEGE PROJECTS LTD,441.00,CORONER'S,PROFESSIONAL FEES,5902545705,1000080106
05.10.2022,CUSTOMER EXPERIENCE HGF,IMPERIAL COLLEGE PROJECTS LTD,455.00,CORONER'S,PROFESSIONAL FEES,5902545737,1000080106
05.10.2022,CUSTOMER EXPERIENCE HGF,IMPERIAL COLLEGE PROJECTS LTD,467.00,CORONER'S,PROFESSIONAL FEES,5902545739,1000080106
05.10.2022,CUSTOMER EXPERIENCE HGF,IMPERIAL COLLEGE PROJECTS LTD,527.00,CORONER'S,PROFESSIONAL FEES,5902545711,1000080106
05.10.2022,CUSTOMER EXPERIENCE HGF,IMPERIAL COLLEGE PROJECTS LTD,535.00,CORONER'S,PROFESSIONAL FEES,5902545719,1000080106
05.10.2022,CUSTOMER EXPERIENCE HGF,IMPERIAL COLLEGE PROJECTS LTD,582.00,CORONER'S,PROFESSIONAL FEES,5902545740,1000080106
05.10.2022,CUSTOMER EXPERIENCE HGF,IMPERIAL COLLEGE PROJECTS LTD,603.00,CORONER'S,PROFESSIONAL FEES,5902545715,1000080106
05.10.2022,CUSTOMER EXPERIENCE HGF,IMPERIAL COLLEGE PROJECTS LTD,646.00,CORONER'S,PROFESSIONAL FEES,5902545733,1000080106
05.10.2022,CUSTOMER EXPERIENCE HGF,IMPERIAL COLLEGE PROJECTS LTD,807.00,CORONER'S,PROFESSIONAL FEES,5902545700,1000080106
05.10.2022,CUSTOMER EXPERIENCE HGF,VIRGIN MEDIA,"1,382.40",SHARED SERVICES,COMMS & COMPUTING CONTRACT CHARGES,5902545399,1000026457
05.10.2022,EDUCATION,HADDON HALL BAPTIST CHURCH,294.00,LEA MUSIC SERVICE(310) - 5018566,CONSULTANTS SERVICES,5902545552,1000000937
05.10.2022,EDUCATION,NORMANS MUSICAL INSTRUMENTS,410.00,LEA MUSIC SERVICE(310) - 5018566,EQUIPMENT PURCHASE & REPAIR,5902545685,1000015419
05.10.2022,ENVIRONMENT AND LEISURE,F M CONWAY LTD,748.16,CAPITAL PS (LEISURE),CONSTRUCTION,2103568559,4001384
05.10.2022,ENVIRONMENT AND LEISURE,F M CONWAY LTD,909.04,CAPITAL PS (LEISURE),CONSTRUCTION,2103568560,4001384
05.10.2022,ENVIRONMENT AND LEISURE,CYCLEHOOP LTD,"3,170.00",CAPITAL PS (LEISURE),CONSTRUCTION FEES - INTERNAL,5902545640,1000057894
05.10.2022,ENVIRONMENT DIRECTORATE,ARNOLD CLARK VEHICLE MANAGEMENT,274.06,CAR LEASING CTRL A/C,VEHICLE LEASING CHARGES,5902545759,1000079116
05.10.2022,ENVIRONMENT DIRECTORATE,ARNOLD CLARK VEHICLE MANAGEMENT,274.06,CAR LEASING CTRL A/C,VEHICLE LEASING CHARGES,5902545764,1000079116
05.10.2022,ENVIRONMENT DIRECTORATE,ARNOLD CLARK VEHICLE MANAGEMENT,328.87,CAR LEASING CTRL A/C,VEHICLE LEASING CHARGES,5902545759,1000079116
05.10.2022,ENVIRONMENT DIRECTORATE,ARNOLD CLARK VEHICLE MANAGEMENT,328.87,CAR LEASING CTRL A/C,VEHICLE LEASING CHARGES,5902545764,1000079116
05.10.2022,F & C S EXCLUDING CORPORATE BUDGETS,CORPORATE DOCUMENT SERVICES LTD,268.12,CONSTITUTIONAL TEAM,PRINTING,5902545560,11324274
05.10.2022,F & C S EXCLUDING CORPORATE BUDGETS,COURTNEY STEP-MARSDEN,700.00,LEGAL CORP.CHARGES,LEGAL FEES & COURT COSTS,2103568519,1000088707
05.10.2022,HOUSING,OCO LIMITED,"152,061.75",PAYMENTS CONTROL ACCOUNT - OCO,I-WORLD CONTRACTORS HOLDING ACCOUNT,5902545570,1006066
05.10.2022,HOUSING,SMITH & BYFORD LTD,"130,701.25",SMITH AND BYFORD,I-WORLD CONTRACTORS HOLDING ACCOUNT,5902545577,11212119
05.10.2022,HOUSING GENERAL FUND,AJM ADAPTIONS LTD,"10,520.00",CAPITAL PS (HOUSING GF),CAPITAL GRANTS,5902545761,1000080297
05.10.2022,HOUSING GENERAL FUND,PINNICALE BUILDING SERVICES LIMITED,"-9,067.00",CAPITAL PS (HOUSING GF),CAPITAL GRANTS,5902546005,1000082308
05.10.2022,HOUSING GENERAL FUND,PINNICALE BUILDING SERVICES LIMITED,"9,067.00",CAPITAL PS (HOUSING GF),CAPITAL GRANTS,5902545990,1000082308
05.10.2022,HOUSING HRA,AMCAS- ASSET MANAGEMENT & COMPLIANCY AUDITING SERVICES,"3,150.00",CAPITAL PS (HRA),CONSTRUCTION,5902545655,1000086291
05.10.2022,HOUSING HRA,AMCAS- ASSET MANAGEMENT & COMPLIANCY AUDITING SERVICES,"3,500.00",CAPITAL PS (HRA),CONSTRUCTION,5902545659,1000086291
05.10.2022,HOUSING HRA,EQUANS REGENERATION LTD,"4,275.00",CAPITAL PS (HRA),CONSTRUCTION FEES,2103568563,3000002035
05.10.2022,HOUSING HRA,SHERGROUP LTD,-838.00,CAPITAL PS (REGEN),CONSTRUCTION FEES  - EXTERNAL,5902546006,1000087977
05.10.2022,HOUSING HRA,SHERGROUP LTD,838.00,CAPITAL PS (REGEN),CONSTRUCTION FEES  - EXTERNAL,5902545986,1000087977
05.10.2022,HOUSING HRA,SHARPE PRITCHARD LLP,"1,350.00",CAPITAL PS (REGEN),CONSTRUCTION FEES - LEGAL,5902545551,1790085
05.10.2022,HR & OT,HR CLINIC LTD,"3,000.00",HR PAYROLL COSTS,PROFESSIONAL FEES,5902545562,1000086706
05.10.2022,PUBLIC HEALTH,STRATEGIC HEALTH LIMITED,"6,250.00",HEALTHY WEIGHT,EXTERNAL AGENCIES AND BODIES,5902545538,1000088607
05.10.2022,PUBLIC HEALTH,ALBION PRIMARY SCHOOL,"4,224.00",HOLIDAY ACTIVITIES & FOOD,EXTERNAL AGENCIES AND BODIES,5902545546,5001000000
05.10.2022,RESIDENT SERVICES,SOUTHERN ELECTRIC,592.10,OPERATIONS/OFFICES ACCOMMODATION,ELECTRICITY,5902545680,1000050721
05.10.2022,RESIDENT SERVICES,MAX GORDON,400.00,OPERATIONS/OFFICES ACCOMMODATION,LEGAL FEES & COURT COSTS,2103568530,1000081703
05.10.2022,RESIDENT SERVICES,URANG PROPERTY MANAGEMENT LTD,"33,031.87",OPERATIONS/OFFICES ACCOMMODATION,SERVICE CHARGES,5902545556,1000083463
05.10.2022,RESIDENT SERVICES,OT GROUP LIMITED,514.27,OPERATIONS/OFFICES ACCOMMODATION,STATIONERY,5902533563,1000087285
05.10.2022,RESIDENT SERVICES,NEWINGTON BUTTS MANAGEMENT LTD,"47,224.15",PRIVATE SERVICE CHARGES,SERVICE CHARGES,5902545728,1000081298
05.10.2022,RESIDENT SERVICES,PETER JOLLEY,400.00,SPECIAL INVESTIGATIONS,LEGAL FEES & COURT COSTS,2103568539,1000082537
05.10.2022,RESIDENT SERVICES,KINGSPRIDE INVESTMENTS LTD,950.00,TA PLACEMENTS,EXTERNAL AGENCIES AND BODIES,5902545539,1000084216
05.10.2022,RESIDENT SERVICES,KINGSPRIDE INVESTMENTS LTD,"4,300.00",TA PLACEMENTS,EXTERNAL AGENCIES AND BODIES,5902545539,1000084216
05.10.2022,RESIDENT SERVICES HGF,LIFE SKILLZ CIC,811.07,AFEO,EXTERNAL AGENCIES AND BODIES,5902545688,1000088098
05.10.2022,RESIDENT SERVICES HGF,LIFE SKILLZ CIC,"2,934.51",AFEO,EXTERNAL AGENCIES AND BODIES,5902545688,1000088098
05.10.2022,RESIDENT SERVICES HGF,THEORI HOUSING MANAGEMENT SERVICES,"11,634.07",NIGHTLY TA (NSC),EXTERNAL AGENCIES AND BODIES,5902545750,1000079264
05.10.2022,RESIDENT SERVICES HGF,FINEFAIR LTD,"101,063.21",PSL PLACEMENTS,EXTERNAL AGENCIES AND BODIES,5902545697,1000075570
05.10.2022,RESIDENT SERVICES HGF,FINEFAIR LTD,"256,982.84",PSL PLACEMENTS,EXTERNAL AGENCIES AND BODIES,5902545692,1000075570
05.10.2022,RESIDENT SERVICES HGF,CIRCA HOMES LTD,"2,780.93",PSL PLACEMENTS,EXTERNAL AGENCIES AND BODIES,5902545543,1000083021
06.10.2022,ADULT SOCIAL CARE,REDACTED PERSONAL DATA,500.00,APPOINTEESHIPS,OTHER PAYMENTS FOR CLIENTS,REDACTED,REDACTED
06.10.2022,ADULT SOCIAL CARE,HUNTERSJOY LTD,670.00,ASW - PROFESSIONAL DEVELOPMENT,CONSULTANTS SERVICES,5902544768,1000077343
06.10.2022,ADULT SOCIAL CARE,SUSSEX COMMUNITY NHS FT,"4,268.40",DISABILITIES LAC,RESIDENTIAL CARE,2103568747,1000066869
06.10.2022,ADULT SOCIAL CARE,SUSSEX COMMUNITY NHS FT,"4,268.40",DISABILITIES LAC,RESIDENTIAL CARE,2103568753,1000066869
06.10.2022,ADULT SOCIAL CARE,SUSSEX COMMUNITY NHS FT,"4,410.68",DISABILITIES LAC,RESIDENTIAL CARE,2103568749,1000066869
06.10.2022,ADULT SOCIAL CARE,SUSSEX COMMUNITY NHS FT,"4,410.68",DISABILITIES LAC,RESIDENTIAL CARE,2103568751,1000066869
06.10.2022,ADULT SOCIAL CARE,SAGECARE LTD,793.80,DISCHARGE TO ACCESS,HOMECARE - C&V,2103568997,1000080924
06.10.2022,ADULT SOCIAL CARE,SURREY DOCKS FARM PROVIDENT SOCIETY,480.00,LD LTS 18-64,DAYCARE,2103568935,1000000958
06.10.2022,ADULT SOCIAL CARE,SURREY DOCKS FARM PROVIDENT SOCIETY,500.00,LD LTS 18-64,DAYCARE,2103568943,1000000958
06.10.2022,ADULT SOCIAL CARE,SURREY DOCKS FARM PROVIDENT SOCIETY,720.00,LD LTS 18-64,DAYCARE,2103568941,1000000958
06.10.2022,ADULT SOCIAL CARE,SAGECARE LTD,"1,058.40",LD LTS 18-64,HOMECARE - C&V,2103569008,1000080924
06.10.2022,ADULT SOCIAL CARE,SURREY DOCKS FARM PROVIDENT SOCIETY,360.00,LD LTS 65+,DAYCARE,2103568939,1000000958
06.10.2022,ADULT SOCIAL CARE,SAGECARE LTD,255.16,MEM LTS 65+,HOMECARE - C&V,2103568957,1000080924
06.10.2022,ADULT SOCIAL CARE,SAGECARE LTD,680.40,MEM LTS 65+,HOMECARE - C&V,2103568994,1000080924
06.10.2022,ADULT SOCIAL CARE,LAMBETH CHINESE COMMUNITY ASSOCIATION,532.00,MH LTS 18-64,SUPPORTED LIVING,2103568945,11117038
06.10.2022,ADULT SOCIAL CARE,SAGECARE LTD,720.73,PHY LTS 18-64,HOMECARE - C&V,2103568979,1000080924
06.10.2022,ADULT SOCIAL CARE,SAGECARE LTD,843.63,PHY LTS 18-64,HOMECARE - C&V,2103568953,1000080924
06.10.2022,ADULT SOCIAL CARE,SAGECARE LTD,869.40,PHY LTS 18-64,HOMECARE - C&V,2103568988,1000080924
06.10.2022,ADULT SOCIAL CARE,SAGECARE LTD,878.89,PHY LTS 18-64,HOMECARE - C&V,2103569003,1000080924
06.10.2022,ADULT SOCIAL CARE,SAGECARE LTD,"1,327.86",PHY LTS 18-64,HOMECARE - C&V,2103568967,1000080924
06.10.2022,ADULT SOCIAL CARE,SAGECARE LTD,"2,816.32",PHY LTS 18-64,HOMECARE - C&V,2103568963,1000080924
06.10.2022,ADULT SOCIAL CARE,SAGECARE LTD,250.43,PHY LTS 65+,HOMECARE - C&V,2103568992,1000080924
06.10.2022,ADULT SOCIAL CARE,SAGECARE LTD,255.15,PHY LTS 65+,HOMECARE - C&V,2103568999,1000080924
06.10.2022,ADULT SOCIAL CARE,SAGECARE LTD,264.60,PHY LTS 65+,HOMECARE - C&V,2103568996,1000080924
06.10.2022,ADULT SOCIAL CARE,SAGECARE LTD,283.60,PHY LTS 65+,HOMECARE - C&V,2103568990,1000080924
06.10.2022,ADULT SOCIAL CARE,SAGECARE LTD,321.30,PHY LTS 65+,HOMECARE - C&V,2103568993,1000080924
06.10.2022,ADULT SOCIAL CARE,SAGECARE LTD,354.46,PHY LTS 65+,HOMECARE - C&V,2103568973,1000080924
06.10.2022,ADULT SOCIAL CARE,SAGECARE LTD,378.13,PHY LTS 65+,HOMECARE - C&V,2103569010,1000080924
06.10.2022,ADULT SOCIAL CARE,SAGECARE LTD,581.35,PHY LTS 65+,HOMECARE - C&V,2103568971,1000080924
06.10.2022,ADULT SOCIAL CARE,SAGECARE LTD,604.88,PHY LTS 65+,HOMECARE - C&V,2103568961,1000080924
06.10.2022,ADULT SOCIAL CARE,SAGECARE LTD,623.84,PHY LTS 65+,HOMECARE - C&V,2103569004,1000080924
06.10.2022,ADULT SOCIAL CARE,SAGECARE LTD,713.63,PHY LTS 65+,HOMECARE - C&V,2103569000,1000080924
06.10.2022,ADULT SOCIAL CARE,SAGECARE LTD,727.65,PHY LTS 65+,HOMECARE - C&V,2103569012,1000080924
06.10.2022,ADULT SOCIAL CARE,SAGECARE LTD,727.79,PHY LTS 65+,HOMECARE - C&V,2103569007,1000080924
06.10.2022,ADULT SOCIAL CARE,SAGECARE LTD,741.82,PHY LTS 65+,HOMECARE - C&V,2103569011,1000080924
06.10.2022,ADULT SOCIAL CARE,SAGECARE LTD,845.90,PHY LTS 65+,HOMECARE - C&V,2103568965,1000080924
06.10.2022,ADULT SOCIAL CARE,SAGECARE LTD,860.44,PHY LTS 65+,HOMECARE - C&V,2103568987,1000080924
06.10.2022,ADULT SOCIAL CARE,SAGECARE LTD,912.03,PHY LTS 65+,HOMECARE - C&V,2103568977,1000080924
06.10.2022,ADULT SOCIAL CARE,SAGECARE LTD,992.39,PHY LTS 65+,HOMECARE - C&V,2103568969,1000080924
06.10.2022,ADULT SOCIAL CARE,SAGECARE LTD,"1,119.83",PHY LTS 65+,HOMECARE - C&V,2103569009,1000080924
06.10.2022,ADULT SOCIAL CARE,SAGECARE LTD,"1,129.28",PHY LTS 65+,HOMECARE - C&V,2103568981,1000080924
06.10.2022,ADULT SOCIAL CARE,SAGECARE LTD,"2,107.36",PHY LTS 65+,HOMECARE - C&V,2103568983,1000080924
06.10.2022,ADULT SOCIAL CARE,SAGECARE LTD,"2,438.87",PHY LTS 65+,HOMECARE - C&V,2103568998,1000080924
06.10.2022,ADULT SOCIAL CARE,HARTWIG CARE LTD,425.28,PHY LTS 65+,HOMECARE - C&V,2103568807,1000088354
06.10.2022,ADULT SOCIAL CARE,HARTWIG CARE LTD,482.87,PHY LTS 65+,HOMECARE - C&V,2103568767,1000088354
06.10.2022,ADULT SOCIAL CARE,HARTWIG CARE LTD,496.16,PHY LTS 65+,HOMECARE - C&V,2103568781,1000088354
06.10.2022,ADULT SOCIAL CARE,HARTWIG CARE LTD,496.16,PHY LTS 65+,HOMECARE - C&V,2103568829,1000088354
06.10.2022,ADULT SOCIAL CARE,HARTWIG CARE LTD,558.18,PHY LTS 65+,HOMECARE - C&V,2103568815,1000088354
06.10.2022,ADULT SOCIAL CARE,HARTWIG CARE LTD,558.18,PHY LTS 65+,HOMECARE - C&V,2103568839,1000088354
06.10.2022,ADULT SOCIAL CARE,HARTWIG CARE LTD,558.18,PHY LTS 65+,HOMECARE - C&V,2103568843,1000088354
06.10.2022,ADULT SOCIAL CARE,HARTWIG CARE LTD,558.18,PHY LTS 65+,HOMECARE - C&V,2103568845,1000088354
06.10.2022,ADULT SOCIAL CARE,HARTWIG CARE LTD,722.09,PHY LTS 65+,HOMECARE - C&V,2103568805,1000088354
06.10.2022,ADULT SOCIAL CARE,HARTWIG CARE LTD,744.24,PHY LTS 65+,HOMECARE - C&V,2103568777,1000088354
06.10.2022,ADULT SOCIAL CARE,HARTWIG CARE LTD,744.24,PHY LTS 65+,HOMECARE - C&V,2103568797,1000088354
06.10.2022,ADULT SOCIAL CARE,HARTWIG CARE LTD,744.24,PHY LTS 65+,HOMECARE - C&V,2103568817,1000088354
06.10.2022,ADULT SOCIAL CARE,SAGECARE LTD,"1,190.72",PHY STS 65+,HOMECARE - IC,2103568955,1000080924
06.10.2022,ADULT SOCIAL CARE,SAGECARE LTD,"1,701.02",PHY STS 65+,HOMECARE - IC,2103568985,1000080924
06.10.2022,ADULT SOCIAL CARE,F A ALBIN AND SONS,"1,299.00",PUBLIC FUNERALS S.46,OTHER CONTRACTORS,5902545858,11313949
06.10.2022,ADULT SOCIAL CARE,F A ALBIN AND SONS,"1,346.00",PUBLIC FUNERALS S.46,OTHER CONTRACTORS,5902545856,11313949
06.10.2022,ADULT SOCIAL CARE,F A ALBIN AND SONS,"1,361.00",PUBLIC FUNERALS S.46,OTHER CONTRACTORS,5902545862,11313949
06.10.2022,ADULT SOCIAL CARE,F A ALBIN AND SONS,"1,958.00",PUBLIC FUNERALS S.46,OTHER CONTRACTORS,5902545859,11313949
06.10.2022,ADULT SOCIAL CARE,SAGECARE LTD,263.34,SEN LTS 65+,HOMECARE - C&V,2103568995,1000080924
06.10.2022,ADULT SOCIAL CARE,SURREY DOCKS FARM PROVIDENT SOCIETY,500.00,SOCIAL ISOLATION,DAYCARE,2103568937,1000000958
06.10.2022,ADULT SOCIAL CARE,POTTERY CRAFTS LIMITED,302.25,SOUTHWARK RESOURCE CENTRE,MATERIALS,5902545938,11010625
06.10.2022,ADULT SOCIAL CARE,SUPREME CARE SERVICES LTD,432.00,SPECIALIST CARE,SECTION 17 PAYMENTS TO AGENCIES/CARERS,2103568737,1000059416
06.10.2022,ADULT SOCIAL CARE,CHILDREN'S COMPLEX  CARE LTD,366.24,SPECIALIST CARE,SECTION 17 PAYMENTS TO AGENCIES/CARERS,2103568745,1000069262
06.10.2022,ADULT SOCIAL CARE,CHILDREN'S COMPLEX  CARE LTD,412.02,SPECIALIST CARE,SECTION 17 PAYMENTS TO AGENCIES/CARERS,2103568741,1000069262
06.10.2022,ADULT SOCIAL CARE,CHILDREN'S COMPLEX  CARE LTD,"1,098.72",SPECIALIST CARE,SECTION 17 PAYMENTS TO AGENCIES/CARERS,2103568735,1000069262
06.10.2022,ADULT SOCIAL CARE,CHILDREN'S COMPLEX  CARE LTD,"2,410.82",SPECIALIST CARE,SECTION 17 PAYMENTS TO AGENCIES/CARERS,2103568743,1000069262
06.10.2022,ADULT SOCIAL CARE,CHILDREN'S COMPLEX  CARE LTD,"6,905.28",SPECIALIST CARE,SECTION 17 PAYMENTS TO AGENCIES/CARERS,2103568739,1000069262
06.10.2022,ASSET MANAGEMENT,SIMON L TAYLOR LTD,337.50,DISREPAIR,BUILDING R&M,5902544641,1000056151
06.10.2022,ASSET MANAGEMENT,SIMON L TAYLOR LTD,347.50,DISREPAIR,BUILDING R&M,5902544636,1000056151
06.10.2022,ASSET MANAGEMENT,SIMON L TAYLOR LTD,401.25,DISREPAIR,BUILDING R&M,5902544647,1000056151
06.10.2022,ASSET MANAGEMENT,PROPERTY FACILITIES GROUP LTD,350.00,DISREPAIR,BUILDING R&M,5902545815,1000063713
06.10.2022,ASSET MANAGEMENT,PROPERTY FACILITIES GROUP LTD,"2,220.83",DISREPAIR,BUILDING R&M,5902545805,1000063713
06.10.2022,ASSET MANAGEMENT,PROPERTY FACILITIES GROUP LTD,"3,303.64",DISREPAIR,BUILDING R&M,5902545806,1000063713
06.10.2022,ASSET MANAGEMENT,PROPERTY FACILITIES GROUP PLC,971.16,DISREPAIR,BUILDING R&M,2103569042,3000001420
06.10.2022,ASSET MANAGEMENT,ARMINA LTD,272.95,DISREPAIR,BUILDING R&M,2103566082,3000002121
06.10.2022,ASSET MANAGEMENT,ARMINA LTD,"1,789.17",DISREPAIR,BUILDING R&M,2103566089,3000002121
06.10.2022,ASSET MANAGEMENT,ARMINA LTD,"2,213.93",DISREPAIR,BUILDING R&M,2103566083,3000002121
06.10.2022,ASSET MANAGEMENT,ARMINA LTD,"6,902.88",DISREPAIR,BUILDING R&M,2103566084,3000002121
06.10.2022,ASSET MANAGEMENT,INTAKT LTD,"8,400.00",ENG CONTRACTS,PROFESSIONAL FEES,5902545918,1000087217
06.10.2022,ASSET MANAGEMENT,LONDON FIRE BRIGADE,364.00,ENG CONTRACTS (NORTH),LIFTS,5902544798,1000083629
06.10.2022,ASSET MANAGEMENT,POSTURITE LTD,"1,163.48",REPAIRS OPERATIONS,FURNITURE PURCHASE & REPAIR,5902545784,11015468
06.10.2022,ASSET MANAGEMENT HGF,ROYAL MAIL GROUP LTD,"1,273.28",160 TOOLEY ST.,POSTAGES,5902544455,1000061535
06.10.2022,CENTRAL FUNCTIONS,BOLTON GATE SERVICES LTD,350.00,BARROW STORES,BUILDING R&M,5902545066,1000088870
06.10.2022,CENTRAL FUNCTIONS,BRESLIN CONSTRUCTION LTD,"4,850.00",COMMERCIAL PROPERTIES,BUILDING R&M,2103566071,3000001948
06.10.2022,CENTRAL FUNCTIONS,EDF ENERGY PLC,256.50,LEDBURY ESTATE,ELECTRICITY,5902545825,1008746
06.10.2022,CENTRAL FUNCTIONS,BCS (ELECTRICAL & BUILDING SERVICES LTD),"4,620.00",LEDBURY ESTATE,ELECTRICITY,5902545816,1000062321
06.10.2022,CHIEF EXECUTIVE,MORRIS + COMPANY LTD,"1,646.00",CAPITAL PS (REGEN),CONSTRUCTION FEES,5902545771,1000084228
06.10.2022,CHIEF EXECUTIVE,SHARPE PRITCHARD LLP,"1,500.00",CAPITAL PS (REGEN),CONSTRUCTION FEES - LEGAL,5902545882,1790085
06.10.2022,CHILDREN AND FAMILIES,REDACTED PERSONAL DATA,333.00,ADOPTION SUPP FUND,EXTERNAL AGENCIES AND BODIES,REDACTED,REDACTED
06.10.2022,CHILDREN AND FAMILIES,REDACTED PERSONAL DATA,336.00,ADOPTION SUPP FUND,EXTERNAL AGENCIES AND BODIES,REDACTED,REDACTED
06.10.2022,CHILDREN AND FAMILIES,REDACTED PERSONAL DATA,700.00,ADOPTION SUPP FUND,EXTERNAL AGENCIES AND BODIES,REDACTED,REDACTED
06.10.2022,CHILDREN AND FAMILIES,ZENITH CARS LTD,"1,200.00",AI TEAMS A-D,CLIENT TRANSPORT,5902545900,1000070570
06.10.2022,CHILDREN AND FAMILIES,ZENITH CARS LTD,"1,200.00",AI TEAMS A-D,CLIENT TRANSPORT,5902545906,1000070570
06.10.2022,CHILDREN AND FAMILIES,LONDON BOROUGH OF EALING,"9,500.00",C & F PLACEMENT TEAM,OTHER LOCAL AUTHORITIES,5902545781,1000033322
06.10.2022,CHILDREN AND FAMILIES,LONDON BOROUGH OF EALING,"47,500.00",C & F PLACEMENT TEAM,OTHER LOCAL AUTHORITIES,5902545781,1000033322
06.10.2022,CHILDREN AND FAMILIES,LONDON BOROUGH OF EALING,"47,500.00",C & F PLACEMENT TEAM,OTHER LOCAL AUTHORITIES,5902545781,1000033322
06.10.2022,CHILDREN AND FAMILIES,REDACTED PERSONAL DATA,300.00,CARELEAVER UNIV SUPP,CLIENT TRANSPORT,REDACTED,REDACTED
06.10.2022,CHILDREN AND FAMILIES,REDACTED PERSONAL DATA,300.00,CARELEAVER UNIV SUPP,CLIENT TRANSPORT,REDACTED,REDACTED
06.10.2022,CHILDREN AND FAMILIES,REDACTED PERSONAL DATA,300.00,CARELEAVER UNIV SUPP,CLIENT TRANSPORT,REDACTED,REDACTED
06.10.2022,CHILDREN AND FAMILIES,REDACTED PERSONAL DATA,300.00,CARELEAVER UNIV SUPP,CLIENT TRANSPORT,REDACTED,REDACTED
06.10.2022,CHILDREN AND FAMILIES,REDACTED PERSONAL DATA,300.00,CARELEAVER UNIV SUPP,CLIENT TRANSPORT,REDACTED,REDACTED
06.10.2022,CHILDREN AND FAMILIES,REDACTED PERSONAL DATA,300.00,CARELEAVER UNIV SUPP,CLIENT TRANSPORT,REDACTED,REDACTED
06.10.2022,CHILDREN AND FAMILIES,REDACTED PERSONAL DATA,300.00,CARELEAVER UNIV SUPP,CLIENT TRANSPORT,REDACTED,REDACTED
06.10.2022,CHILDREN AND FAMILIES,REDACTED PERSONAL DATA,"1,150.00",CARELEAVER UNIV SUPP,OTHER PAYMENTS FOR CLIENTS,REDACTED,REDACTED
06.10.2022,CHILDREN AND FAMILIES,REDACTED PERSONAL DATA,"1,650.00",CARELEAVER UNIV SUPP,OTHER PAYMENTS FOR CLIENTS,REDACTED,REDACTED
06.10.2022,CHILDREN AND FAMILIES,REDACTED PERSONAL DATA,"1,650.00",CARELEAVER UNIV SUPP,OTHER PAYMENTS FOR CLIENTS,REDACTED,REDACTED
06.10.2022,CHILDREN AND FAMILIES,REDACTED PERSONAL DATA,"1,150.00",CARELEAVER UNIV SUPP,OTHER PAYMENTS FOR CLIENTS,REDACTED,REDACTED
06.10.2022,CHILDREN AND FAMILIES,REDACTED PERSONAL DATA,"1,150.00",CARELEAVER UNIV SUPP,OTHER PAYMENTS FOR CLIENTS,REDACTED,REDACTED
06.10.2022,CHILDREN AND FAMILIES,REDACTED PERSONAL DATA,500.00,CARELEAVER UNIV SUPP,OTHER PAYMENTS FOR CLIENTS,REDACTED,REDACTED
06.10.2022,CHILDREN AND FAMILIES,REDACTED PERSONAL DATA,"1,150.00",CARELEAVER UNIV SUPP,OTHER PAYMENTS FOR CLIENTS,REDACTED,REDACTED
06.10.2022,CHILDREN AND FAMILIES,AIDHOUR LIMITED,838.95,CHILD PROTECT COORDS,PROFESSIONAL FEES,5902544993,1000057345
06.10.2022,CHILDREN AND FAMILIES,TRIPOD PARTNERS LTD,585.10,DIRECTOR OF C&F,PAYMENTS FOR LEGAL SERVICES,5902545898,1000087988
06.10.2022,CHILDREN AND FAMILIES,TRIPOD PARTNERS LTD,880.09,DIRECTOR OF C&F,PAYMENTS FOR LEGAL SERVICES,5902545913,1000087988
06.10.2022,CHILDREN AND FAMILIES,TRIPOD PARTNERS LTD,"1,224.35",DIRECTOR OF C&F,PAYMENTS FOR LEGAL SERVICES,5902545914,1000087988
06.10.2022,CHILDREN AND FAMILIES,TRIPOD PARTNERS LTD,"1,226.21",DIRECTOR OF C&F,PAYMENTS FOR LEGAL SERVICES,5902545907,1000087988
06.10.2022,CHILDREN AND FAMILIES,TRIPOD PARTNERS LTD,"1,800.00",DIRECTOR OF C&F,PAYMENTS FOR LEGAL SERVICES,5902545910,1000087988
06.10.2022,CHILDREN AND FAMILIES,TRIPOD PARTNERS LTD,"1,833.77",DIRECTOR OF C&F,PAYMENTS FOR LEGAL SERVICES,5902545899,1000087988
06.10.2022,CHILDREN AND FAMILIES,TRIPOD PARTNERS LTD,"1,874.12",DIRECTOR OF C&F,PAYMENTS FOR LEGAL SERVICES,5902545904,1000087988
06.10.2022,CHILDREN AND FAMILIES,TRIPOD PARTNERS LTD,"2,000.00",DIRECTOR OF C&F,PAYMENTS FOR LEGAL SERVICES,5902545911,1000087988
06.10.2022,CHILDREN AND FAMILIES,TRIPOD PARTNERS LTD,"3,470.70",DIRECTOR OF C&F,PAYMENTS FOR LEGAL SERVICES,5902545895,1000087988
06.10.2022,CHILDREN AND FAMILIES,ITS TRAINING (UK) LTD,"1,535.00",EDUC INCLUSION TEAM,TRAINING,5902544802,1000035281
06.10.2022,CHILDREN AND FAMILIES,REDACTED PERSONAL DATA,300.00,FE SUPPORT,CLIENT TRANSPORT,REDACTED,REDACTED
06.10.2022,CHILDREN AND FAMILIES,REDACTED PERSONAL DATA,300.00,FE SUPPORT,CLIENT TRANSPORT,REDACTED,REDACTED
06.10.2022,CHILDREN AND FAMILIES,REDACTED PERSONAL DATA,300.00,FE SUPPORT,CLIENT TRANSPORT,REDACTED,REDACTED
06.10.2022,CHILDREN AND FAMILIES,REDACTED PERSONAL DATA,500.00,FE SUPPORT,OTHER PAYMENTS FOR CLIENTS,REDACTED,REDACTED
06.10.2022,CHILDREN AND FAMILIES,REDACTED PERSONAL DATA,400.00,FE SUPPORT,OTHER PAYMENTS FOR CLIENTS,REDACTED,REDACTED
06.10.2022,CHILDREN AND FAMILIES,REDACTED PERSONAL DATA,400.00,FE SUPPORT,OTHER PAYMENTS FOR CLIENTS,REDACTED,REDACTED
06.10.2022,CHILDREN AND FAMILIES,KIRA INDEPENDENT LTD,733.33,FOSTERING TEAM,PROFESSIONAL FEES,5902545794,1000073565
06.10.2022,CHILDREN AND FAMILIES,REDACTED PERSONAL DATA,400.00,FRIENDS &FAMILY FOST,ADDITIONAL PAYMENTS TO AGENCIES/CARERS,REDACTED,REDACTED
06.10.2022,CHILDREN AND FAMILIES,REDACTED PERSONAL DATA,400.00,FRIENDS &FAMILY FOST,ADDITIONAL PAYMENTS TO AGENCIES/CARERS,REDACTED,REDACTED
06.10.2022,CHILDREN AND FAMILIES,REDACTED PERSONAL DATA,522.14,FRIENDS &FAMILY FOST,ADDITIONAL PAYMENTS TO AGENCIES/CARERS,REDACTED,REDACTED
06.10.2022,CHILDREN AND FAMILIES,REDACTED PERSONAL DATA,"-12,444.86",FRIENDS &FAMILY FOST,OTHER PAYMENTS FOR CLIENTS,REDACTED,REDACTED
06.10.2022,CHILDREN AND FAMILIES,REDACTED PERSONAL DATA,"-5,385.43",FRIENDS &FAMILY FOST,PAYMENTS TO CARERS,REDACTED,REDACTED
06.10.2022,CHILDREN AND FAMILIES,REDACTED PERSONAL DATA,"-5,385.43",FRIENDS &FAMILY FOST,PAYMENTS TO CARERS,REDACTED,REDACTED
06.10.2022,CHILDREN AND FAMILIES,REDACTED PERSONAL DATA,-981.14,FRIENDS &FAMILY FOST,PAYMENTS TO CARERS,REDACTED,REDACTED
06.10.2022,CHILDREN AND FAMILIES,REDACTED PERSONAL DATA,850.00,FRIENDS &FAMILY FOST,PAYMENTS TO CARERS,REDACTED,REDACTED
06.10.2022,CHILDREN AND FAMILIES,REDACTED PERSONAL DATA,850.00,FRIENDS &FAMILY FOST,PAYMENTS TO CARERS,REDACTED,REDACTED
06.10.2022,CHILDREN AND FAMILIES,REDACTED PERSONAL DATA,"11,255.00",FRIENDS &FAMILY FOST,PAYMENTS TO CARERS,REDACTED,REDACTED
06.10.2022,CHILDREN AND FAMILIES,REDACTED PERSONAL DATA,"11,960.72",FRIENDS &FAMILY FOST,PAYMENTS TO CARERS,REDACTED,REDACTED
06.10.2022,CHILDREN AND FAMILIES,KIRA INDEPENDENT LTD,"1,800.00",FRIENDS &FAMILY FOST,PROFESSIONAL FEES,5902545796,1000073565
06.10.2022,CHILDREN AND FAMILIES,CONNEXIONS CUISINE LTD T/A MASONS CATERING,253.00,MGMT & PARENTING,REFRESHMENTS FOR MEETINGS,5902545954,11317153
06.10.2022,CHILDREN AND FAMILIES,ZENITH CARS LTD,760.00,P & R CARE TEAM,CLIENT TRANSPORT,5902545889,1000070570
06.10.2022,CHILDREN AND FAMILIES,PURPLE PEBBLES(CHILD CARE) SERVICES,-894.99,SEMI-IND CARELEAVERS,COSTS RECOVERED,2103569022,1000070705
06.10.2022,CHILDREN AND FAMILIES,ELLIOT LEIGH TLC LTD,"-1,019.00",SEMI-IND CARELEAVERS,COSTS RECOVERED,2103569021,1000079022
06.10.2022,CHILDREN AND FAMILIES,ELLIOT LEIGH TLC LTD,-899.99,SEMI-IND CARELEAVERS,COSTS RECOVERED,2103569028,1000079022
06.10.2022,CHILDREN AND FAMILIES,ELLIOT LEIGH TLC LTD,-450.00,SEMI-IND CARELEAVERS,COSTS RECOVERED,2103569025,1000079022
06.10.2022,CHILDREN AND FAMILIES,NEXT STEP CARE MANAGEMENT LTD,"3,064.28",SEMI-IND CARELEAVERS,EXTERNAL AGENCIES AND BODIES,2103568703,1825556
06.10.2022,CHILDREN AND FAMILIES,HEXAGON HOUSING ASSOCIATION LTD,768.55,SEMI-IND CARELEAVERS,EXTERNAL AGENCIES AND BODIES,2103568925,1000056905
06.10.2022,CHILDREN AND FAMILIES,HEXAGON HOUSING ASSOCIATION LTD,"1,065.25",SEMI-IND CARELEAVERS,EXTERNAL AGENCIES AND BODIES,2103568917,1000056905
06.10.2022,CHILDREN AND FAMILIES,HEXAGON HOUSING ASSOCIATION LTD,"1,229.68",SEMI-IND CARELEAVERS,EXTERNAL AGENCIES AND BODIES,2103568923,1000056905
06.10.2022,CHILDREN AND FAMILIES,HEXAGON HOUSING ASSOCIATION LTD,"1,704.40",SEMI-IND CARELEAVERS,EXTERNAL AGENCIES AND BODIES,2103568915,1000056905
06.10.2022,CHILDREN AND FAMILIES,PURPLE PEBBLES(CHILD CARE) SERVICES,535.72,SEMI-IND CARELEAVERS,EXTERNAL AGENCIES AND BODIES,2103568691,1000070705
06.10.2022,CHILDREN AND FAMILIES,PURPLE PEBBLES(CHILD CARE) SERVICES,"1,928.57",SEMI-IND CARELEAVERS,EXTERNAL AGENCIES AND BODIES,2103568641,1000070705
06.10.2022,CHILDREN AND FAMILIES,PURPLE PEBBLES(CHILD CARE) SERVICES,"2,400.00",SEMI-IND CARELEAVERS,EXTERNAL AGENCIES AND BODIES,2103568675,1000070705
06.10.2022,CHILDREN AND FAMILIES,PURPLE PEBBLES(CHILD CARE) SERVICES,"3,642.86",SEMI-IND CARELEAVERS,EXTERNAL AGENCIES AND BODIES,2103568695,1000070705
06.10.2022,CHILDREN AND FAMILIES,PURPLE PEBBLES(CHILD CARE) SERVICES,"6,857.14",SEMI-IND CARELEAVERS,EXTERNAL AGENCIES AND BODIES,2103568639,1000070705
06.10.2022,CHILDREN AND FAMILIES,ELLIOT LEIGH TLC LTD,"1,950.00",SEMI-IND CARELEAVERS,EXTERNAL AGENCIES AND BODIES,2103568687,1000079022
06.10.2022,CHILDREN AND FAMILIES,ELLIOT LEIGH TLC LTD,"2,808.30",SEMI-IND CARELEAVERS,EXTERNAL AGENCIES AND BODIES,2103568701,1000079022
06.10.2022,CHILDREN AND FAMILIES,ELLIOT LEIGH TLC LTD,"3,258.90",SEMI-IND CARELEAVERS,EXTERNAL AGENCIES AND BODIES,2103568667,1000079022
06.10.2022,CHILDREN AND FAMILIES,MOXIE GIBSON CONSULTANCY & TRAINING LTD,"11,850.00",SEMI-IND CARELEAVERS,EXTERNAL AGENCIES AND BODIES,2103568659,1000087505
06.10.2022,CHILDREN AND FAMILIES,NEXT STEP CARE MANAGEMENT LTD,257.15,SEMI-IND CARELEAVERS,OTHER PAYMENTS FOR CLIENTS,2103568705,1825556
06.10.2022,CHILDREN AND FAMILIES,MOXIE GIBSON CONSULTANCY & TRAINING LTD,400.20,SEMI-IND CARELEAVERS,OTHER PAYMENTS FOR CLIENTS,2103568661,1000087505
06.10.2022,CHILDREN AND FAMILIES,PURPLE PEBBLES(CHILD CARE) SERVICES,"3,857.14",SEMI-IND LAC 16-17,EXTERNAL AGENCIES AND BODIES,2103568711,1000070705
06.10.2022,CHILDREN AND FAMILIES,PURPLE PEBBLES(CHILD CARE) SERVICES,"3,857.14",SEMI-IND LAC 16-17,EXTERNAL AGENCIES AND BODIES,2103568713,1000070705
06.10.2022,CHILDREN AND FAMILIES,PURPLE PEBBLES(CHILD CARE) SERVICES,"4,285.71",SEMI-IND LAC 16-17,EXTERNAL AGENCIES AND BODIES,2103568709,1000070705
06.10.2022,CHILDREN AND FAMILIES,DREAMFO HOUSING LTD,"5,628.35",SEMI-IND LAC 16-17,EXTERNAL AGENCIES AND BODIES,2103568723,1000087273
06.10.2022,CHILDREN AND FAMILIES,OUR ROCK LTD,"2,442.86",SEMI-IND LAC 16-17,EXTERNAL AGENCIES AND BODIES,2103568729,1000088325
06.10.2022,CHILDREN AND FAMILIES,OUR ROCK LTD,"4,207.14",SEMI-IND LAC 16-17,EXTERNAL AGENCIES AND BODIES,2103568727,1000088325
06.10.2022,CHILDREN AND FAMILIES,DREAMFO HOUSING LTD,257.15,SEMI-IND LAC 16-17,OTHER PAYMENTS FOR CLIENTS,2103568721,1000087273
06.10.2022,CHILDREN AND FAMILIES,OUR ROCK LTD,305.25,SEMI-IND LAC 16-17,OTHER PAYMENTS FOR CLIENTS,2103568719,1000088325
06.10.2022,CHILDREN AND FAMILIES,ZENITH CARS LTD,800.00,TEAM A,CLIENT TRANSPORT,5902545887,1000070570
06.10.2022,CHILDREN AND FAMILIES,ZENITH CARS LTD,360.00,TEAM B,CLIENT TRANSPORT,5902545906,1000070570
06.10.2022,CHILDREN AND FAMILIES,ZENITH CARS LTD,370.00,TEAM B,CLIENT TRANSPORT,5902545892,1000070570
06.10.2022,CHILDREN AND FAMILIES,ZENITH CARS LTD,530.00,TEAM C,CLIENT TRANSPORT,5902545892,1000070570
06.10.2022,CHILDREN AND FAMILIES,ZENITH CARS LTD,"1,725.00",TEAM C,CLIENT TRANSPORT,5902545906,1000070570
06.10.2022,CHILDREN AND FAMILIES,PURPLE PEBBLES(CHILD CARE) SERVICES,-894.99,UASC CARELEAVERS,COSTS RECOVERED,2103569020,1000070705
06.10.2022,CHILDREN AND FAMILIES,PURPLE PEBBLES(CHILD CARE) SERVICES,-894.99,UASC CARELEAVERS,COSTS RECOVERED,2103569023,1000070705
06.10.2022,CHILDREN AND FAMILIES,PURPLE PEBBLES(CHILD CARE) SERVICES,-875.00,UASC CARELEAVERS,COSTS RECOVERED,2103569024,1000070705
06.10.2022,CHILDREN AND FAMILIES,PURPLE PEBBLES(CHILD CARE) SERVICES,-875.00,UASC CARELEAVERS,COSTS RECOVERED,2103569026,1000070705
06.10.2022,CHILDREN AND FAMILIES,HEXAGON HOUSING ASSOCIATION LTD,569.82,UASC CARELEAVERS,EXTERNAL AGENCIES AND BODIES,2103568919,1000056905
06.10.2022,CHILDREN AND FAMILIES,HEXAGON HOUSING ASSOCIATION LTD,902.65,UASC CARELEAVERS,EXTERNAL AGENCIES AND BODIES,2103568921,1000056905
06.10.2022,CHILDREN AND FAMILIES,HEXAGON HOUSING ASSOCIATION LTD,"1,444.24",UASC CARELEAVERS,EXTERNAL AGENCIES AND BODIES,2103568913,1000056905
06.10.2022,CHILDREN AND FAMILIES,PURPLE PEBBLES(CHILD CARE) SERVICES,300.00,UASC CARELEAVERS,EXTERNAL AGENCIES AND BODIES,2103568683,1000070705
06.10.2022,CHILDREN AND FAMILIES,PURPLE PEBBLES(CHILD CARE) SERVICES,"1,499.99",UASC CARELEAVERS,EXTERNAL AGENCIES AND BODIES,2103568689,1000070705
06.10.2022,CHILDREN AND FAMILIES,PURPLE PEBBLES(CHILD CARE) SERVICES,"1,542.86",UASC CARELEAVERS,EXTERNAL AGENCIES AND BODIES,2103568635,1000070705
06.10.2022,CHILDREN AND FAMILIES,PURPLE PEBBLES(CHILD CARE) SERVICES,"1,607.14",UASC CARELEAVERS,EXTERNAL AGENCIES AND BODIES,2103568625,1000070705
06.10.2022,CHILDREN AND FAMILIES,PURPLE PEBBLES(CHILD CARE) SERVICES,"1,607.14",UASC CARELEAVERS,EXTERNAL AGENCIES AND BODIES,2103568645,1000070705
06.10.2022,CHILDREN AND FAMILIES,PURPLE PEBBLES(CHILD CARE) SERVICES,"1,607.14",UASC CARELEAVERS,EXTERNAL AGENCIES AND BODIES,2103568673,1000070705
06.10.2022,CHILDREN AND FAMILIES,PURPLE PEBBLES(CHILD CARE) SERVICES,"1,692.86",UASC CARELEAVERS,EXTERNAL AGENCIES AND BODIES,2103568631,1000070705
06.10.2022,CHILDREN AND FAMILIES,PURPLE PEBBLES(CHILD CARE) SERVICES,"1,714.29",UASC CARELEAVERS,EXTERNAL AGENCIES AND BODIES,2103568643,1000070705
06.10.2022,CHILDREN AND FAMILIES,PURPLE PEBBLES(CHILD CARE) SERVICES,"1,714.29",UASC CARELEAVERS,EXTERNAL AGENCIES AND BODIES,2103568681,1000070705
06.10.2022,CHILDREN AND FAMILIES,PURPLE PEBBLES(CHILD CARE) SERVICES,"1,757.14",UASC CARELEAVERS,EXTERNAL AGENCIES AND BODIES,2103568633,1000070705
06.10.2022,CHILDREN AND FAMILIES,PURPLE PEBBLES(CHILD CARE) SERVICES,"1,821.43",UASC CARELEAVERS,EXTERNAL AGENCIES AND BODIES,2103568677,1000070705
06.10.2022,CHILDREN AND FAMILIES,PURPLE PEBBLES(CHILD CARE) SERVICES,"1,821.43",UASC CARELEAVERS,EXTERNAL AGENCIES AND BODIES,2103568679,1000070705
06.10.2022,CHILDREN AND FAMILIES,PURPLE PEBBLES(CHILD CARE) SERVICES,"1,821.44",UASC CARELEAVERS,EXTERNAL AGENCIES AND BODIES,2103568699,1000070705
06.10.2022,CHILDREN AND FAMILIES,PURPLE PEBBLES(CHILD CARE) SERVICES,"1,885.71",UASC CARELEAVERS,EXTERNAL AGENCIES AND BODIES,2103568623,1000070705
06.10.2022,CHILDREN AND FAMILIES,PURPLE PEBBLES(CHILD CARE) SERVICES,"1,885.71",UASC CARELEAVERS,EXTERNAL AGENCIES AND BODIES,2103568637,1000070705
06.10.2022,CHILDREN AND FAMILIES,PURPLE PEBBLES(CHILD CARE) SERVICES,"1,885.71",UASC CARELEAVERS,EXTERNAL AGENCIES AND BODIES,2103568651,1000070705
06.10.2022,CHILDREN AND FAMILIES,PURPLE PEBBLES(CHILD CARE) SERVICES,"1,885.71",UASC CARELEAVERS,EXTERNAL AGENCIES AND BODIES,2103568697,1000070705
06.10.2022,CHILDREN AND FAMILIES,PURPLE PEBBLES(CHILD CARE) SERVICES,"1,917.86",UASC CARELEAVERS,EXTERNAL AGENCIES AND BODIES,2103568619,1000070705
06.10.2022,CHILDREN AND FAMILIES,PURPLE PEBBLES(CHILD CARE) SERVICES,"1,928.57",UASC CARELEAVERS,EXTERNAL AGENCIES AND BODIES,2103568621,1000070705
06.10.2022,CHILDREN AND FAMILIES,PURPLE PEBBLES(CHILD CARE) SERVICES,"1,928.57",UASC CARELEAVERS,EXTERNAL AGENCIES AND BODIES,2103568647,1000070705
06.10.2022,CHILDREN AND FAMILIES,PURPLE PEBBLES(CHILD CARE) SERVICES,"2,142.85",UASC CARELEAVERS,EXTERNAL AGENCIES AND BODIES,2103568617,1000070705
06.10.2022,CHILDREN AND FAMILIES,PURPLE PEBBLES(CHILD CARE) SERVICES,"3,428.57",UASC CARELEAVERS,EXTERNAL AGENCIES AND BODIES,2103568629,1000070705
06.10.2022,CHILDREN AND FAMILIES,PURPLE PEBBLES(CHILD CARE) SERVICES,"3,428.57",UASC CARELEAVERS,EXTERNAL AGENCIES AND BODIES,2103568655,1000070705
06.10.2022,CHILDREN AND FAMILIES,ELLIOT LEIGH TLC LTD,"1,658.40",UASC CARELEAVERS,EXTERNAL AGENCIES AND BODIES,2103568669,1000079022
06.10.2022,CHILDREN AND FAMILIES,ELLIOT LEIGH TLC LTD,"1,675.80",UASC CARELEAVERS,EXTERNAL AGENCIES AND BODIES,2103568685,1000079022
06.10.2022,CHILDREN AND FAMILIES,ELLIOT LEIGH TLC LTD,"2,347.80",UASC CARELEAVERS,EXTERNAL AGENCIES AND BODIES,2103568671,1000079022
06.10.2022,CHILDREN AND FAMILIES,PURPLE PEBBLES(CHILD CARE) SERVICES,300.00,UASC CARELEAVERS,OTHER PAYMENTS FOR CLIENTS,2103568627,1000070705
06.10.2022,CHILDREN AND FAMILIES,PURPLE PEBBLES(CHILD CARE) SERVICES,300.00,UASC CARELEAVERS,OTHER PAYMENTS FOR CLIENTS,2103568707,1000070705
06.10.2022,CHILDREN AND FAMILIES,PURPLE PEBBLES(CHILD CARE) SERVICES,"1,028.57",UASC LAC 16-17,EXTERNAL AGENCIES AND BODIES,2103568927,1000070705
06.10.2022,CHILDREN AND FAMILIES,PURPLE PEBBLES(CHILD CARE) SERVICES,"2,125.00",UASC LAC 16-17,EXTERNAL AGENCIES AND BODIES,2103568715,1000070705
06.10.2022,CHILDREN AND FAMILIES,PURPLE PEBBLES(CHILD CARE) SERVICES,"3,428.57",UASC LAC 16-17,EXTERNAL AGENCIES AND BODIES,2103568717,1000070705
06.10.2022,CHILDREN AND FAMILIES,CAPA FIRST RESPONSE CIC,"1,005.00",YJS MGMT & SUPPORT,INFORMATION MANAGEMENT,5902545912,1000088842
06.10.2022,COMMUNITIES,LIVESEY EXCHANGE,"10,838.10",COMMUNITIES PROJECTS,MARKETING & PUBLICITY SERVICES,5902545049,1000082440
06.10.2022,COMMUNITIES,RED R DESIGN,350.00,COMMUNITY COUNCILS TEAM,MARKETING & PUBLICITY SERVICES,5902545785,1000035984
06.10.2022,COMMUNITIES,WALWORTH METHODIST CHURCH,597.50,COMMUNITY COUNCILS TEAM,OP LEASE/HIRE CHARGES:PLANT/EQUIP/FURNIT,5902544809,1000042218
06.10.2022,COMMUNITIES,SOUTHWARK CITIZENS ADVICE,"150,000.00",LEGAL GRANTS,EXTERNAL AGENCIES AND BODIES,5902545810,1874379
06.10.2022,COMMUNITIES,SOUTHWARK LAW CENTRE,"84,000.00",LEGAL GRANTS,EXTERNAL AGENCIES AND BODIES,5902545812,1981325
06.10.2022,COMMUNITIES,FRAMEWORK HOUSING ASSOCIATION,"8,250.00",TIER 4 SERVICES,OTHER CONTRACTORS,5902545820,1000086098
06.10.2022,COMMUNITIES,REDACTED PERSONAL DATA,350.00,UKRAINIAN PROGRAMME,GRANTS,REDACTED,REDACTED
06.10.2022,COMMUNITIES,REDACTED PERSONAL DATA,"1,750.00",UKRAINIAN PROGRAMME,GRANTS,REDACTED,REDACTED
06.10.2022,COMMUNITY HOUSING SERVICES (HGF),COUNTY PRIVATE CLIENT LTD,"3,989.12",HOMELESS PROJECTS,GRANTS,5902545949,1000067619
06.10.2022,COMMUNITY HOUSING SERVICES (HGF),HELP2RENT PROPERTY MANAGEMENT LTD,"3,989.11",HOMELESS PROJECTS,GRANTS,5902545952,1000082282
06.10.2022,COMMUNITY HOUSING SERVICES (HGF),SOLACE WOMEN'S AID,"10,500.00",HOMELESS PROJECTS,PROFESSIONAL FEES,5902545658,1000057231
06.10.2022,CORPORATE & DEMOCRATIC CORE,POTTERS FIELDS PARK MANAGEMENT TRUST,"16,445.48",POTTERS FIELD PROJECT COSTS,SERVICE CHARGES,2103568584,1000053530
06.10.2022,CUSTOMER EXPERIENCE HGF,CORONERS' COURTS SUPPORT SERVICE,"1,392.00",CORONER'S,PROFESSIONAL FEES,5902545869,1000077579
06.10.2022,CUSTOMER EXPERIENCE HGF,IMPERIAL COLLEGE PROJECTS LTD,323.00,CORONER'S,PROFESSIONAL FEES,5902545953,1000080106
06.10.2022,CUSTOMER EXPERIENCE HGF,IMPERIAL COLLEGE PROJECTS LTD,357.00,CORONER'S,PROFESSIONAL FEES,5902545942,1000080106
06.10.2022,CUSTOMER EXPERIENCE HGF,IMPERIAL COLLEGE PROJECTS LTD,433.00,CORONER'S,PROFESSIONAL FEES,5902545935,1000080106
06.10.2022,CUSTOMER EXPERIENCE HGF,IMPERIAL COLLEGE PROJECTS LTD,476.00,CORONER'S,PROFESSIONAL FEES,5902545946,1000080106
06.10.2022,CUSTOMER EXPERIENCE HGF,T.M.L.E LIMITED,"1,995.00",CORONER'S,PROFESSIONAL FEES,5902545826,1000085696
06.10.2022,CUSTOMER EXPERIENCE HGF,NRC PATHOLOGY SERVICES LIMITED,600.00,CORONER'S,PROFESSIONAL FEES,5902545875,1000085798
06.10.2022,CUSTOMER EXPERIENCE HGF,FORENSIC PATHOLOGY SERVICES,531.90,CORONER'S,PROFESSIONAL FEES,5902545864,1000086871
06.10.2022,CUSTOMER EXPERIENCE HGF,FORENSIC PATHOLOGY SERVICES,541.90,CORONER'S,PROFESSIONAL FEES,5902545861,1000086871
06.10.2022,CUSTOMER EXPERIENCE HGF,SAP (UK) LTD,"111,989.01",SAP OPERATING COSTS,SOFTWARE,5902544692,1000002550
06.10.2022,DSG,SHIRLEY MOYSE,350.00,SEN INCLUSION TEAM,CONSULTANTS SERVICES,5902544724,1000083073
06.10.2022,EDUCATION,PULSE HEALTHCARE LTD,253.76,SCH TRANS � TRAVEL,AGENCY STAFF,5902544789,1000035063
06.10.2022,ENV & LEIS,CROWN OIL LTD,"1,903.44",SANDGATE STREET,VEHICLE FUEL,5902545006,1000081749
06.10.2022,ENV & LEIS,SOUTHWARK NEWSPAPER LTD,816.00,STREET WORKS OVERHEADS,MARKETING & PUBLICITY SERVICES,5902545931,1556957
06.10.2022,ENV & LEIS,SOUTHWARK NEWSPAPER LTD,882.00,STREET WORKS OVERHEADS,MARKETING & PUBLICITY SERVICES,5902545921,1556957
06.10.2022,ENV & LEIS,SOUTHWARK NEWSPAPER LTD,900.00,STREET WORKS OVERHEADS,MARKETING & PUBLICITY SERVICES,5902545920,1556957
06.10.2022,ENV & LEIS,SOUTHWARK NEWSPAPER LTD,912.00,STREET WORKS OVERHEADS,MARKETING & PUBLICITY SERVICES,5902545933,1556957
06.10.2022,ENV & LEIS,SOUTHWARK NEWSPAPER LTD,"1,092.00",STREET WORKS OVERHEADS,MARKETING & PUBLICITY SERVICES,5902545927,1556957
06.10.2022,ENV & LEIS,SOUTHWARK NEWSPAPER LTD,"1,121.25",STREET WORKS OVERHEADS,MARKETING & PUBLICITY SERVICES,5902545929,1556957
06.10.2022,ENV & LEIS,SOUTHWARK NEWSPAPER LTD,"1,476.00",STREET WORKS OVERHEADS,MARKETING & PUBLICITY SERVICES,5902545883,1556957
06.10.2022,ENV&LEIS,LONDON NORTH WEST UNIVERSITY HEALTHCARE NHS TRUST,306.00,SEXUAL HEALTH - STI,MEDICAL / HEALTH & SAFETY SERVICES,5902545801,1000075293
06.10.2022,ENVIRONMENT AND LEISURE,ASKEWS & HOLTS LIBRARY SERVICES LTD,"1,081.95",CAPITAL PS (LEISURE),CAPITAL GRANTS,5902544932,1494168
06.10.2022,ENVIRONMENT AND LEISURE,FRIENDS OF GOODRICH PTA,795.21,CAPITAL PS (LEISURE),CAPITAL GRANTS,5902545836,1000016967
06.10.2022,ENVIRONMENT AND LEISURE,ADAM THOMAS LANDSCAPE DESIGN LTD,"1,170.66",CAPITAL PS (LEISURE),CONST'N MAIN CONTRACT - NON CERTIFICATED,5902545060,1000080845
06.10.2022,ENVIRONMENT AND LEISURE,ADAM THOMAS LANDSCAPE DESIGN LTD,"1,564.67",CAPITAL PS (LEISURE),CONST'N MAIN CONTRACT - NON CERTIFICATED,5902545060,1000080845
06.10.2022,ENVIRONMENT AND LEISURE,ADAM THOMAS LANDSCAPE DESIGN LTD,"3,300.00",CAPITAL PS (LEISURE),CONST'N MAIN CONTRACT - NON CERTIFICATED,5902545808,1000080845
06.10.2022,ENVIRONMENT AND LEISURE,STITCHES MARQUEE HIRE LIMITED,832.50,CAPITAL PS (LEISURE),CONSTRUCTION SITE COSTS,5902545777,1026432
06.10.2022,ENVIRONMENT DIRECTORATE,ARNOLD CLARK VEHICLE MANAGEMENT,-989.82,CAR LEASING CTRL A/C,VEHICLE LEASING CHARGES,5902545843,1000079116
06.10.2022,ENVIRONMENT DIRECTORATE,ARNOLD CLARK VEHICLE MANAGEMENT,-824.86,CAR LEASING CTRL A/C,VEHICLE LEASING CHARGES,5902545843,1000079116
06.10.2022,ENVIRONMENT DIRECTORATE,ARNOLD CLARK VEHICLE MANAGEMENT,292.05,CAR LEASING CTRL A/C,VEHICLE LEASING CHARGES,5902545831,1000079116
06.10.2022,ENVIRONMENT DIRECTORATE,ARNOLD CLARK VEHICLE MANAGEMENT,356.46,CAR LEASING CTRL A/C,VEHICLE LEASING CHARGES,5902545841,1000079116
06.10.2022,ENVIRONMENT DIRECTORATE,ARNOLD CLARK VEHICLE MANAGEMENT,427.75,CAR LEASING CTRL A/C,VEHICLE LEASING CHARGES,5902545841,1000079116
06.10.2022,ENVIRONMENT DIRECTORATE,ARNOLD CLARK VEHICLE MANAGEMENT,489.97,CAR LEASING CTRL A/C,VEHICLE LEASING CHARGES,5902545822,1000079116
06.10.2022,ENVIRONMENT DIRECTORATE,ARNOLD CLARK VEHICLE MANAGEMENT,553.28,CAR LEASING CTRL A/C,VEHICLE LEASING CHARGES,5902545822,1000079116
06.10.2022,ENVIRONMENT DIRECTORATE,ARNOLD CLARK VEHICLE MANAGEMENT,824.85,CAR LEASING CTRL A/C,VEHICLE LEASING CHARGES,5902545844,1000079116
06.10.2022,ENVIRONMENT DIRECTORATE,ARNOLD CLARK VEHICLE MANAGEMENT,"1,047.33",CAR LEASING CTRL A/C,VEHICLE LEASING CHARGES,5902545844,1000079116
06.10.2022,ENVIRONMENT DIRECTORATE,LANDSCAPE SUPPLY COMPANY,"1,494.20",GROUNDS MAINTENANCE - GENERAL,EQUIPMENT PURCHASE & REPAIR,5902545191,1000051937
06.10.2022,ENVIRONMENT DIRECTORATE,SOUTHWARK NEWSPAPER LTD,300.00,HIGHWAYS DEVELOPMENT,MARKETING & PUBLICITY SERVICES,5902545905,1556957
06.10.2022,ENVIRONMENT DIRECTORATE,SOUTHWARK NEWSPAPER LTD,"1,260.00",HIGHWAYS DEVELOPMENT,MARKETING & PUBLICITY SERVICES,5902545894,1556957
06.10.2022,HOUSING,DUCTCLEAN (UK) LTD,"124,413.48",DUCTCLEAN,I-WORLD CONTRACTORS HOLDING ACCOUNT,2103569044,3000001635
06.10.2022,HOUSING GENERAL FUND,L H BRIDGE LTD,"9,502.00",CAPITAL PS (HOUSING GF),CAPITAL GRANTS,5902545793,1000056928
06.10.2022,HOUSING HRA,GC CONSTRUCT LTD,"1,173.73",CAPITAL PS (HRA),CONSTRUCTION,2103569047,3000002106
06.10.2022,HOUSING HRA,GC CONSTRUCT LTD,"26,000.00",CAPITAL PS (HRA),CONSTRUCTION,2103569047,3000002106
06.10.2022,HOUSING HRA,BAILY  GARNER LLP,"10,420.00",CAPITAL PS (HRA),CONSTRUCTION FEES  - EXTERNAL,5902545783,1000663
06.10.2022,HOUSING HRA,COTTRELL AND VERMEULEN ARCH LTD,"2,075.00",CAPITAL PS (HRA),CONSTRUCTION FEES  - EXTERNAL,5902545926,1000012119
06.10.2022,HOUSING HRA,HTA DESIGN LLP,"7,500.00",CAPITAL PS (HRA),CONSTRUCTION FEES  - EXTERNAL,5902544719,1000074662
06.10.2022,HOUSING HRA,MARTIN ARNOLD LTD,381.67,CAPITAL PS (HRA),CONSTRUCTION FEES  - EXTERNAL,5902545885,1000076993
06.10.2022,HOUSING HRA,ADAM KHAN ARCHITECTS LTD,"2,572.48",CAPITAL PS (HRA),CONSTRUCTION FEES - ARCHITECT,5902545893,1000076029
06.10.2022,HOUSING HRA,ADAM KHAN ARCHITECTS LTD,"3,000.00",CAPITAL PS (HRA),CONSTRUCTION FEES - ARCHITECT,5902545893,1000076029
06.10.2022,HOUSING HRA,ADAM KHAN ARCHITECTS LTD,"16,012.76",CAPITAL PS (HRA),CONSTRUCTION FEES - ARCHITECT,5902545893,1000076029
06.10.2022,HOUSING HRA,ADAM KHAN ARCHITECTS LTD,"24,792.00",CAPITAL PS (HRA),CONSTRUCTION FEES - ARCHITECT,5902545893,1000076029
06.10.2022,HOUSING HRA,FRASER BROWN MACKENNA LTD,950.00,CAPITAL PS (HRA),CONSTRUCTION FEES - ARCHITECT,5902545782,1000081651
06.10.2022,HOUSING HRA,BUILDING ASSOCIATES LTD,"168,044.62",CAPITAL PS (HRA),CONSTRUCTION MAIN CONTRACT,2103566070,3000002218
06.10.2022,HOUSING HRA,A & E ELKINS LTD,"126,887.30",CAPITAL PS (HRA),CONSTRUCTION MAIN CONTRACT -CERTIFICATED,2103568572,4012501
06.10.2022,HOUSING HRA,A & E ELKINS LTD,"140,348.42",CAPITAL PS (HRA),CONSTRUCTION MAIN CONTRACT -CERTIFICATED,2103568578,4012501
06.10.2022,HOUSING HRA,A & E ELKINS LTD,"386,159.52",CAPITAL PS (HRA),CONSTRUCTION MAIN CONTRACT -CERTIFICATED,2103568579,4012501
06.10.2022,HOUSING HRA,NIBLOCK (BUILDERS) LTD,"81,150.11",CAPITAL PS (HRA),CONSTRUCTION MAIN CONTRACT -CERTIFICATED,2103565756,3000000235
06.10.2022,HOUSING HRA,OFR CONSULTANTS LTD,"4,000.00",CAPITAL PS (REGEN),CONSTRUCTION FEES  - EXTERNAL,5902545941,1000081070
06.10.2022,HOUSING HRA,STANTEC ULKLTD,"1,575.00",CAPITAL PS (REGEN),CONSTRUCTION FEES  - EXTERNAL,5902545947,1000086827
06.10.2022,HOUSING HRA,MR EDDIE HYPOLITE,"2,700.00",INVESTMENT MANAGER,TRAINING,6102052356,INTERNATIONAL PAYMENT
